{"text_format":"1","workbook":"xlsx","n_sheets":6,"sheets":["Introduktion","Afsendt","Modtaget","KAN SKJULES Volumen-beregner","KAN SKJULES Input til afsendt","KAN SKJULES Input til modtaget"],"not_rendered":{"charts":0,"images":0,"macros":0,"external_links":0,"defined_names":7,"comments":0,"pivot_tables":0},"unopened":[],"bounds":{"document_bytes":16777216,"sheet_cells":100000,"rows_first":2000,"rows_last":500,"rows_between":2000,"halvings":0,"cell_chars":16384,"cell_head_chars":4096},"cells_cut":0,"cells_raw":0,"read":"whole","date_system":"1900"}

{"sheet":"Introduktion","index":0,"n_rows":14,"n_cols":1,"rows_kept":14,"cut":false,"hidden":false,"merged":[]}
[]
[]
[]
["MeMo-potentialeberegner"]
[]
["\"MeMo-potentialeberegneren\" er en del af værktøjskassen, der supplerer rapporten ”DIGITAL POST OG MEMO  - Analyse af MeMo-potentialet i kommunerne udført for KL samt forslag til standarder for MeMo”. Potentialeberegneren er udviklet af Netcompany."]
[]
["Formålet med potentialeberegneren er at samle data omkring afsendte og modtagede breve internt i kommunen og give dem en relativ potentialescore baseret på volumen samt behov for MeMo-opmærkning. (potentiale = volumen x MeMo-potentiale)"]
[]
["Excelarket er præpopuleret med brevdata på højt prioriterede brevtyper, som blev identificeret i de 6 fagspecifikke workshops, og tanken er, at data kan fungere som udgangspunkt for kommunernes eget arbejde med at afdække og validere potentialet i de enkelte brevtyper."]
[]
["Projektgruppen har ikke tilføjet eller ændret nævneværdigt på data i excelarket, medmindre det har drejet sig om deciderede fejl, og vi har heller ikke udfyldt de blanke celler, som ikke fik endelig afklaring i workshops. Blanke celler kan derfor forekomme."]
[]
["For nærmere introduktion , se vejledning til Værktøjskasse på KL/KOMBITs Videncenter."]

{"sheet":"Afsendt","index":1,"n_rows":254,"n_cols":19,"rows_kept":254,"cut":false,"hidden":false,"merged":[[1,0,2,6],[0,0,0,1],[1,7,1,18]]}
["Afsendt post - data fra workshops"]
["Generelt om meddelelsen",null,null,null,null,null,null,"Potentialevurdering"]
[null,null,null,null,null,null,null,"VOLUMEN","VOLUMENINDEKS","SVAR PÅKRÆVET?","FREMMØDE","BETALING","UNDERSKRIFT","LINK","TIDSFRIST","INDHOLDSDATA","UDFORDRINGER","INDHOLDSDATA","POTENTIALE"]
["Brevtitel","Kort scenariebeskrivelse","Modtager \n(Borger / Myndighed / Virksomhed)","Specifik myndighed \n(Hvis Modtager = Myndighed)","Afsendersystem\n(OBS: rådata fra workshop - skal valideres lokalt)","Arketype","Fagområde","Hvor ofte sender en sagsbehandler dette brev?\n\n1= Sjældent\n2= Månedligt\n3= Ugentligt\n4= Dagligt","Indeks baseret på volumen","Skal modtageren besvare/bekræfte brevet?\n\n0=nej\n1=ja","Skal modtageren møde op?\n\n0=nej\n1=ja","Skal modtageren betale?\n\n0=nej\n1=ja","Skal modtageren underskrive?\n\n0=nej\n1=ja","Skal modtager klikke på link? (fx til selvbetjenings-løsning)\n\n0=nej\n1=ja","Skal modtager overholde tidsfrist?\n\n0=nej\n1=ja","Er der data , som med fordel kan opmærkes mhp. fx journalisering af retursvar? \n\n0=nej\n1=ja","Beskriv udfordringer ved sagsgangen kort og præcist","Hvilke data om brevets indhold kan med fordel opmærkes mhp. fx journalisering hos modtager eller når brevet kommer retur? ","MeMo-potentiale \n(volumen * potentiale)\n"]
["Grave-tilladelse","Tilladelse til i et bestemt tidsrum og indenfor en bestem geografisk afgrænsning at grave i vej (mv?)","Borger/virksomhed/myndighed","Anden myndighed","ROSY","Afgørelse","Miljø, Teknik og Forsyning",4,{"$f":"_xlfn.IFS(H5=\"\",\"\",H5=1,'KAN SKJULES Volumen-beregner'!$N$5,H5=2,'KAN SKJULES Volumen-beregner'!$L$5,H5=3,'KAN SKJULES Volumen-beregner'!$J$5,H5=4,'KAN SKJULES Volumen-beregner'!$H$5,H5=5,'KAN SKJULES Volumen-beregner'!$F$5)","v":130},1,0,1,1,1,1,1,null,"Alle relevante data knyttet til det fællesoffentlige adresseregister (alle IT-systemer udbudt efter 2017 SKAL anvende valilde adresser mv), s: Valide adresse samt registerets geokodning af adressepunkt, bestemt fast ejendom (BFE, tidligere ejendomsnr.), matrikelnr., vejnavn mv.",{"$f":"IFERROR((J5+K5+L5+M5+N5+O5+P5)*I5,0)","v":780}]
["Afgørelser (Alle målgrupper)","Jobcentre og ydelsescentre sender afgørelser om f.eks bevillinger eller ophør af ydelser.","Borger",null,"FASIT/Momentum","Afgørelse","Arbejdsmarked og Erhverv",4,{"$f":"_xlfn.IFS(H6=\"\",\"\",H6=1,'KAN SKJULES Volumen-beregner'!$N$5,H6=2,'KAN SKJULES Volumen-beregner'!$L$5,H6=3,'KAN SKJULES Volumen-beregner'!$J$5,H6=4,'KAN SKJULES Volumen-beregner'!$H$5,H6=5,'KAN SKJULES Volumen-beregner'!$F$5)","v":130},1,0,0,0,1,1,1,null,"Navn og cpr nummer",520]
["Afgørelser om bevilling eller afslag på ansøgning indenfor serviceloven.,","Afgørelser om bevilling eller afslag på ansøgning indenfor serviceloven.","Virksomhed",null,"KMD Nexus via Doc2Mail","Afgørelse","Social og Sundhed",4,{"$f":"_xlfn.IFS(H7=\"\",\"\",H7=1,'KAN SKJULES Volumen-beregner'!$N$5,H7=2,'KAN SKJULES Volumen-beregner'!$L$5,H7=3,'KAN SKJULES Volumen-beregner'!$J$5,H7=4,'KAN SKJULES Volumen-beregner'!$H$5,H7=5,'KAN SKJULES Volumen-beregner'!$F$5)","v":130},1,0,0,1,1,1,1,null,"CPR",650]
["Afgørelser","F.eks. afgørelser fra Huslejenævnet og Beboerklagenævnet","Borger",null,"eDoc","Afgørelse","Administration og Organisation",4,{"$f":"_xlfn.IFS(H8=\"\",\"\",H8=1,'KAN SKJULES Volumen-beregner'!$N$5,H8=2,'KAN SKJULES Volumen-beregner'!$L$5,H8=3,'KAN SKJULES Volumen-beregner'!$J$5,H8=4,'KAN SKJULES Volumen-beregner'!$H$5,H8=5,'KAN SKJULES Volumen-beregner'!$F$5)","v":130},1,0,1,0,0,1,1,null,"sagsnummer, sagsbehandler, KLE, BBR data",520]
["Ansættelsesbrev ","Personalesager","Borger",null,"SBSYS","Afgørelse","Social og Sundhed",4,{"$f":"_xlfn.IFS(H9=\"\",\"\",H9=1,'KAN SKJULES Volumen-beregner'!$N$5,H9=2,'KAN SKJULES Volumen-beregner'!$L$5,H9=3,'KAN SKJULES Volumen-beregner'!$J$5,H9=4,'KAN SKJULES Volumen-beregner'!$H$5,H9=5,'KAN SKJULES Volumen-beregner'!$F$5)","v":130},1,0,0,1,0,1,1,null,null,520]
["Byggetilladelser","Ansøgning, Byggetilladelse, færdigmelding og Ibrugtagning","Borger/virksomhed/myndighed","Anden myndighed","eDoc/FICS","Afgørelse","Miljø, Teknik og Forsyning",4,{"$f":"_xlfn.IFS(H10=\"\",\"\",H10=1,'KAN SKJULES Volumen-beregner'!$N$5,H10=2,'KAN SKJULES Volumen-beregner'!$L$5,H10=3,'KAN SKJULES Volumen-beregner'!$J$5,H10=4,'KAN SKJULES Volumen-beregner'!$H$5,H10=5,'KAN SKJULES Volumen-beregner'!$F$5)","v":130},1,0,1,0,1,1,1,"Der skal kunne gives fuldmagt til 3. part. Oplysninger skal videre til BBR.  Selv om BOM i princippet er en af de obligatoriske fællesoffentlige digitale løsninger, så er det i praksis for svært for mange borgere, der fremsender uden om BOM","Alle relevante data knyttet til det fællesoffentlige adresseregister (alle IT-systemer udbudt efter 2017 SKAL anvende valilde adresser mv): Valide adresse samt registerets geokodning af adressepunkt, bestemt fast ejendom (BFE, tidligere ejendomsnr.), matrikelnr., vejnavn mv.",650]
["Afgørelser","Afgørelser på sager om bopæl","Borger",null,"NOVA","Afgørelse","Demokrati og Involvering",4,{"$f":"_xlfn.IFS(H11=\"\",\"\",H11=1,'KAN SKJULES Volumen-beregner'!$N$5,H11=2,'KAN SKJULES Volumen-beregner'!$L$5,H11=3,'KAN SKJULES Volumen-beregner'!$J$5,H11=4,'KAN SKJULES Volumen-beregner'!$H$5,H11=5,'KAN SKJULES Volumen-beregner'!$F$5)","v":130},1,0,0,0,0,1,1,"Ser ikke digita post eller kan ikke tilgå","CPR-NR",390]
["Afgørelser","Afgørelser på skoletilbud til borger - evt. tilbud om specialklasse.","Borger",null,"Outlook","Afgørelse","Børn og Unge",4,{"$f":"_xlfn.IFS(H12=\"\",\"\",H12=1,'KAN SKJULES Volumen-beregner'!$N$5,H12=2,'KAN SKJULES Volumen-beregner'!$L$5,H12=3,'KAN SKJULES Volumen-beregner'!$J$5,H12=4,'KAN SKJULES Volumen-beregner'!$H$5,H12=5,'KAN SKJULES Volumen-beregner'!$F$5)","v":130},1,0,0,0,1,1,1,"Sendes til forældre med kopi til skolen","Barnets cpr nr.",520]
["Beviling, tilmelding afmelding ændring,","F.eks. tilmelding hos leverandøren vaskeordning, madservice mv.","Virksomhed",null," Outlook, Cura","Afgørelse","Social og Sundhed",4,{"$f":"_xlfn.IFS(H13=\"\",\"\",H13=1,'KAN SKJULES Volumen-beregner'!$N$5,H13=2,'KAN SKJULES Volumen-beregner'!$L$5,H13=3,'KAN SKJULES Volumen-beregner'!$J$5,H13=4,'KAN SKJULES Volumen-beregner'!$H$5,H13=5,'KAN SKJULES Volumen-beregner'!$F$5)","v":130},1,0,0,0,0,1,1,null,null,390]
["Afgørelser fra B og U","Sendes til part og advokat","Virksomhed",null,"SYSYS eller Outlook/ DUBU","Afgørelse","Børn og Unge",4,{"$f":"_xlfn.IFS(H14=\"\",\"\",H14=1,'KAN SKJULES Volumen-beregner'!$N$5,H14=2,'KAN SKJULES Volumen-beregner'!$L$5,H14=3,'KAN SKJULES Volumen-beregner'!$J$5,H14=4,'KAN SKJULES Volumen-beregner'!$H$5,H14=5,'KAN SKJULES Volumen-beregner'!$F$5)","v":130},0,0,0,0,0,0,null,null,null,0]
["Tilbudsbreve f.eks boligtilbud ","Borger er blevet godkendt til pleje- eller ældrebolig og modtager tilbudsbrev om hvilken bolig de er anvist","Borger",null,"ESDH eDoc / Cura via OnteToox","Afgørelse","Social og Sundhed",3,{"$f":"_xlfn.IFS(H15=\"\",\"\",H15=1,'KAN SKJULES Volumen-beregner'!$N$5,H15=2,'KAN SKJULES Volumen-beregner'!$L$5,H15=3,'KAN SKJULES Volumen-beregner'!$J$5,H15=4,'KAN SKJULES Volumen-beregner'!$H$5,H15=5,'KAN SKJULES Volumen-beregner'!$F$5)","v":26},1,1,0,1,0,1,1,"Der er mange som modtager tllbud om bolig som ikke længere er digitale",null,130]
["Lovlig-gørelser","tilladelse til indvinding af grundvand fra eksisterende boring","Borger/virksomhed/myndighed","Anden myndighed",null,"Afgørelse","Miljø, Teknik og Forsyning",4,{"$f":"_xlfn.IFS(H16=\"\",\"\",H16=1,'KAN SKJULES Volumen-beregner'!$N$5,H16=2,'KAN SKJULES Volumen-beregner'!$L$5,H16=3,'KAN SKJULES Volumen-beregner'!$J$5,H16=4,'KAN SKJULES Volumen-beregner'!$H$5,H16=5,'KAN SKJULES Volumen-beregner'!$F$5)","v":130},null,null,null,null,null,null,1,null,null,130]
["Afgørelser blanketter ","Afgørelse på førtidspension. Hvis borgeren får medhold så intet svar, hvis borgeren får afslag så modtager vi ofte en klage","Borger",null,"Diaform/Onetoox","Afgørelse","Social og Sundhed",3,{"$f":"_xlfn.IFS(H17=\"\",\"\",H17=1,'KAN SKJULES Volumen-beregner'!$N$5,H17=2,'KAN SKJULES Volumen-beregner'!$L$5,H17=3,'KAN SKJULES Volumen-beregner'!$J$5,H17=4,'KAN SKJULES Volumen-beregner'!$H$5,H17=5,'KAN SKJULES Volumen-beregner'!$F$5)","v":26},1,0,0,0,0,1,1,"Manglende opmærkning gør det vanskeligt at placere klagen i rette afdeling/enhed.",null,78]
["Acceptskrivelser (køb af grund) ","En borger har budt på en byggegrund. Sagsbehandler og afdelingsleder underskriver acceptskrivelse.","Borger",null,"SBSYS","Afgørelse","Miljø, Teknik og Forsyning",3,{"$f":"_xlfn.IFS(H18=\"\",\"\",H18=1,'KAN SKJULES Volumen-beregner'!$N$5,H18=2,'KAN SKJULES Volumen-beregner'!$L$5,H18=3,'KAN SKJULES Volumen-beregner'!$J$5,H18=4,'KAN SKJULES Volumen-beregner'!$H$5,H18=5,'KAN SKJULES Volumen-beregner'!$F$5)","v":26},0,1,1,0,0,1,1,null,"Journalnummer, matrikelnummer/adresse",104]
["Afgørelser","Vi sender afgørelser om forskellige ting til arbejdsgivere/virksomheder","Virksomhed",null,"FASIT/Momentum","Afgørelse","Arbejdsmarked og Erhverv",3,{"$f":"_xlfn.IFS(H19=\"\",\"\",H19=1,'KAN SKJULES Volumen-beregner'!$N$5,H19=2,'KAN SKJULES Volumen-beregner'!$L$5,H19=3,'KAN SKJULES Volumen-beregner'!$J$5,H19=4,'KAN SKJULES Volumen-beregner'!$H$5,H19=5,'KAN SKJULES Volumen-beregner'!$F$5)","v":26},1,0,0,0,0,1,1,null,"Sagsnr. og cpr.nr./cvr.nr.",78]
["Bevillinger på kørsel","Bevilling på kørsel sendes til borger, Kørselskontor og skole. Borger skal kunne svare på om det er korrekt eller om der er ændringer.","Borger",null,"Outlook","Afgørelse","Børn og Unge",3,{"$f":"_xlfn.IFS(H20=\"\",\"\",H20=1,'KAN SKJULES Volumen-beregner'!$N$5,H20=2,'KAN SKJULES Volumen-beregner'!$L$5,H20=3,'KAN SKJULES Volumen-beregner'!$J$5,H20=4,'KAN SKJULES Volumen-beregner'!$H$5,H20=5,'KAN SKJULES Volumen-beregner'!$F$5)","v":26},1,0,0,0,1,0,1,"Serviceniveau","Barnets cpr nr.",78]
["Godkendelse af fleksjob","Brev til virksomheder vedr. godkendelse af fleksjob","Virksomhed",null,"FASIT/Momentum","Afgørelse","Arbejdsmarked og Erhverv",3,{"$f":"_xlfn.IFS(H21=\"\",\"\",H21=1,'KAN SKJULES Volumen-beregner'!$N$5,H21=2,'KAN SKJULES Volumen-beregner'!$L$5,H21=3,'KAN SKJULES Volumen-beregner'!$J$5,H21=4,'KAN SKJULES Volumen-beregner'!$H$5,H21=5,'KAN SKJULES Volumen-beregner'!$F$5)","v":26},0,0,0,1,0,0,1,null,"cvr - journal - cpr.",52]
["Pladstilbud Retursvar påkrævet inden 5 dage","Der sendes tilbud om daginstitution til forældre","Borger",null,null,"Afgørelse","Børn og Unge",3,{"$f":"_xlfn.IFS(H22=\"\",\"\",H22=1,'KAN SKJULES Volumen-beregner'!$N$5,H22=2,'KAN SKJULES Volumen-beregner'!$L$5,H22=3,'KAN SKJULES Volumen-beregner'!$J$5,H22=4,'KAN SKJULES Volumen-beregner'!$H$5,H22=5,'KAN SKJULES Volumen-beregner'!$F$5)","v":26},1,0,0,0,0,1,null,null,null,52]
["Brev vedr. ansættelsesforlængelse","Brev der sendes til en ansat med information om ansættelsesforlængelse","Borger",null,"SD Løn","Afgørelse","Administration og Organisation",2,{"$f":"_xlfn.IFS(H23=\"\",\"\",H23=1,'KAN SKJULES Volumen-beregner'!$N$5,H23=2,'KAN SKJULES Volumen-beregner'!$L$5,H23=3,'KAN SKJULES Volumen-beregner'!$J$5,H23=4,'KAN SKJULES Volumen-beregner'!$H$5,H23=5,'KAN SKJULES Volumen-beregner'!$F$5)","v":12},1,0,0,1,0,1,1,null,"CPR-nummer",48]
["Afgørelse om fleksjob","afgørelse om fleksjob er godkendt","Virksomhed",null,"FASIT/Momentum","Afgørelse","Arbejdsmarked og Erhverv",3,{"$f":"_xlfn.IFS(H24=\"\",\"\",H24=1,'KAN SKJULES Volumen-beregner'!$N$5,H24=2,'KAN SKJULES Volumen-beregner'!$L$5,H24=3,'KAN SKJULES Volumen-beregner'!$J$5,H24=4,'KAN SKJULES Volumen-beregner'!$H$5,H24=5,'KAN SKJULES Volumen-beregner'!$F$5)","v":26},0,0,0,0,0,0,1,null,"journal - cvr - cpr",26]
["Brev med oplysning om ansøgt bevilling","Brev med oplysning angående ansøgt bevilling","Virksomhed",null,"Opus Debitor","Afgørelse","Demokrati og Involvering",2,{"$f":"_xlfn.IFS(H25=\"\",\"\",H25=1,'KAN SKJULES Volumen-beregner'!$N$5,H25=2,'KAN SKJULES Volumen-beregner'!$L$5,H25=3,'KAN SKJULES Volumen-beregner'!$J$5,H25=4,'KAN SKJULES Volumen-beregner'!$H$5,H25=5,'KAN SKJULES Volumen-beregner'!$F$5)","v":12},0,0,0,0,0,0,1,"Ser ikke posten","Oplysninger om det bevilgede, cpr.nr., navn, adresse, sagsnr.",12]
["Hegnsyn","Indenfor området sendes der både klager, indkaldelser og kvitteringer til borgerne ift. hegnsyn","Borger",null,"SBSYS","Aftale","Administration og Organisation",1,{"$f":"_xlfn.IFS(H26=\"\",\"\",H26=1,'KAN SKJULES Volumen-beregner'!$N$5,H26=2,'KAN SKJULES Volumen-beregner'!$L$5,H26=3,'KAN SKJULES Volumen-beregner'!$J$5,H26=4,'KAN SKJULES Volumen-beregner'!$H$5,H26=5,'KAN SKJULES Volumen-beregner'!$F$5)","v":1},1,1,0,0,0,1,1,null,"Måske en adresse?",4]
["Ansættelsesretlige breve",null,"Virksomhed",null,null,"Anmodning om underskrift","Social og Sundhed",4,{"$f":"_xlfn.IFS(H27=\"\",\"\",H27=1,'KAN SKJULES Volumen-beregner'!$N$5,H27=2,'KAN SKJULES Volumen-beregner'!$L$5,H27=3,'KAN SKJULES Volumen-beregner'!$J$5,H27=4,'KAN SKJULES Volumen-beregner'!$H$5,H27=5,'KAN SKJULES Volumen-beregner'!$F$5)","v":130},null,null,null,null,null,null,null,null,null,0]
["Bevillinger",null,"Virksomhed",null,null,"Afgørelse","Social og Sundhed",4,{"$f":"_xlfn.IFS(H28=\"\",\"\",H28=1,'KAN SKJULES Volumen-beregner'!$N$5,H28=2,'KAN SKJULES Volumen-beregner'!$L$5,H28=3,'KAN SKJULES Volumen-beregner'!$J$5,H28=4,'KAN SKJULES Volumen-beregner'!$H$5,H28=5,'KAN SKJULES Volumen-beregner'!$F$5)","v":130},null,null,null,null,null,null,null,null,null,0]
["Tilladelser","Der udstedes en tilladelse. Tilladelsen skrives i word og sendes til ejer/ejere og eventuel ansøger, hvis det ikke er ejer/ejere","Internt i kommunen",null,"Acadre ","Afgørelse","Miljø, Teknik og Forsyning",null,{"$f":"_xlfn.IFS(H29=\"\",\"\",H29=1,'KAN SKJULES Volumen-beregner'!$N$5,H29=2,'KAN SKJULES Volumen-beregner'!$L$5,H29=3,'KAN SKJULES Volumen-beregner'!$J$5,H29=4,'KAN SKJULES Volumen-beregner'!$H$5,H29=5,'KAN SKJULES Volumen-beregner'!$F$5)","v":""},1,0,0,0,1,1,1,"Vedhæftninger, flere modtagere af samme brev","Jr.nr., cvr.nr./cpr.nr. eller matr.nr.",0]
["Indkaldelse til behandling","Indkald til undersøgelser, behandling mv.","Borger",null,"TM Tand","Aftale","Børn og Unge",4,{"$f":"_xlfn.IFS(H30=\"\",\"\",H30=1,'KAN SKJULES Volumen-beregner'!$N$5,H30=2,'KAN SKJULES Volumen-beregner'!$L$5,H30=3,'KAN SKJULES Volumen-beregner'!$J$5,H30=4,'KAN SKJULES Volumen-beregner'!$H$5,H30=5,'KAN SKJULES Volumen-beregner'!$F$5)","v":130},1,1,0,0,1,1,1,null,"Barnets cpr.nr.",650]
["Indkaldelse til møde","Indkaldelse af barn/foirældre til møde","Borger",null,"DUBU/ESDH","Aftale","Børn og Unge",4,{"$f":"_xlfn.IFS(H31=\"\",\"\",H31=1,'KAN SKJULES Volumen-beregner'!$N$5,H31=2,'KAN SKJULES Volumen-beregner'!$L$5,H31=3,'KAN SKJULES Volumen-beregner'!$J$5,H31=4,'KAN SKJULES Volumen-beregner'!$H$5,H31=5,'KAN SKJULES Volumen-beregner'!$F$5)","v":130},1,1,0,0,1,1,1,"meld afbud via telefon","Barnets cpr el journalnr.",650]
["Indkaldelse til møde","Mødeindkaldelse til samtale","Borger",null,"Cura via OneTooX","Aftale","Social og Sundhed",4,{"$f":"_xlfn.IFS(H32=\"\",\"\",H32=1,'KAN SKJULES Volumen-beregner'!$N$5,H32=2,'KAN SKJULES Volumen-beregner'!$L$5,H32=3,'KAN SKJULES Volumen-beregner'!$J$5,H32=4,'KAN SKJULES Volumen-beregner'!$H$5,H32=5,'KAN SKJULES Volumen-beregner'!$F$5)","v":130},1,1,0,0,0,1,1,null,"CPR el. journalnummer",520]
["Indkaldelse til møde","Indkaldelse af skole mv til møde","Myndighed","Skole","DUBU","Aftale","Børn og Unge",4,{"$f":"_xlfn.IFS(H33=\"\",\"\",H33=1,'KAN SKJULES Volumen-beregner'!$N$5,H33=2,'KAN SKJULES Volumen-beregner'!$L$5,H33=3,'KAN SKJULES Volumen-beregner'!$J$5,H33=4,'KAN SKJULES Volumen-beregner'!$H$5,H33=5,'KAN SKJULES Volumen-beregner'!$F$5)","v":130},1,1,0,0,0,1,1,null,"Barnets cpr nr",520]
["Information/reminder om pasfornyelse","Ved udløb af borgeres pas, sendes en reminder/et informationsbrev til borgeren om, at passet skal fornyes","Borger",null,"Kube Data +Biometric","Aftale","Demokrati og Involvering",4,{"$f":"_xlfn.IFS(H34=\"\",\"\",H34=1,'KAN SKJULES Volumen-beregner'!$N$5,H34=2,'KAN SKJULES Volumen-beregner'!$L$5,H34=3,'KAN SKJULES Volumen-beregner'!$J$5,H34=4,'KAN SKJULES Volumen-beregner'!$H$5,H34=5,'KAN SKJULES Volumen-beregner'!$F$5)","v":130},0,1,0,0,1,0,1,null,"CPR-nummer",390]
["Indkaldelse til møde","Indkaldelse til opfølgningsmøder mm.","Borger",null,"SBSYS og Nexus","Aftale","Social og Sundhed",4,{"$f":"_xlfn.IFS(H35=\"\",\"\",H35=1,'KAN SKJULES Volumen-beregner'!$N$5,H35=2,'KAN SKJULES Volumen-beregner'!$L$5,H35=3,'KAN SKJULES Volumen-beregner'!$J$5,H35=4,'KAN SKJULES Volumen-beregner'!$H$5,H35=5,'KAN SKJULES Volumen-beregner'!$F$5)","v":130},1,1,0,0,0,0,1,null,null,390]
["Brev vedr. den svære samtale","Der sendes breve til medarbejderen i forbindelse med udfordringer i ansættelsen (samarbejdsvanskeligheder, fravær, mv.)","Borger",null,"Løn-/personalesystem","Aftale","Administration og Organisation",3,{"$f":"_xlfn.IFS(H36=\"\",\"\",H36=1,'KAN SKJULES Volumen-beregner'!$N$5,H36=2,'KAN SKJULES Volumen-beregner'!$L$5,H36=3,'KAN SKJULES Volumen-beregner'!$J$5,H36=4,'KAN SKJULES Volumen-beregner'!$H$5,H36=5,'KAN SKJULES Volumen-beregner'!$F$5)","v":26},1,1,0,1,1,1,1,null,"Lønnummer, CPR-nummer, faglig organisation (i fht TR)",156]
["Besøgsbrev","Afsendt af en forebyggelseskonsulent til borgere ang. tilbud om at få besøg","Borger",null,"KMD Nexus","Aftale","Social og Sundhed",3,{"$f":"_xlfn.IFS(H37=\"\",\"\",H37=1,'KAN SKJULES Volumen-beregner'!$N$5,H37=2,'KAN SKJULES Volumen-beregner'!$L$5,H37=3,'KAN SKJULES Volumen-beregner'!$J$5,H37=4,'KAN SKJULES Volumen-beregner'!$H$5,H37=5,'KAN SKJULES Volumen-beregner'!$F$5)","v":26},1,1,0,0,1,1,1,"Ikke sikkert, at denne type borger formår at svare elektronisk. Målgruppen har mange, som ikke bruger digitale kanaler",null,130]
["Indkaldelse til møde","Møde på jobcenter","Borger",null,"FASIT/Momentum","Aftale","Arbejdsmarked og Erhverv",3,{"$f":"_xlfn.IFS(H38=\"\",\"\",H38=1,'KAN SKJULES Volumen-beregner'!$N$5,H38=2,'KAN SKJULES Volumen-beregner'!$L$5,H38=3,'KAN SKJULES Volumen-beregner'!$J$5,H38=4,'KAN SKJULES Volumen-beregner'!$H$5,H38=5,'KAN SKJULES Volumen-beregner'!$F$5)","v":26},1,1,0,1,1,1,1,null,"journalnr. + navn og cpr.",156]
["Indkaldelser til opfølgningsmøder ","Personalesager","Myndighed","Anden myndighed","SBSYS","Aftale","Social og Sundhed",3,{"$f":"_xlfn.IFS(H39=\"\",\"\",H39=1,'KAN SKJULES Volumen-beregner'!$N$5,H39=2,'KAN SKJULES Volumen-beregner'!$L$5,H39=3,'KAN SKJULES Volumen-beregner'!$J$5,H39=4,'KAN SKJULES Volumen-beregner'!$H$5,H39=5,'KAN SKJULES Volumen-beregner'!$F$5)","v":26},1,1,0,1,0,1,1,null,null,130]
["Indkaldelse til møde","Beder borger møde for drøftelse af eksempelvis anmeldelse om adresseforhold","Borger",null,"NOVA","Aftale","Demokrati og Involvering",3,{"$f":"_xlfn.IFS(H40=\"\",\"\",H40=1,'KAN SKJULES Volumen-beregner'!$N$5,H40=2,'KAN SKJULES Volumen-beregner'!$L$5,H40=3,'KAN SKJULES Volumen-beregner'!$J$5,H40=4,'KAN SKJULES Volumen-beregner'!$H$5,H40=5,'KAN SKJULES Volumen-beregner'!$F$5)","v":26},1,1,0,0,0,1,1,"ser ikkedigital pos/kan ikke tilgå","CPR-Nr",104]
["Indkaldelse til valg","Indkaldelsesbrev sendes i forbindelse med afholdelse af valg","Borger",null,"Valghalla","Aftale","Demokrati og Involvering",3,{"$f":"_xlfn.IFS(H41=\"\",\"\",H41=1,'KAN SKJULES Volumen-beregner'!$N$5,H41=2,'KAN SKJULES Volumen-beregner'!$L$5,H41=3,'KAN SKJULES Volumen-beregner'!$J$5,H41=4,'KAN SKJULES Volumen-beregner'!$H$5,H41=5,'KAN SKJULES Volumen-beregner'!$F$5)","v":26},0,1,0,0,1,1,1,null,"CPR-nummer",104]
["Indkaldelse til samtale","Arbejdsgiver indkaldes til opfølgning ","Virksomhed",null,"FASIT/Momentum","Aftale","Arbejdsmarked og Erhverv",3,{"$f":"_xlfn.IFS(H42=\"\",\"\",H42=1,'KAN SKJULES Volumen-beregner'!$N$5,H42=2,'KAN SKJULES Volumen-beregner'!$L$5,H42=3,'KAN SKJULES Volumen-beregner'!$J$5,H42=4,'KAN SKJULES Volumen-beregner'!$H$5,H42=5,'KAN SKJULES Volumen-beregner'!$F$5)","v":26},1,1,0,0,1,null,1,null,"CVR nummer og/eller P nummer",104]
["Tilbud om fremmøde","I forbindelse med tilkendelse af førtidspension får de tilbud om at møde pensionsteamet","Borger",null,"Word/Onetoox","Aftale","Social og Sundhed",3,{"$f":"_xlfn.IFS(H43=\"\",\"\",H43=1,'KAN SKJULES Volumen-beregner'!$N$5,H43=2,'KAN SKJULES Volumen-beregner'!$L$5,H43=3,'KAN SKJULES Volumen-beregner'!$J$5,H43=4,'KAN SKJULES Volumen-beregner'!$H$5,H43=5,'KAN SKJULES Volumen-beregner'!$F$5)","v":26},1,1,0,0,0,1,1,null,null,104]
["Varsling ","Det kan for eksempel være en varsling om besigtigelse i forhold til skimmel/kondemnering men også andre typer varsling om at kommunen kommer på besigtigelse.","Borger",null,"SBSYS","Aftale","Miljø, Teknik og Forsyning",3,{"$f":"_xlfn.IFS(H44=\"\",\"\",H44=1,'KAN SKJULES Volumen-beregner'!$N$5,H44=2,'KAN SKJULES Volumen-beregner'!$L$5,H44=3,'KAN SKJULES Volumen-beregner'!$J$5,H44=4,'KAN SKJULES Volumen-beregner'!$H$5,H44=5,'KAN SKJULES Volumen-beregner'!$F$5)","v":26},0,1,0,0,0,1,1,null,"Journalnummer, matrikelnummer og adresse, dato for besigtigelse",78]
["Forvarslinger","Forvarslingen, uanset hvad forvarslingen vedrører, skrives i word og sendes til ejer/ejere","Virksomhed",null,"Acadre","Aftale","Miljø, Teknik og Forsyning",2,{"$f":"_xlfn.IFS(H45=\"\",\"\",H45=1,'KAN SKJULES Volumen-beregner'!$N$5,H45=2,'KAN SKJULES Volumen-beregner'!$L$5,H45=3,'KAN SKJULES Volumen-beregner'!$J$5,H45=4,'KAN SKJULES Volumen-beregner'!$H$5,H45=5,'KAN SKJULES Volumen-beregner'!$F$5)","v":12},1,1,0,0,1,1,1,"Vedhæftninger, flere modtagere af samme brev","Jr.nr. matr.nr.",60]
["Brev angående sprogvurdering","Forældre til børn på 3 år og op, får et brev angående sprogvurdering af deres barn, hvis de ikke er indmeldt i dagtilbud","Borger",null,"SBSYS","Aftale","Børn og Unge",2,{"$f":"_xlfn.IFS(H46=\"\",\"\",H46=1,'KAN SKJULES Volumen-beregner'!$N$5,H46=2,'KAN SKJULES Volumen-beregner'!$L$5,H46=3,'KAN SKJULES Volumen-beregner'!$J$5,H46=4,'KAN SKJULES Volumen-beregner'!$H$5,H46=5,'KAN SKJULES Volumen-beregner'!$F$5)","v":12},1,1,0,0,1,1,1,null,"Barnets cpr.nr.",60]
["Indkaldelse til borgermøde ","Udsende brev med link til hjemmeside til tilmelding","Borger",null,"Acadre/word","Aftale","Miljø, Teknik og Forsyning",2,{"$f":"_xlfn.IFS(H47=\"\",\"\",H47=1,'KAN SKJULES Volumen-beregner'!$N$5,H47=2,'KAN SKJULES Volumen-beregner'!$L$5,H47=3,'KAN SKJULES Volumen-beregner'!$J$5,H47=4,'KAN SKJULES Volumen-beregner'!$H$5,H47=5,'KAN SKJULES Volumen-beregner'!$F$5)","v":12},0,1,0,0,1,1,1,"Der skal kunne vedhæftesmateriale.","Der er ikke brug for retursvar",48]
["Indkaldelse til møde/besigtigelse","Borgeren indkaldes til møde","Borger/virksomhed/myndighed","Anden myndighed","Word afsendes derefter med sikker post","Aftale","Miljø, Teknik og Forsyning",2,{"$f":"_xlfn.IFS(H48=\"\",\"\",H48=1,'KAN SKJULES Volumen-beregner'!$N$5,H48=2,'KAN SKJULES Volumen-beregner'!$L$5,H48=3,'KAN SKJULES Volumen-beregner'!$J$5,H48=4,'KAN SKJULES Volumen-beregner'!$H$5,H48=5,'KAN SKJULES Volumen-beregner'!$F$5)","v":12},1,1,0,0,0,0,1,null,"Tydelig afdeling samt sagsnummer",36]
["Ansøgningsblanketter","Vi sender ansøgningsblanket til diverse ordninger til arbejdsgivere/virksomheder","Virksomhed",null,"FASIT/Momentum","Anmodning om oplysninger","Arbejdsmarked og Erhverv",4,{"$f":"_xlfn.IFS(H49=\"\",\"\",H49=1,'KAN SKJULES Volumen-beregner'!$N$5,H49=2,'KAN SKJULES Volumen-beregner'!$L$5,H49=3,'KAN SKJULES Volumen-beregner'!$J$5,H49=4,'KAN SKJULES Volumen-beregner'!$H$5,H49=5,'KAN SKJULES Volumen-beregner'!$F$5)","v":130},1,0,0,1,1,1,1,null,"Sagsnr. og cpr.nr/cvr.nr.",650]
["Anmodning om status-udtalelser","Vi beder om udtalelse ved anbringelsesstedet, plejefam. og daginst. eller skolen","Virksomhed",null,"DUBU","Anmodning om oplysninger","Børn og Unge",4,{"$f":"_xlfn.IFS(H50=\"\",\"\",H50=1,'KAN SKJULES Volumen-beregner'!$N$5,H50=2,'KAN SKJULES Volumen-beregner'!$L$5,H50=3,'KAN SKJULES Volumen-beregner'!$J$5,H50=4,'KAN SKJULES Volumen-beregner'!$H$5,H50=5,'KAN SKJULES Volumen-beregner'!$F$5)","v":130},1,1,0,0,null,1,1,"Hvis modtager, modtager i e-bosk er skemaet en pdf, som der ikke kan redigeres i og sendes retur","Barnets cpr.nr.",520]
["Anmodning om oplysninger","Vi sender en blanket eller et brev, hvor borger skal udfylde oplysninger/vedhæfte dokumenter, som skal retur til os.","Borger",null,"FASIT/Momentum","Anmodning om oplysninger","Arbejdsmarked og Erhverv",4,{"$f":"_xlfn.IFS(H51=\"\",\"\",H51=1,'KAN SKJULES Volumen-beregner'!$N$5,H51=2,'KAN SKJULES Volumen-beregner'!$L$5,H51=3,'KAN SKJULES Volumen-beregner'!$J$5,H51=4,'KAN SKJULES Volumen-beregner'!$H$5,H51=5,'KAN SKJULES Volumen-beregner'!$F$5)","v":130},1,0,0,1,1,1,1,null,"Sagsnr. og cpr.nr.",650]
["Diverse blanketter/skemaer","Afsendelse af blanketter til udfyldelse - evt. videresendelse til anden myndighed Fx boligstøtte sag som skal ende hos UDK","Borger",null,"Nova","Anmodning om oplysninger","Demokrati og Involvering",4,{"$f":"_xlfn.IFS(H52=\"\",\"\",H52=1,'KAN SKJULES Volumen-beregner'!$N$5,H52=2,'KAN SKJULES Volumen-beregner'!$L$5,H52=3,'KAN SKJULES Volumen-beregner'!$J$5,H52=4,'KAN SKJULES Volumen-beregner'!$H$5,H52=5,'KAN SKJULES Volumen-beregner'!$F$5)","v":130},0,0,0,1,1,1,1,null,"Cpr. nummer",520]
["Forældrehøringer","Partshøring til ikke medflyttende forælder","Borger",null,"Notus/NOVA esdh","Anmodning om oplysninger","Demokrati og Involvering",4,{"$f":"_xlfn.IFS(H53=\"\",\"\",H53=1,'KAN SKJULES Volumen-beregner'!$N$5,H53=2,'KAN SKJULES Volumen-beregner'!$L$5,H53=3,'KAN SKJULES Volumen-beregner'!$J$5,H53=4,'KAN SKJULES Volumen-beregner'!$H$5,H53=5,'KAN SKJULES Volumen-beregner'!$F$5)","v":130},1,0,0,0,1,1,1,"Ser ikke digital/kan ikke digital post","CPR-NR",520]
["Hørings-brev","Høring af en kreds af borgere/virksomheder/foreninger","Borger/virksomhed/myndighed","Anden myndighed","Kortinfo/SBSYS","Anmodning om oplysninger","Miljø, Teknik og Forsyning",4,{"$f":"_xlfn.IFS(H54=\"\",\"\",H54=1,'KAN SKJULES Volumen-beregner'!$N$5,H54=2,'KAN SKJULES Volumen-beregner'!$L$5,H54=3,'KAN SKJULES Volumen-beregner'!$J$5,H54=4,'KAN SKJULES Volumen-beregner'!$H$5,H54=5,'KAN SKJULES Volumen-beregner'!$F$5)","v":130},1,0,0,0,1,1,1,"At finde korrekt adresse på borgere der bor i udlandet ","KLE",520]
["Indhentning af oplysninger","Sagsoplysning. Indhentning af faktuelle oplysninger om ejendomme, aftaler, korrespondance. Indhentes fra borgere, virksomheder, myndigheder","Borger/virksomhed/myndighed","Anden myndighed","Acadre","Anmodning om oplysninger","Miljø, Teknik og Forsyning",4,{"$f":"_xlfn.IFS(H55=\"\",\"\",H55=1,'KAN SKJULES Volumen-beregner'!$N$5,H55=2,'KAN SKJULES Volumen-beregner'!$L$5,H55=3,'KAN SKJULES Volumen-beregner'!$J$5,H55=4,'KAN SKJULES Volumen-beregner'!$H$5,H55=5,'KAN SKJULES Volumen-beregner'!$F$5)","v":130},1,0,0,0,0,1,1,null,"kommunens sagsnr",390]
["BFU (parts-høring)","Partshøring på udarbejdet Børnefaglig undersøgelse","Borger",null,"SBSYS / Outlook / DUBU","Anmodning om oplysninger","Børn og Unge",4,{"$f":"_xlfn.IFS(H56=\"\",\"\",H56=1,'KAN SKJULES Volumen-beregner'!$N$5,H56=2,'KAN SKJULES Volumen-beregner'!$L$5,H56=3,'KAN SKJULES Volumen-beregner'!$J$5,H56=4,'KAN SKJULES Volumen-beregner'!$H$5,H56=5,'KAN SKJULES Volumen-beregner'!$F$5)","v":130},1,1,0,0,0,1,null,null,null,390]
["Partshøringer","Borger partshøres før afgørelse","Borger",null,"FASIT/Momentum","Anmodning om oplysninger","Arbejdsmarked og Erhverv",4,{"$f":"_xlfn.IFS(H57=\"\",\"\",H57=1,'KAN SKJULES Volumen-beregner'!$N$5,H57=2,'KAN SKJULES Volumen-beregner'!$L$5,H57=3,'KAN SKJULES Volumen-beregner'!$J$5,H57=4,'KAN SKJULES Volumen-beregner'!$H$5,H57=5,'KAN SKJULES Volumen-beregner'!$F$5)","v":130},1,0,0,0,0,1,1,null,"Sagsnr. og cpr.nr.",390]
["Partshøringer","Oplysning af sag /indhentelse af oplysninger fra borger/gøre borger bekendt med de oplysninger vi har i en sag","Borger",null,"ESDH (evt.NOTUS)","Anmodning om oplysninger","Demokrati og Involvering",4,{"$f":"_xlfn.IFS(H58=\"\",\"\",H58=1,'KAN SKJULES Volumen-beregner'!$N$5,H58=2,'KAN SKJULES Volumen-beregner'!$L$5,H58=3,'KAN SKJULES Volumen-beregner'!$J$5,H58=4,'KAN SKJULES Volumen-beregner'!$H$5,H58=5,'KAN SKJULES Volumen-beregner'!$F$5)","v":130},1,0,0,0,0,1,1,"Ser ikke digital post/kan ikke tilgå digital post","CPR-NR",390]
["Helbreds-skema,","Udfyldelse og opdatering af helbredsskema ved alle undersøgelser og inden alle behandlinger","Borger",null,"TK2","Anmodning om oplysninger","Social og Sundhed",4,{"$f":"_xlfn.IFS(H59=\"\",\"\",H59=1,'KAN SKJULES Volumen-beregner'!$N$5,H59=2,'KAN SKJULES Volumen-beregner'!$L$5,H59=3,'KAN SKJULES Volumen-beregner'!$J$5,H59=4,'KAN SKJULES Volumen-beregner'!$H$5,H59=5,'KAN SKJULES Volumen-beregner'!$F$5)","v":130},1,0,0,1,0,1,null,null,null,390]
["Anmodning om Børneattester","Vi anmoder om en børneattest hos politiet. Den ansatte godkender at informationen må deles med os og politiet returnerer","Myndighed","Politi","OPUS Personalemappen?","Anmodning om oplysninger","Administration og Organisation",4,{"$f":"_xlfn.IFS(H60=\"\",\"\",H60=1,'KAN SKJULES Volumen-beregner'!$N$5,H60=2,'KAN SKJULES Volumen-beregner'!$L$5,H60=3,'KAN SKJULES Volumen-beregner'!$J$5,H60=4,'KAN SKJULES Volumen-beregner'!$H$5,H60=5,'KAN SKJULES Volumen-beregner'!$F$5)","v":130},0,0,0,0,0,1,1,null,"CPR-nummer, p-nummer på den rekvirerende afdeling, Hvorvidt børneattest er med eller uden bemærkning",260]
["Anmodning om Straffeattest","Vi anmoder om en straffeattest hos politiet. Den ansatte godkender at informationen må deles med os og politiet returnerer","Myndighed","Politi","OPUS Personalemappen?","Anmodning om oplysninger","Administration og Organisation",4,{"$f":"_xlfn.IFS(H61=\"\",\"\",H61=1,'KAN SKJULES Volumen-beregner'!$N$5,H61=2,'KAN SKJULES Volumen-beregner'!$L$5,H61=3,'KAN SKJULES Volumen-beregner'!$J$5,H61=4,'KAN SKJULES Volumen-beregner'!$H$5,H61=5,'KAN SKJULES Volumen-beregner'!$F$5)","v":130},0,0,null,0,0,1,1,null,"CPR-nummer, p-nummer på den rekvirerende afdeling, Hvorvidt straffeattest er med eller uden bemærkning",260]
["Høringer lokalplaner m.v.","Måske er høringer af lokalplaner ikke det rigtige eksempel, da borgere og virksomheder sender svar via en portal, men det kunne være andre høringer.","Borger",null,"eDoc","Anmodning om oplysninger","Administration og Organisation",3,{"$f":"_xlfn.IFS(H62=\"\",\"\",H62=1,'KAN SKJULES Volumen-beregner'!$N$5,H62=2,'KAN SKJULES Volumen-beregner'!$L$5,H62=3,'KAN SKJULES Volumen-beregner'!$J$5,H62=4,'KAN SKJULES Volumen-beregner'!$H$5,H62=5,'KAN SKJULES Volumen-beregner'!$F$5)","v":26},1,0,0,1,1,1,1,null,"Ja, sagsnummer, sagsbehandler, KLE",130]
["Høringer lokalplaner m.v.","Måske er høringer af lokalplaner ikke det rigtige eksempel, da borgere og virksomheder sender svar via en portal, men det kunne være andre høringer.","Virksomhed",null,"eDoc","Anmodning om oplysninger","Administration og Organisation",3,{"$f":"_xlfn.IFS(H63=\"\",\"\",H63=1,'KAN SKJULES Volumen-beregner'!$N$5,H63=2,'KAN SKJULES Volumen-beregner'!$L$5,H63=3,'KAN SKJULES Volumen-beregner'!$J$5,H63=4,'KAN SKJULES Volumen-beregner'!$H$5,H63=5,'KAN SKJULES Volumen-beregner'!$F$5)","v":26},1,0,0,1,1,1,1,null,"Ja, sagsnummer, sagsbehandler, KLE",130]
["Screening/udredning ","Udredning eller screening i forbindelse med afdækning af borgers behov, hvor borger/forældre skal besvare spørgsmål","Borger",null,"Novax, DUBU, DOMUS, CSC Social, eDoc","Anmodning om oplysninger","Social og Sundhed",3,{"$f":"_xlfn.IFS(H64=\"\",\"\",H64=1,'KAN SKJULES Volumen-beregner'!$N$5,H64=2,'KAN SKJULES Volumen-beregner'!$L$5,H64=3,'KAN SKJULES Volumen-beregner'!$J$5,H64=4,'KAN SKJULES Volumen-beregner'!$H$5,H64=5,'KAN SKJULES Volumen-beregner'!$F$5)","v":26},1,1,0,0,1,1,1,"Forskellige metoder og it systemer anvendes til denne proces, stiolles til rådighed for styrelser. Sender link til borgeren via sikker mail til undersøgelsen",null,130]
["Anmodning om sundhedsoplysninger","Sker gennem Netforvaltning sundhed","Myndighed","Region","Netforvaltning Sundhed","Anmodning om oplysninger","Arbejdsmarked og Erhverv",4,{"$f":"_xlfn.IFS(H65=\"\",\"\",H65=1,'KAN SKJULES Volumen-beregner'!$N$5,H65=2,'KAN SKJULES Volumen-beregner'!$L$5,H65=3,'KAN SKJULES Volumen-beregner'!$J$5,H65=4,'KAN SKJULES Volumen-beregner'!$H$5,H65=5,'KAN SKJULES Volumen-beregner'!$F$5)","v":130},1,null,null,null,null,null,null,null,null,130]
["Ansøgning om forhåndstilsagn","Anmodning om forhåndstilsagn om tandbehandling i Regionen","Myndighed","Region","Outlook","Anmodning om oplysninger","Børn og Unge",3,{"$f":"_xlfn.IFS(H66=\"\",\"\",H66=1,'KAN SKJULES Volumen-beregner'!$N$5,H66=2,'KAN SKJULES Volumen-beregner'!$L$5,H66=3,'KAN SKJULES Volumen-beregner'!$J$5,H66=4,'KAN SKJULES Volumen-beregner'!$H$5,H66=5,'KAN SKJULES Volumen-beregner'!$F$5)","v":26},1,0,0,1,0,1,1,"Forhåndstilsagn når barnet fylder 18 år, bortfalder på et tidspunkt.","Barnets cpr.nr.",104]
["opfølgning og personrettet tilsyn","Personrettet tilsynsforpligtelse ved f.eks. borger anbragt på bosted","Virksomhed",null,"DUBU, DOMUS, CSC Social","Anmodning om oplysninger","Social og Sundhed",3,{"$f":"_xlfn.IFS(H67=\"\",\"\",H67=1,'KAN SKJULES Volumen-beregner'!$N$5,H67=2,'KAN SKJULES Volumen-beregner'!$L$5,H67=3,'KAN SKJULES Volumen-beregner'!$J$5,H67=4,'KAN SKJULES Volumen-beregner'!$H$5,H67=5,'KAN SKJULES Volumen-beregner'!$F$5)","v":26},1,0,0,0,1,1,1,"dialog med leverandør om forhold eller aftale om dato for fysisk møde med borger på tilbuddet",null,104]
["Anmodning om lægeattest","kommune indhenter lægeattest","Virksomhed",null,"FASIT/Momentum","Anmodning om oplysninger","Arbejdsmarked og Erhverv",3,{"$f":"_xlfn.IFS(H68=\"\",\"\",H68=1,'KAN SKJULES Volumen-beregner'!$N$5,H68=2,'KAN SKJULES Volumen-beregner'!$L$5,H68=3,'KAN SKJULES Volumen-beregner'!$J$5,H68=4,'KAN SKJULES Volumen-beregner'!$H$5,H68=5,'KAN SKJULES Volumen-beregner'!$F$5)","v":26},1,0,0,0,0,1,1,null,"journalnummer, cpr",78]
["Anmodning - kontooplysninger","kommune skal indhente opl. fra bank","Virksomhed",null,"FASIT/Momentum","Anmodning om oplysninger","Arbejdsmarked og Erhverv",3,{"$f":"_xlfn.IFS(H69=\"\",\"\",H69=1,'KAN SKJULES Volumen-beregner'!$N$5,H69=2,'KAN SKJULES Volumen-beregner'!$L$5,H69=3,'KAN SKJULES Volumen-beregner'!$J$5,H69=4,'KAN SKJULES Volumen-beregner'!$H$5,H69=5,'KAN SKJULES Volumen-beregner'!$F$5)","v":26},1,0,0,0,0,1,1,"bankerne har deres interne sikre forsendelsessystem efter login, begrænset brug af digital post","journalnummer, cpr",{"$f":"IFERROR((J69+K69+L69+M69+N69+O69+P69)*I69,0)","v":78}]
["Høring: påtænkt opsigelse","Når en ansat skal opsiges, skal der sendes et høringsbrev ud til vedkommende. Dette brev har den ansatte mulighed for at komme med indvendinger til","Borger",null,"SBSYS","Anmodning om oplysninger","Administration og Organisation",3,{"$f":"_xlfn.IFS(H70=\"\",\"\",H70=1,'KAN SKJULES Volumen-beregner'!$N$5,H70=2,'KAN SKJULES Volumen-beregner'!$L$5,H70=3,'KAN SKJULES Volumen-beregner'!$J$5,H70=4,'KAN SKJULES Volumen-beregner'!$H$5,H70=5,'KAN SKJULES Volumen-beregner'!$F$5)","v":26},1,0,0,0,0,1,1,null,"CPR-nummer",78]
["Handleplan (partshøring)","Handleplan sendes i partshøring hos part","Borger",null,"DUBU","Anmodning om oplysninger","Børn og Unge",3,{"$f":"_xlfn.IFS(H71=\"\",\"\",H71=1,'KAN SKJULES Volumen-beregner'!$N$5,H71=2,'KAN SKJULES Volumen-beregner'!$L$5,H71=3,'KAN SKJULES Volumen-beregner'!$J$5,H71=4,'KAN SKJULES Volumen-beregner'!$H$5,H71=5,'KAN SKJULES Volumen-beregner'!$F$5)","v":26},1,0,0,0,0,1,1,null,"Barnets cpr",78]
["Anmodning om status","Myndigehd anmoder om status påbarn hos skole, inst, plejafam. eller lign via skema","Virksomhed",null,"SBSYS/Outlook","Anmodning om oplysninger","Børn og Unge",3,{"$f":"_xlfn.IFS(H72=\"\",\"\",H72=1,'KAN SKJULES Volumen-beregner'!$N$5,H72=2,'KAN SKJULES Volumen-beregner'!$L$5,H72=3,'KAN SKJULES Volumen-beregner'!$J$5,H72=4,'KAN SKJULES Volumen-beregner'!$H$5,H72=5,'KAN SKJULES Volumen-beregner'!$F$5)","v":26},1,1,0,0,0,1,null,null,null,78]
["Privat Tandlægevalg","Valg af privat tandlæge, når den unge fylder 18 år﻿","Borger",null,"TK2","Anmodning om oplysninger","Social og Sundhed",3,{"$f":"_xlfn.IFS(H73=\"\",\"\",H73=1,'KAN SKJULES Volumen-beregner'!$N$5,H73=2,'KAN SKJULES Volumen-beregner'!$L$5,H73=3,'KAN SKJULES Volumen-beregner'!$J$5,H73=4,'KAN SKJULES Volumen-beregner'!$H$5,H73=5,'KAN SKJULES Volumen-beregner'!$F$5)","v":26},1,0,0,1,0,0,1,null,null,78]
["Miljø-screening ","Miljøscreeningen er en form for stjernehøring som sendes til flere forskellige myndighedsområde, både internt og eksternt. Der er en frist og myndighederne skal ind og forholde sig til hvert sit fagområde og afgive et svar.","Internt i kommunen",null,"Outlook","Anmodning om oplysninger","Miljø, Teknik og Forsyning",2,{"$f":"_xlfn.IFS(H74=\"\",\"\",H74=1,'KAN SKJULES Volumen-beregner'!$N$5,H74=2,'KAN SKJULES Volumen-beregner'!$L$5,H74=3,'KAN SKJULES Volumen-beregner'!$J$5,H74=4,'KAN SKJULES Volumen-beregner'!$H$5,H74=5,'KAN SKJULES Volumen-beregner'!$F$5)","v":12},1,0,0,0,1,1,1,null,"Journalnr., geografisk punkt/areal",48]
["Verificering af navne","Verificering af navne ved kirkeministeriet/sogne i forhold til navngivning/navneændring (Personregister - Sønderjyske kommuner)","Myndighed","Kirkeministeriet","Personregister / Outlook / Nova","Anmodning om oplysninger","Demokrati og Involvering",3,{"$f":"_xlfn.IFS(H75=\"\",\"\",H75=1,'KAN SKJULES Volumen-beregner'!$N$5,H75=2,'KAN SKJULES Volumen-beregner'!$L$5,H75=3,'KAN SKJULES Volumen-beregner'!$J$5,H75=4,'KAN SKJULES Volumen-beregner'!$H$5,H75=5,'KAN SKJULES Volumen-beregner'!$F$5)","v":26},0,0,0,0,0,0,1,null,"CPR nummer",26]
["Indhentning af indkomst fra Skattestyrelsen","Indhentning af indkomst oplysninger i forbindelse med sag om korrekt bopælsregistrering","Myndighed","Skattestyrelsen","NOVA","Anmodning om oplysninger","Demokrati og Involvering",3,{"$f":"_xlfn.IFS(H76=\"\",\"\",H76=1,'KAN SKJULES Volumen-beregner'!$N$5,H76=2,'KAN SKJULES Volumen-beregner'!$L$5,H76=3,'KAN SKJULES Volumen-beregner'!$J$5,H76=4,'KAN SKJULES Volumen-beregner'!$H$5,H76=5,'KAN SKJULES Volumen-beregner'!$F$5)","v":26},1,0,0,0,0,0,1,null,"CPR.NR",52]
["Befordringsgodtgørelse","Ansøgningsskema vedr. udbetaling af kørsel","Borger",null,"FASIT/Momentum","Anmodning om oplysninger","Arbejdsmarked og Erhverv",3,{"$f":"_xlfn.IFS(H77=\"\",\"\",H77=1,'KAN SKJULES Volumen-beregner'!$N$5,H77=2,'KAN SKJULES Volumen-beregner'!$L$5,H77=3,'KAN SKJULES Volumen-beregner'!$J$5,H77=4,'KAN SKJULES Volumen-beregner'!$H$5,H77=5,'KAN SKJULES Volumen-beregner'!$F$5)","v":26},0,0,0,1,0,0,1,null,"cpr.",52]
["Anm. om indsendelse af timesedel","Selvudpegede hjemmehjælper anmodes om at indsende timeseddel for den forgangne måned. Selve indsendelsen skal ske via en selvbetjeningsløsning","Borger",null,"ServiceNow","Anmodning om oplysninger","Administration og Organisation",2,{"$f":"_xlfn.IFS(H78=\"\",\"\",H78=1,'KAN SKJULES Volumen-beregner'!$N$5,H78=2,'KAN SKJULES Volumen-beregner'!$L$5,H78=3,'KAN SKJULES Volumen-beregner'!$J$5,H78=4,'KAN SKJULES Volumen-beregner'!$H$5,H78=5,'KAN SKJULES Volumen-beregner'!$F$5)","v":12},0,0,0,0,1,1,0,null,"nej, der er ikke noget retursvar",24]
["kopi af partshøringer","Fagforening/TR modtager kopi af partshøring i f.eks. afskedigelsessager","Virksomhed",null,"ServiceNow","Anmodning om oplysninger","Administration og Organisation",2,{"$f":"_xlfn.IFS(H79=\"\",\"\",H79=1,'KAN SKJULES Volumen-beregner'!$N$5,H79=2,'KAN SKJULES Volumen-beregner'!$L$5,H79=3,'KAN SKJULES Volumen-beregner'!$J$5,H79=4,'KAN SKJULES Volumen-beregner'!$H$5,H79=5,'KAN SKJULES Volumen-beregner'!$F$5)","v":12},1,0,0,0,0,1,1,null,"sagsnummer, navn på medarbejder, navn på fagforening/TR som der sendes til, eksisterende journalnummer",36]
["Lægeerklæringer","Anmodning om lægeerklæringer ","Myndighed","Region","Netforvaltning","Anmodning om oplysninger","Børn og Unge",2,{"$f":"_xlfn.IFS(H80=\"\",\"\",H80=1,'KAN SKJULES Volumen-beregner'!$N$5,H80=2,'KAN SKJULES Volumen-beregner'!$L$5,H80=3,'KAN SKJULES Volumen-beregner'!$J$5,H80=4,'KAN SKJULES Volumen-beregner'!$H$5,H80=5,'KAN SKJULES Volumen-beregner'!$F$5)","v":12},1,0,0,0,0,1,null,null,null,24]
["Skoleindskrivning 0. klasse","Indskrivning til 0.klasse","Borger",null,null,"Anmodning om oplysninger","Børn og Unge",2,{"$f":"_xlfn.IFS(H81=\"\",\"\",H81=1,'KAN SKJULES Volumen-beregner'!$N$5,H81=2,'KAN SKJULES Volumen-beregner'!$L$5,H81=3,'KAN SKJULES Volumen-beregner'!$J$5,H81=4,'KAN SKJULES Volumen-beregner'!$H$5,H81=5,'KAN SKJULES Volumen-beregner'!$F$5)","v":12},1,null,null,null,null,1,null,null,null,24]
["Varme/el/vandregnskaber og opgøreler","Indhentelse af oplysninger fra el-skaber og forsyningsvirksomheder i forbindels emed bopælssager","Borger",null,"NOVA","Anmodning om oplysninger","Demokrati og Involvering",2,{"$f":"_xlfn.IFS(H82=\"\",\"\",H82=1,'KAN SKJULES Volumen-beregner'!$N$5,H82=2,'KAN SKJULES Volumen-beregner'!$L$5,H82=3,'KAN SKJULES Volumen-beregner'!$J$5,H82=4,'KAN SKJULES Volumen-beregner'!$H$5,H82=5,'KAN SKJULES Volumen-beregner'!$F$5)","v":12},1,0,0,0,0,0,1,null,"CPR-nr, område for ansættelsen, HR-medarbejder, der også skal have straffeattesten",24]
["Anmodning om Straffeattest","Indhentelse af straffeattester fra Politiet ved ansættelser. Inden de bliver videresendt via systemet, skal personen give et samtykke om det.","Myndighed","Politi","Personalesystem?","Anmodning om oplysninger","Demokrati og Involvering",1,{"$f":"_xlfn.IFS(H83=\"\",\"\",H83=1,'KAN SKJULES Volumen-beregner'!$N$5,H83=2,'KAN SKJULES Volumen-beregner'!$L$5,H83=3,'KAN SKJULES Volumen-beregner'!$J$5,H83=4,'KAN SKJULES Volumen-beregner'!$H$5,H83=5,'KAN SKJULES Volumen-beregner'!$F$5)","v":1},1,0,0,1,1,1,1,null,"CPR-nr, område for ansættelsen, HR-medarbejder, der også skal have straffeattesten",5]
["Gennemgang af regnskaber for selvstændige","Selvstændige bliver bedt om at indsende regnskaber i forbindelse med årlig efterregulering. BDO laver beregninger, der indtastes i KMD, hvorefter beregning udsendes.","Virksomhed",null,"KMDi2","Anmodning om oplysninger","Børn og Unge",1,{"$f":"_xlfn.IFS(H84=\"\",\"\",H84=1,'KAN SKJULES Volumen-beregner'!$N$5,H84=2,'KAN SKJULES Volumen-beregner'!$L$5,H84=3,'KAN SKJULES Volumen-beregner'!$J$5,H84=4,'KAN SKJULES Volumen-beregner'!$H$5,H84=5,'KAN SKJULES Volumen-beregner'!$F$5)","v":1},1,1,0,0,0,1,1,"Friplads tilskud reguleres, og der er indsigelsesfrist på afgørelsen","Forældres cpr.nr.",4]
["Vielsessager","Returnering af sag pga manglende oplysninger, forespørgsler omkring konkret sag","Myndighed",null,"EG samt office Outlook, Dafolo Vielse","Anmodning om oplysninger","Demokrati og Involvering",1,{"$f":"_xlfn.IFS(H85=\"\",\"\",H85=1,'KAN SKJULES Volumen-beregner'!$N$5,H85=2,'KAN SKJULES Volumen-beregner'!$L$5,H85=3,'KAN SKJULES Volumen-beregner'!$J$5,H85=4,'KAN SKJULES Volumen-beregner'!$H$5,H85=5,'KAN SKJULES Volumen-beregner'!$F$5)","v":1},1,0,0,0,0,1,1,"Svarfrist fra Familieretshuset","Ægteskabsnummer, prøvelsesnummer, cpr.nummer",3]
["Forespørgsel om tolkning af lovgivning kan være til alle styrelser","Forespørgsel om tolkning af lovgivning kan være til alle styrelser","Myndighed","Anden myndighed","Acadre","Anmodning om oplysninger","Miljø, Teknik og Forsyning",1,{"$f":"_xlfn.IFS(H86=\"\",\"\",H86=1,'KAN SKJULES Volumen-beregner'!$N$5,H86=2,'KAN SKJULES Volumen-beregner'!$L$5,H86=3,'KAN SKJULES Volumen-beregner'!$J$5,H86=4,'KAN SKJULES Volumen-beregner'!$H$5,H86=5,'KAN SKJULES Volumen-beregner'!$F$5)","v":1},1,0,0,0,1,0,1,"Vedhæftninger","Jr.nr. og løbenr.",3]
["Ansøgning om tilladelse/dispensation","Ansøgning om tilladelse/dispensation ved Kystdirektoratet, Miljøstyrelsen m.fl.","Myndighed","Kystdirektoratet\nMiljøstyrelsen, etc.","Outlook/mail","Anmodning om oplysninger","Miljø, Teknik og Forsyning",1,{"$f":"_xlfn.IFS(H87=\"\",\"\",H87=1,'KAN SKJULES Volumen-beregner'!$N$5,H87=2,'KAN SKJULES Volumen-beregner'!$L$5,H87=3,'KAN SKJULES Volumen-beregner'!$J$5,H87=4,'KAN SKJULES Volumen-beregner'!$H$5,H87=5,'KAN SKJULES Volumen-beregner'!$F$5)","v":1},1,0,0,0,0,0,1,null,"Journalnr.",2]
["Ansøgninger - uledsagede flygtningebørn","Ansøgning sendes til Udlændigstyrelsen  mhp vurdering af evt refusion","Myndighed","Udlændingestyrelsen","Outlook","Anmodning om oplysninger","Børn og Unge",1,{"$f":"_xlfn.IFS(H88=\"\",\"\",H88=1,'KAN SKJULES Volumen-beregner'!$N$5,H88=2,'KAN SKJULES Volumen-beregner'!$L$5,H88=3,'KAN SKJULES Volumen-beregner'!$J$5,H88=4,'KAN SKJULES Volumen-beregner'!$H$5,H88=5,'KAN SKJULES Volumen-beregner'!$F$5)","v":1},null,null,null,null,null,null,null,null,null,0]
["Logiværtserklæring","Hvor borger ikke står på lejekontrakten","Borger",null,"Cpr register","Anmodning om underskrift","Demokrati og Involvering",4,{"$f":"_xlfn.IFS(H89=\"\",\"\",H89=1,'KAN SKJULES Volumen-beregner'!$N$5,H89=2,'KAN SKJULES Volumen-beregner'!$L$5,H89=3,'KAN SKJULES Volumen-beregner'!$J$5,H89=4,'KAN SKJULES Volumen-beregner'!$H$5,H89=5,'KAN SKJULES Volumen-beregner'!$F$5)","v":130},1,0,0,1,1,1,1,"Ser ikke post, NemID er blevet låst, Glemt kodeord.","CPR-nummer",650]
["Samtykkeerklæringer,","Forældre skal give samtykke til alle behandlinger osv. Hvis de ikke har været med til undersøgelse, skal de derfor give accept til planlagte behandlinger.","Borger",null,"TK2","Anmodning om underskrift","Social og Sundhed",4,{"$f":"_xlfn.IFS(H90=\"\",\"\",H90=1,'KAN SKJULES Volumen-beregner'!$N$5,H90=2,'KAN SKJULES Volumen-beregner'!$L$5,H90=3,'KAN SKJULES Volumen-beregner'!$J$5,H90=4,'KAN SKJULES Volumen-beregner'!$H$5,H90=5,'KAN SKJULES Volumen-beregner'!$F$5)","v":130},1,0,0,1,1,1,1,null,null,650]
["Anmodning om Samtykkeerklæringer (gælder alle borgere)","Der indhentes samtykke i mange forskellige sammenhænge - processen kan være ens (send anmodning og modtag retur)","Borger",null,"Fagsystem / ESDH","Anmodning om underskrift","Administration og Organisation",4,{"$f":"_xlfn.IFS(H91=\"\",\"\",H91=1,'KAN SKJULES Volumen-beregner'!$N$5,H91=2,'KAN SKJULES Volumen-beregner'!$L$5,H91=3,'KAN SKJULES Volumen-beregner'!$J$5,H91=4,'KAN SKJULES Volumen-beregner'!$H$5,H91=5,'KAN SKJULES Volumen-beregner'!$F$5)","v":130},1,0,0,1,0,1,1,null,"CPR, sagsnr, dokumentnr, KLE",520]
["Samtykke til indhentning og videregivelse af oplysninger","Samtykke","Borger",null,"FASIT/Momentum","Anmodning om underskrift","Arbejdsmarked og Erhverv",4,{"$f":"_xlfn.IFS(H92=\"\",\"\",H92=1,'KAN SKJULES Volumen-beregner'!$N$5,H92=2,'KAN SKJULES Volumen-beregner'!$L$5,H92=3,'KAN SKJULES Volumen-beregner'!$J$5,H92=4,'KAN SKJULES Volumen-beregner'!$H$5,H92=5,'KAN SKJULES Volumen-beregner'!$F$5)","v":130},0,0,0,1,1,1,1,null,"Cpr.nr.",520]
["Tro og love erklæringer","i fb. med anmodning om ydelser","Borger",null,"FASIT/Momentum","Anmodning om underskrift","Arbejdsmarked og Erhverv",4,{"$f":"_xlfn.IFS(H93=\"\",\"\",H93=1,'KAN SKJULES Volumen-beregner'!$N$5,H93=2,'KAN SKJULES Volumen-beregner'!$L$5,H93=3,'KAN SKJULES Volumen-beregner'!$J$5,H93=4,'KAN SKJULES Volumen-beregner'!$H$5,H93=5,'KAN SKJULES Volumen-beregner'!$F$5)","v":130},1,0,0,1,0,null,1,null,"cpr - journal",390]
["Kontrakter (hvis mhp underskrif)","Udsendelse af kontrakt til samarbejdsparner","Myndighed","Tilbud","DUBU ","Anmodning om underskrift","Børn og Unge",4,{"$f":"_xlfn.IFS(H94=\"\",\"\",H94=1,'KAN SKJULES Volumen-beregner'!$N$5,H94=2,'KAN SKJULES Volumen-beregner'!$L$5,H94=3,'KAN SKJULES Volumen-beregner'!$J$5,H94=4,'KAN SKJULES Volumen-beregner'!$H$5,H94=5,'KAN SKJULES Volumen-beregner'!$F$5)","v":130},1,0,0,1,0,0,null,null,null,260]
["Kontrakter","Indgåelse af kontrakt (salg af pladser til andre kommuner)","Myndighed","Anden kommune","SBSYS og Nexus","Anmodning om underskrift","Social og Sundhed",3,{"$f":"_xlfn.IFS(H95=\"\",\"\",H95=1,'KAN SKJULES Volumen-beregner'!$N$5,H95=2,'KAN SKJULES Volumen-beregner'!$L$5,H95=3,'KAN SKJULES Volumen-beregner'!$J$5,H95=4,'KAN SKJULES Volumen-beregner'!$H$5,H95=5,'KAN SKJULES Volumen-beregner'!$F$5)","v":26},1,1,1,1,0,1,1,null,null,156]
["Kontrakter","Kontrakter bliver lavet af kommunen og sendt til underskrift hos en leverandør. Evt. med digital godkendelse/underskrift af kontrakt  og derfra returnering af godkendt kontrakt til afsender","Virksomhed",null,"eDoc","Anmodning om underskrift","Administration og Organisation",3,{"$f":"_xlfn.IFS(H96=\"\",\"\",H96=1,'KAN SKJULES Volumen-beregner'!$N$5,H96=2,'KAN SKJULES Volumen-beregner'!$L$5,H96=3,'KAN SKJULES Volumen-beregner'!$J$5,H96=4,'KAN SKJULES Volumen-beregner'!$H$5,H96=5,'KAN SKJULES Volumen-beregner'!$F$5)","v":26},1,0,0,1,1,1,1,null,"Sagsnummer, sagsbehandler, KLE",130]
["Ansættelsesbrev","Der sendes ansættelsesbrev i forbindelse med ansættelse - brevet kan indeholde forskellige materiale","Borger",null,"Løn-/personalesystem","Anmodning om underskrift","Administration og Organisation",3,{"$f":"_xlfn.IFS(H97=\"\",\"\",H97=1,'KAN SKJULES Volumen-beregner'!$N$5,H97=2,'KAN SKJULES Volumen-beregner'!$L$5,H97=3,'KAN SKJULES Volumen-beregner'!$J$5,H97=4,'KAN SKJULES Volumen-beregner'!$H$5,H97=5,'KAN SKJULES Volumen-beregner'!$F$5)","v":26},1,1,0,1,0,1,1,null,"CPR-nr",130]
["Lejekontrakter","Boligkontoret udsender lejekontrakter til kollegie/plejebolig. Lejer skal udfylde, underskrive og sende tilbage. Lejekontrakten skal journaliseres.","Borger",null,"SBSYS","Anmodning om underskrift","Miljø, Teknik og Forsyning",3,{"$f":"_xlfn.IFS(H98=\"\",\"\",H98=1,'KAN SKJULES Volumen-beregner'!$N$5,H98=2,'KAN SKJULES Volumen-beregner'!$L$5,H98=3,'KAN SKJULES Volumen-beregner'!$J$5,H98=4,'KAN SKJULES Volumen-beregner'!$H$5,H98=5,'KAN SKJULES Volumen-beregner'!$F$5)","v":26},1,0,0,1,0,1,1,null,"Cpr nummer",104]
["Betalingstilsagn","Betalingstilsagn mellem afdelinger eller kommuner","Myndighed","Anden kommune","eDoc","Anmodning om underskrift","Social og Sundhed",3,{"$f":"_xlfn.IFS(H99=\"\",\"\",H99=1,'KAN SKJULES Volumen-beregner'!$N$5,H99=2,'KAN SKJULES Volumen-beregner'!$L$5,H99=3,'KAN SKJULES Volumen-beregner'!$J$5,H99=4,'KAN SKJULES Volumen-beregner'!$H$5,H99=5,'KAN SKJULES Volumen-beregner'!$F$5)","v":26},1,0,0,1,0,1,1,null,null,104]
["Se adgange til bank og betalingskort Kvitteringer","Ansatte skal kvittere for se adgange til bank og udstedelse af betalingskort","Borger",null,"ServiceNow","Anmodning om underskrift","Administration og Organisation",3,{"$f":"_xlfn.IFS(H100=\"\",\"\",H100=1,'KAN SKJULES Volumen-beregner'!$N$5,H100=2,'KAN SKJULES Volumen-beregner'!$L$5,H100=3,'KAN SKJULES Volumen-beregner'!$J$5,H100=4,'KAN SKJULES Volumen-beregner'!$H$5,H100=5,'KAN SKJULES Volumen-beregner'!$F$5)","v":26},0,0,0,1,1,1,1,null,"CPR, sagsnummer",104]
["Samtykkeerklæring (kræver underskrift)","kommune skal indhente opl. med borgers samtykke","Borger",null,"FASIT/Momentum","Anmodning om underskrift","Arbejdsmarked og Erhverv",3,{"$f":"_xlfn.IFS(H101=\"\",\"\",H101=1,'KAN SKJULES Volumen-beregner'!$N$5,H101=2,'KAN SKJULES Volumen-beregner'!$L$5,H101=3,'KAN SKJULES Volumen-beregner'!$J$5,H101=4,'KAN SKJULES Volumen-beregner'!$H$5,H101=5,'KAN SKJULES Volumen-beregner'!$F$5)","v":26},1,0,0,1,0,1,1,null,"journalnummer, cpr",104]
["lønoplæg til godkendelse","Fagforeningen/tillidsrepræsentanten skal godkende den løn den nye medarbejder skal have, eller en ændring af løn vedr. en allerede ansat","Virksomhed",null,"ServiceNow","Anmodning om underskrift","Administration og Organisation",3,{"$f":"_xlfn.IFS(H102=\"\",\"\",H102=1,'KAN SKJULES Volumen-beregner'!$N$5,H102=2,'KAN SKJULES Volumen-beregner'!$L$5,H102=3,'KAN SKJULES Volumen-beregner'!$J$5,H102=4,'KAN SKJULES Volumen-beregner'!$H$5,H102=5,'KAN SKJULES Volumen-beregner'!$F$5)","v":26},1,0,0,1,0,1,1,null,"sagsnummer, navn på medarbejder, evt. eksisterende journalnummer.",104]
["Oplysningspligt (kræver underskrift)","kommune skal kunne dokumentere, at borger er oplyst om sin opl.pligt","Borger",null,"FASIT/Momentum","Anmodning om underskrift","Arbejdsmarked og Erhverv",3,{"$f":"_xlfn.IFS(H103=\"\",\"\",H103=1,'KAN SKJULES Volumen-beregner'!$N$5,H103=2,'KAN SKJULES Volumen-beregner'!$L$5,H103=3,'KAN SKJULES Volumen-beregner'!$J$5,H103=4,'KAN SKJULES Volumen-beregner'!$H$5,H103=5,'KAN SKJULES Volumen-beregner'!$F$5)","v":26},0,0,0,1,0,1,1,null,"journalnummer, cpr",78]
["Anmodning om samtykke","Samtykkeerklæring","Borger",null,"DUBU/ESDH","Anmodning om underskrift","Børn og Unge",2,{"$f":"_xlfn.IFS(H104=\"\",\"\",H104=1,'KAN SKJULES Volumen-beregner'!$N$5,H104=2,'KAN SKJULES Volumen-beregner'!$L$5,H104=3,'KAN SKJULES Volumen-beregner'!$J$5,H104=4,'KAN SKJULES Volumen-beregner'!$H$5,H104=5,'KAN SKJULES Volumen-beregner'!$F$5)","v":12},1,0,null,1,null,1,1,null,"Barnets cpr",48]
["Databehandleraftaler","Digitale læremider eksempelvis","Virksomhed",null,"Outlook/ESDH","Anmodning om underskrift","Børn og Unge",2,{"$f":"_xlfn.IFS(H105=\"\",\"\",H105=1,'KAN SKJULES Volumen-beregner'!$N$5,H105=2,'KAN SKJULES Volumen-beregner'!$L$5,H105=3,'KAN SKJULES Volumen-beregner'!$J$5,H105=4,'KAN SKJULES Volumen-beregner'!$H$5,H105=5,'KAN SKJULES Volumen-beregner'!$F$5)","v":12},1,0,0,1,0,1,1,null,"Databehandleraftale",48]
["Kontrakter (hvis afsendt mhp underskrift)","Kontrakt til underskrift ved fx. anbringelsesstedet","Borger",null,"Outlook / DUBU","Anmodning om underskrift","Børn og Unge",2,{"$f":"_xlfn.IFS(H106=\"\",\"\",H106=1,'KAN SKJULES Volumen-beregner'!$N$5,H106=2,'KAN SKJULES Volumen-beregner'!$L$5,H106=3,'KAN SKJULES Volumen-beregner'!$J$5,H106=4,'KAN SKJULES Volumen-beregner'!$H$5,H106=5,'KAN SKJULES Volumen-beregner'!$F$5)","v":12},1,0,0,1,0,1,1,"Kan gå begge veje. Anbrigelsesstedet kan have deres egen kontrakt, som de sender til kommunen - og kommunen kan sende en kontrakt til anbringelsesstedet","Barnets cpr.nr.",48]
["Forpagtningskontrakter ","En landmand har budt på et areal, han/hun gerne vil forpagte. Vi sender en forpagtningsaftale som skal underskrive af begge parter","Virksomhed",null,"SBSYS","Anmodning om underskrift","Miljø, Teknik og Forsyning",1,{"$f":"_xlfn.IFS(H107=\"\",\"\",H107=1,'KAN SKJULES Volumen-beregner'!$N$5,H107=2,'KAN SKJULES Volumen-beregner'!$L$5,H107=3,'KAN SKJULES Volumen-beregner'!$J$5,H107=4,'KAN SKJULES Volumen-beregner'!$H$5,H107=5,'KAN SKJULES Volumen-beregner'!$F$5)","v":1},1,1,1,1,0,1,1,null,"Journalnummer, et kort over arealet der forpagtes med matrikelnumre",6]
["Tilladelse til og betaling for råden over vej","Tilladelse til i et fastsat tidsrum og måske med nogle vilkår til at råde over et stykke vej - fx til stillads, vejløb, pølsevogn, osv.","Borger",null,"ROSY","Betaling","Miljø, Teknik og Forsyning",4,{"$f":"_xlfn.IFS(H108=\"\",\"\",H108=1,'KAN SKJULES Volumen-beregner'!$N$5,H108=2,'KAN SKJULES Volumen-beregner'!$L$5,H108=3,'KAN SKJULES Volumen-beregner'!$J$5,H108=4,'KAN SKJULES Volumen-beregner'!$H$5,H108=5,'KAN SKJULES Volumen-beregner'!$F$5)","v":130},1,0,1,1,1,1,1,null,"Alle relevante data knyttet til det fællesoffentlige adresseregister (alle IT-systemer udbudt efter 2017 SKAL anvende valilde adresser mv): Valid adresse/vejnavn samt registerets geokodning af punkt heraf  mv.",780]
["Afgørelser om betaling","Et brev der afgøre at der skal betales et givent beløb evt. over flere rater","Borger",null,"ServiceNow","Betaling","Administration og Organisation",4,{"$f":"_xlfn.IFS(H109=\"\",\"\",H109=1,'KAN SKJULES Volumen-beregner'!$N$5,H109=2,'KAN SKJULES Volumen-beregner'!$L$5,H109=3,'KAN SKJULES Volumen-beregner'!$J$5,H109=4,'KAN SKJULES Volumen-beregner'!$H$5,H109=5,'KAN SKJULES Volumen-beregner'!$F$5)","v":130},1,0,1,0,1,1,1,null,"sagsnummer, navn på medarbejder, evt. eksisterende journalnummer.",650]
["Bøder","Bøder ved manglende af aflevering af bøger og lignede","Borger",null,"FBS","Betaling","Demokrati og Involvering",4,{"$f":"_xlfn.IFS(H110=\"\",\"\",H110=1,'KAN SKJULES Volumen-beregner'!$N$5,H110=2,'KAN SKJULES Volumen-beregner'!$L$5,H110=3,'KAN SKJULES Volumen-beregner'!$J$5,H110=4,'KAN SKJULES Volumen-beregner'!$H$5,H110=5,'KAN SKJULES Volumen-beregner'!$F$5)","v":130},0,0,1,1,1,1,1,"Ser ikke post","cpr.nr., navn, adresse",650]
["Kontrolafgifter","Afgift på manglende betaling i bus","Borger",null,"Opus Debitor","Betaling","Demokrati og Involvering",4,{"$f":"_xlfn.IFS(H111=\"\",\"\",H111=1,'KAN SKJULES Volumen-beregner'!$N$5,H111=2,'KAN SKJULES Volumen-beregner'!$L$5,H111=3,'KAN SKJULES Volumen-beregner'!$J$5,H111=4,'KAN SKJULES Volumen-beregner'!$H$5,H111=5,'KAN SKJULES Volumen-beregner'!$F$5)","v":130},1,0,1,0,1,1,1,"Ser ikke digital post","Cpr-nummer, aftalenummer",650]
["Opkrævninger - ejendomsskat, boliglån, institutionsplads, etc.","Ejendomsskat, boliglån, institutionsplads, hjælp med tilbagebetaling, gebyrer","Borger",null,"Opus Debitor","Betaling","Demokrati og Involvering",4,{"$f":"_xlfn.IFS(H112=\"\",\"\",H112=1,'KAN SKJULES Volumen-beregner'!$N$5,H112=2,'KAN SKJULES Volumen-beregner'!$L$5,H112=3,'KAN SKJULES Volumen-beregner'!$J$5,H112=4,'KAN SKJULES Volumen-beregner'!$H$5,H112=5,'KAN SKJULES Volumen-beregner'!$F$5)","v":130},1,0,1,0,1,1,1,"Ser ikke digital post","Cpr. nummer, sagsnummer",650]
["Opkrævninger","Udsendelse af debitorfakturaer","Borger/virksomhed/myndighed","Anden myndighed","OPUS Debitor","Betaling","Administration og Organisation",4,{"$f":"_xlfn.IFS(H113=\"\",\"\",H113=1,'KAN SKJULES Volumen-beregner'!$N$5,H113=2,'KAN SKJULES Volumen-beregner'!$L$5,H113=3,'KAN SKJULES Volumen-beregner'!$J$5,H113=4,'KAN SKJULES Volumen-beregner'!$H$5,H113=5,'KAN SKJULES Volumen-beregner'!$F$5)","v":130},1,0,1,0,1,1,1,null,"Fakturanummer, CPR/CVR nummer flere?",650]
["Bøder i forbindelse med for sent anmeldt flytning","Bøder i forbindelse med for sent anmeldt flytning","Borger",null,"Notus / Nova / Prisme","Betaling","Demokrati og Involvering",4,{"$f":"_xlfn.IFS(H114=\"\",\"\",H114=1,'KAN SKJULES Volumen-beregner'!$N$5,H114=2,'KAN SKJULES Volumen-beregner'!$L$5,H114=3,'KAN SKJULES Volumen-beregner'!$J$5,H114=4,'KAN SKJULES Volumen-beregner'!$H$5,H114=5,'KAN SKJULES Volumen-beregner'!$F$5)","v":130},0,0,1,0,0,1,1,"Ikke kan tilgå sin digitale post","Cpr-nummer eller sagsnummer",390]
["Indhetning af oplysninger fx frobrug vand og varme","Afsendelse af opgørelser over vand-, el-, varme forbrud mv. pr. lejemål","Virksomhed",null,"Outlook","Betaling","Demokrati og Involvering",3,{"$f":"_xlfn.IFS(H115=\"\",\"\",H115=1,'KAN SKJULES Volumen-beregner'!$N$5,H115=2,'KAN SKJULES Volumen-beregner'!$L$5,H115=3,'KAN SKJULES Volumen-beregner'!$J$5,H115=4,'KAN SKJULES Volumen-beregner'!$H$5,H115=5,'KAN SKJULES Volumen-beregner'!$F$5)","v":26},1,0,1,1,1,1,1,"Ofte kan være svage borgere, som ikke altid er digitale","CPR-nummer, lejemålets adresse",156]
["Vielser","Aftale om vielse, svar på forespørgsler, betalingsaftale på privat vielse","Borger",null,"EG samt office Outlook, Dafolo Vielse","Betaling","Demokrati og Involvering",3,{"$f":"_xlfn.IFS(H116=\"\",\"\",H116=1,'KAN SKJULES Volumen-beregner'!$N$5,H116=2,'KAN SKJULES Volumen-beregner'!$L$5,H116=3,'KAN SKJULES Volumen-beregner'!$J$5,H116=4,'KAN SKJULES Volumen-beregner'!$H$5,H116=5,'KAN SKJULES Volumen-beregner'!$F$5)","v":26},1,1,1,0,1,1,1,"Ser ikke digital post, ene part er ikke koblet til NemID (udenlandsk part)","Ægteskabsnummer, prøvelsesnummer, cpr.nummer",156]
["Saldoopgørelser","Saldoopgørelser sendes i forbindelse med udestående hos biblioteket","Borger",null,"FBS","Betaling","Demokrati og Involvering",3,{"$f":"_xlfn.IFS(H117=\"\",\"\",H117=1,'KAN SKJULES Volumen-beregner'!$N$5,H117=2,'KAN SKJULES Volumen-beregner'!$L$5,H117=3,'KAN SKJULES Volumen-beregner'!$J$5,H117=4,'KAN SKJULES Volumen-beregner'!$H$5,H117=5,'KAN SKJULES Volumen-beregner'!$F$5)","v":26},0,0,1,0,0,0,1,null,"CPR-nummer",52]
["Breve til pensionskasser om betaling/mgl. betaling","Breve til diverse pensionskasser om betaling og evt. manglende betaling  - herunder fremsendelse af specifikation af store reguleringer pr. måned","Virksomhed",null,"Outlook eller kontaktformularer på hjemmeside","Betaling","Administration og Organisation",2,{"$f":"_xlfn.IFS(H118=\"\",\"\",H118=1,'KAN SKJULES Volumen-beregner'!$N$5,H118=2,'KAN SKJULES Volumen-beregner'!$L$5,H118=3,'KAN SKJULES Volumen-beregner'!$J$5,H118=4,'KAN SKJULES Volumen-beregner'!$H$5,H118=5,'KAN SKJULES Volumen-beregner'!$F$5)","v":12},1,0,1,0,0,0,1,null,"cpr.nr. ",36]
["Kritisk sygdom dødsfald betalinger til/fra","Indberetning Anmeldelse af dødsfald til Forenede Gruppeliv Kommunikation om betalinger til/fra Forenede Gruppeliv f.eks. returnering af for meget afregnet Gruppelivspræmie ","Virksomhed",null,"Outlook eller kontaktformular på FG´s hjemmeside","Betaling","Administration og Organisation",2,{"$f":"_xlfn.IFS(H119=\"\",\"\",H119=1,'KAN SKJULES Volumen-beregner'!$N$5,H119=2,'KAN SKJULES Volumen-beregner'!$L$5,H119=3,'KAN SKJULES Volumen-beregner'!$J$5,H119=4,'KAN SKJULES Volumen-beregner'!$H$5,H119=5,'KAN SKJULES Volumen-beregner'!$F$5)","v":12},1,0,1,0,0,0,1,null,"Cpr.n.r Afdeling ",36]
["Meddelser vedr. tekninske hjælpmidler,","Meddelelser mellem kommunen og leverandøren i forhold til aflevering og tilbagelevering af hjælpemidler","Virksomhed",null,"KMD Nexus / Cura","Information","Social og Sundhed",4,{"$f":"_xlfn.IFS(H120=\"\",\"\",H120=1,'KAN SKJULES Volumen-beregner'!$N$5,H120=2,'KAN SKJULES Volumen-beregner'!$L$5,H120=3,'KAN SKJULES Volumen-beregner'!$J$5,H120=4,'KAN SKJULES Volumen-beregner'!$H$5,H120=5,'KAN SKJULES Volumen-beregner'!$F$5)","v":130},0,0,0,0,0,1,1,"Mangler integration mellem KMD Nexus of forsendelsessystem - OneTooX","ISO betgenelse/ Løbenr./ HMI nr.",260]
["Dialog om projekter ","Dialog med private eller andre myndigheder om projekter, hvor der indgår konkrete borgersager","Myndighed","Anden myndighed","Edoc","Information","Social og Sundhed",4,{"$f":"_xlfn.IFS(H121=\"\",\"\",H121=1,'KAN SKJULES Volumen-beregner'!$N$5,H121=2,'KAN SKJULES Volumen-beregner'!$L$5,H121=3,'KAN SKJULES Volumen-beregner'!$J$5,H121=4,'KAN SKJULES Volumen-beregner'!$H$5,H121=5,'KAN SKJULES Volumen-beregner'!$F$5)","v":130},1,0,0,0,1,0,1,"nej",null,390]
["Videresendelse af kørekortsansøgninger","Videresendelse af kørekortssager til Politiet evt i forbindelse med store kategori eller sygdom","Myndighed","Politi","Biometric / Outlook","Information","Demokrati og Involvering",4,{"$f":"_xlfn.IFS(H122=\"\",\"\",H122=1,'KAN SKJULES Volumen-beregner'!$N$5,H122=2,'KAN SKJULES Volumen-beregner'!$L$5,H122=3,'KAN SKJULES Volumen-beregner'!$J$5,H122=4,'KAN SKJULES Volumen-beregner'!$H$5,H122=5,'KAN SKJULES Volumen-beregner'!$F$5)","v":130},1,0,0,0,0,0,1,null,"CPR nummer",260]
["Henvisning til anden aktør (enten sikker post eller digital post) - automatisk via FASIT","Tilbud/Forløb ved anden aktør fx Quick Care, AS3","Virksomhed",null,"FASIT/Momentum","Information","Arbejdsmarked og Erhverv",4,{"$f":"_xlfn.IFS(H123=\"\",\"\",H123=1,'KAN SKJULES Volumen-beregner'!$N$5,H123=2,'KAN SKJULES Volumen-beregner'!$L$5,H123=3,'KAN SKJULES Volumen-beregner'!$J$5,H123=4,'KAN SKJULES Volumen-beregner'!$H$5,H123=5,'KAN SKJULES Volumen-beregner'!$F$5)","v":130},1,0,0,0,0,0,null,null,null,130]
["Indlæggelse/udskrivning","Indlæggelsesrapport sendes automatisk til sygehus ved indlæggelsesadvisering som følge af oprettelse i Sundhedsportalen","Myndighed","Region",null,"Information","Social og Sundhed",4,{"$f":"_xlfn.IFS(H124=\"\",\"\",H124=1,'KAN SKJULES Volumen-beregner'!$N$5,H124=2,'KAN SKJULES Volumen-beregner'!$L$5,H124=3,'KAN SKJULES Volumen-beregner'!$J$5,H124=4,'KAN SKJULES Volumen-beregner'!$H$5,H124=5,'KAN SKJULES Volumen-beregner'!$F$5)","v":130},0,0,0,0,0,0,1,null,"kommunens sagsnr.",130]
["Koordinering af konkrete sager ","Koordinering mellem forskellige myndigheder om hjælp og støtte til borger","Myndighed","Anden myndighed","DUBU, CURA, DOMUS, CSC SOCIAL, NOVAX, Edoc","Information","Social og Sundhed",3,{"$f":"_xlfn.IFS(H125=\"\",\"\",H125=1,'KAN SKJULES Volumen-beregner'!$N$5,H125=2,'KAN SKJULES Volumen-beregner'!$L$5,H125=3,'KAN SKJULES Volumen-beregner'!$J$5,H125=4,'KAN SKJULES Volumen-beregner'!$H$5,H125=5,'KAN SKJULES Volumen-beregner'!$F$5)","v":26},1,0,0,0,1,1,1,"Koordinerng sker på mange måder idag og burde journaliseres i fagsystemerne. Det er dog ikke altid, at systemerne understøtter den lette dialog, og journalisering kan derfor være en udfordring i praksis at efterkomme",null,104]
["Henvisninger til behandling","F.eks. behandlinger hos specialist","Myndighed","Region","TK2","Information","Social og Sundhed",3,{"$f":"_xlfn.IFS(H126=\"\",\"\",H126=1,'KAN SKJULES Volumen-beregner'!$N$5,H126=2,'KAN SKJULES Volumen-beregner'!$L$5,H126=3,'KAN SKJULES Volumen-beregner'!$J$5,H126=4,'KAN SKJULES Volumen-beregner'!$H$5,H126=5,'KAN SKJULES Volumen-beregner'!$F$5)","v":26},1,0,0,0,1,1,1,null,null,104]
["Udtalelse om konkrete borgersager ","udtalelse til andre myndigheder i forbindelse med deres sagsbehandling - fx. Familieretshuset, politiet mv.","Myndighed","Anden myndighed","DUBU, DOMUS, CSC Social, eDoc","Information","Social og Sundhed",3,{"$f":"_xlfn.IFS(H127=\"\",\"\",H127=1,'KAN SKJULES Volumen-beregner'!$N$5,H127=2,'KAN SKJULES Volumen-beregner'!$L$5,H127=3,'KAN SKJULES Volumen-beregner'!$J$5,H127=4,'KAN SKJULES Volumen-beregner'!$H$5,H127=5,'KAN SKJULES Volumen-beregner'!$F$5)","v":26},1,0,0,0,1,1,1,null,null,104]
["Planer for borgere","Jobcenteret sender Min plan til borgere som er fritgaet for at tilgå planerne på Jobnet","Borger",null,"FASIT/Momentum","Information","Arbejdsmarked og Erhverv",3,{"$f":"_xlfn.IFS(H128=\"\",\"\",H128=1,'KAN SKJULES Volumen-beregner'!$N$5,H128=2,'KAN SKJULES Volumen-beregner'!$L$5,H128=3,'KAN SKJULES Volumen-beregner'!$J$5,H128=4,'KAN SKJULES Volumen-beregner'!$H$5,H128=5,'KAN SKJULES Volumen-beregner'!$F$5)","v":26},1,0,0,0,1,0,1,null,"cpr",78]
["Korrespondancer (dialog om patient - fx med en tandpleje),","Udveksling af informationer omkring behandlinger eller andet","Virksomhed",null,"TK2","Information","Social og Sundhed",3,{"$f":"_xlfn.IFS(H129=\"\",\"\",H129=1,'KAN SKJULES Volumen-beregner'!$N$5,H129=2,'KAN SKJULES Volumen-beregner'!$L$5,H129=3,'KAN SKJULES Volumen-beregner'!$J$5,H129=4,'KAN SKJULES Volumen-beregner'!$H$5,H129=5,'KAN SKJULES Volumen-beregner'!$F$5)","v":26},1,0,0,0,0,1,1,null,null,78]
["Korrespondancer","Drøftelser omkring behandlinger eller andet imellem behandlere","Myndighed","Region","EDI","Information","Social og Sundhed",3,{"$f":"_xlfn.IFS(H130=\"\",\"\",H130=1,'KAN SKJULES Volumen-beregner'!$N$5,H130=2,'KAN SKJULES Volumen-beregner'!$L$5,H130=3,'KAN SKJULES Volumen-beregner'!$J$5,H130=4,'KAN SKJULES Volumen-beregner'!$H$5,H130=5,'KAN SKJULES Volumen-beregner'!$F$5)","v":26},1,0,0,0,1,0,1,null,null,78]
["Klager der sendes til ankeinstans via kommunen","Afhængig af afgørelsestype, skal klager indsende klage til kommune, som genvurderer og evt. videresender til ankeinstans","Myndighed","Ankeinstans","ESDH-system","Information","Miljø, Teknik og Forsyning",2,{"$f":"_xlfn.IFS(H131=\"\",\"\",H131=1,'KAN SKJULES Volumen-beregner'!$N$5,H131=2,'KAN SKJULES Volumen-beregner'!$L$5,H131=3,'KAN SKJULES Volumen-beregner'!$J$5,H131=4,'KAN SKJULES Volumen-beregner'!$H$5,H131=5,'KAN SKJULES Volumen-beregner'!$F$5)","v":12},1,1,0,1,1,1,1,null,"Problematikken med at vælge p-enhed er vist ikke et problem, når der sendes til klageinstanser.--﻿",72]
["Udveksling af oplysninger/Folkeregistermeddelelser","Udveksling af oplysninger mellem kommuner","Myndighed","Anden kommune","NOVA","Information","Demokrati og Involvering",3,{"$f":"_xlfn.IFS(H132=\"\",\"\",H132=1,'KAN SKJULES Volumen-beregner'!$N$5,H132=2,'KAN SKJULES Volumen-beregner'!$L$5,H132=3,'KAN SKJULES Volumen-beregner'!$J$5,H132=4,'KAN SKJULES Volumen-beregner'!$H$5,H132=5,'KAN SKJULES Volumen-beregner'!$F$5)","v":26},1,0,0,0,0,0,1,null,"CPR Nummer",52]
["Udveksling af oplysninger om indsættelse og løsladelse","Besked til/fra Kriminalforsorgen i forbindelse med oplysning om indsættelse/løsladelse ifm med skift af sygesikringsgruppe samt evt. bopælsregistering","Myndighed","Kriminalforsorgen","Outlook/ Nova / Notus","Information","Demokrati og Involvering",3,{"$f":"_xlfn.IFS(H133=\"\",\"\",H133=1,'KAN SKJULES Volumen-beregner'!$N$5,H133=2,'KAN SKJULES Volumen-beregner'!$L$5,H133=3,'KAN SKJULES Volumen-beregner'!$J$5,H133=4,'KAN SKJULES Volumen-beregner'!$H$5,H133=5,'KAN SKJULES Volumen-beregner'!$F$5)","v":26},1,0,0,0,0,0,1,null,"CPR nummer",{"$f":"IFERROR((J133+K133+L133+M133+N133+O133+P133)*I133,0)","v":52}]
["Korrespondance med Råstofmyndighed","Korrespondance med regional myndighed i forbindelse med planlægning, tilladelser og revision af råstofplan","Myndighed","Region","Outlook/mail","Information","Miljø, Teknik og Forsyning",2,{"$f":"_xlfn.IFS(H134=\"\",\"\",H134=1,'KAN SKJULES Volumen-beregner'!$N$5,H134=2,'KAN SKJULES Volumen-beregner'!$L$5,H134=3,'KAN SKJULES Volumen-beregner'!$J$5,H134=4,'KAN SKJULES Volumen-beregner'!$H$5,H134=5,'KAN SKJULES Volumen-beregner'!$F$5)","v":12},1,0,0,0,1,0,1,null,"Journalnr.",36]
["Anmeldelse af arbejdsulykke","Anmeldelse af arbejdsulykke til AES/AT","Myndighed","Arbejdstilsynet/AES","EASY/Internt","Information","Administration og Organisation",3,{"$f":"_xlfn.IFS(H135=\"\",\"\",H135=1,'KAN SKJULES Volumen-beregner'!$N$5,H135=2,'KAN SKJULES Volumen-beregner'!$L$5,H135=3,'KAN SKJULES Volumen-beregner'!$J$5,H135=4,'KAN SKJULES Volumen-beregner'!$H$5,H135=5,'KAN SKJULES Volumen-beregner'!$F$5)","v":26},0,0,0,0,0,0,1,null,"Ja, journalnummer, EASY-nummer, oplysninger om tilskadekomne",26]
["Indberetning til A-kasser","Vedr. om borger har mødt op til samtale / tilbudssted","Virksomhed",null,"FASIT/Momentum","Information","Arbejdsmarked og Erhverv",3,{"$f":"_xlfn.IFS(H136=\"\",\"\",H136=1,'KAN SKJULES Volumen-beregner'!$N$5,H136=2,'KAN SKJULES Volumen-beregner'!$L$5,H136=3,'KAN SKJULES Volumen-beregner'!$J$5,H136=4,'KAN SKJULES Volumen-beregner'!$H$5,H136=5,'KAN SKJULES Volumen-beregner'!$F$5)","v":26},0,0,0,0,0,0,1,null,"cpr.",26]
["Hverdagsdiaog med pårørende ","Dialog om barn eller pårørendes velbefindende eller aktiviteter","Borger",null,"Outlook (SEPO), fagsystem (OnetooX)","Information","Social og Sundhed",3,{"$f":"_xlfn.IFS(H137=\"\",\"\",H137=1,'KAN SKJULES Volumen-beregner'!$N$5,H137=2,'KAN SKJULES Volumen-beregner'!$L$5,H137=3,'KAN SKJULES Volumen-beregner'!$J$5,H137=4,'KAN SKJULES Volumen-beregner'!$H$5,H137=5,'KAN SKJULES Volumen-beregner'!$F$5)","v":26},1,0,0,0,0,0,null,null,null,26]
["Afgørelse om klagesager","Afgørelse vedr ophør af sygedagpenge","Myndighed","Ankestyrelsen","FASIT/Momentum","Information","Arbejdsmarked og Erhverv",2,{"$f":"_xlfn.IFS(H138=\"\",\"\",H138=1,'KAN SKJULES Volumen-beregner'!$N$5,H138=2,'KAN SKJULES Volumen-beregner'!$L$5,H138=3,'KAN SKJULES Volumen-beregner'!$J$5,H138=4,'KAN SKJULES Volumen-beregner'!$H$5,H138=5,'KAN SKJULES Volumen-beregner'!$F$5)","v":12},0,0,0,0,0,1,1,null,"journal - cpr.",24]
["Tilgodehavender i dødsbo Oplsyning om bobestyrere Skifteretsattester","Brev til skifteretten i forbindelse med tilgodehavende løn og feriepenge ved medarbejders dødsfald.","Myndighed","Skifteretten","Outlook","Information","Administration og Organisation",2,{"$f":"_xlfn.IFS(H139=\"\",\"\",H139=1,'KAN SKJULES Volumen-beregner'!$N$5,H139=2,'KAN SKJULES Volumen-beregner'!$L$5,H139=3,'KAN SKJULES Volumen-beregner'!$J$5,H139=4,'KAN SKJULES Volumen-beregner'!$H$5,H139=5,'KAN SKJULES Volumen-beregner'!$F$5)","v":12},1,0,0,0,0,0,1,null,"Modtager skal sende svar oplysninger retur evt. vedhæfte skifteretsattesft ",24]
["Svar på aktindsigter","Svar og sagsakter","Virksomhed",null,"SEPO/Outlook","Information","Demokrati og Involvering",2,{"$f":"_xlfn.IFS(H140=\"\",\"\",H140=1,'KAN SKJULES Volumen-beregner'!$N$5,H140=2,'KAN SKJULES Volumen-beregner'!$L$5,H140=3,'KAN SKJULES Volumen-beregner'!$J$5,H140=4,'KAN SKJULES Volumen-beregner'!$H$5,H140=5,'KAN SKJULES Volumen-beregner'!$F$5)","v":12},1,0,0,0,0,0,1,null,"Afhænger af sgaens akter. altid navn, crp. og adresse",24]
["Salær-fastsættelse","advokaten anmoder om salær vedr. møde i Børn og Ungeudvalget","Virksomhed",null,"Outlook eller SBSYS","Information","Børn og Unge",2,{"$f":"_xlfn.IFS(H141=\"\",\"\",H141=1,'KAN SKJULES Volumen-beregner'!$N$5,H141=2,'KAN SKJULES Volumen-beregner'!$L$5,H141=3,'KAN SKJULES Volumen-beregner'!$J$5,H141=4,'KAN SKJULES Volumen-beregner'!$H$5,H141=5,'KAN SKJULES Volumen-beregner'!$F$5)","v":12},1,0,0,0,0,0,1,null,"ja",24]
["Børn under forsorg (blanket) anmodning om at ydelse skal stoppe","Besked til Udbetaling Danmark ved anbringelse af barn/ung","Myndighed","Udbetaling Danmark","Outlook","Information","Børn og Unge",2,{"$f":"_xlfn.IFS(H142=\"\",\"\",H142=1,'KAN SKJULES Volumen-beregner'!$N$5,H142=2,'KAN SKJULES Volumen-beregner'!$L$5,H142=3,'KAN SKJULES Volumen-beregner'!$J$5,H142=4,'KAN SKJULES Volumen-beregner'!$H$5,H142=5,'KAN SKJULES Volumen-beregner'!$F$5)","v":12},1,0,0,0,0,0,1,null,"Barnets cpr nr",24]
["Skoleindskrivning ved skoleskift","Anmodning om skoleskift fra anden kommunal skole eller en fri-/privatskole til kommunalskole i kommunen","Borger",null,"Selvbetjeningsløsning - elektronisk blanket","Information","Børn og Unge",2,{"$f":"_xlfn.IFS(H143=\"\",\"\",H143=1,'KAN SKJULES Volumen-beregner'!$N$5,H143=2,'KAN SKJULES Volumen-beregner'!$L$5,H143=3,'KAN SKJULES Volumen-beregner'!$J$5,H143=4,'KAN SKJULES Volumen-beregner'!$H$5,H143=5,'KAN SKJULES Volumen-beregner'!$F$5)","v":12},1,0,0,0,0,1,null,null,null,24]
["Indberetning ","Til Grundejernes Investeringsfond. ","Myndighed","Grundejernes Investeringsfond","GIs eget system","Information","Miljø, Teknik og Forsyning",2,{"$f":"_xlfn.IFS(H144=\"\",\"\",H144=1,'KAN SKJULES Volumen-beregner'!$N$5,H144=2,'KAN SKJULES Volumen-beregner'!$L$5,H144=3,'KAN SKJULES Volumen-beregner'!$J$5,H144=4,'KAN SKJULES Volumen-beregner'!$H$5,H144=5,'KAN SKJULES Volumen-beregner'!$F$5)","v":12},0,0,0,0,0,0,1,null,"kommunens sagsnr.",12]
["Anmeldelse af udlejer","Politianmeldelse af udlejer, der 3 gange indenfor 2 år har undladt at opfylde en nævnsafgørelse","Myndighed","Politi","Acadre","Information","Miljø, Teknik og Forsyning",1,{"$f":"_xlfn.IFS(H145=\"\",\"\",H145=1,'KAN SKJULES Volumen-beregner'!$N$5,H145=2,'KAN SKJULES Volumen-beregner'!$L$5,H145=3,'KAN SKJULES Volumen-beregner'!$J$5,H145=4,'KAN SKJULES Volumen-beregner'!$H$5,H145=5,'KAN SKJULES Volumen-beregner'!$F$5)","v":1},1,0,0,0,0,1,1,null,"kommunens sagsnr",3]
["Socialfaglige vurderinger - uledsagede flygtningebørn","Vurdering på barn sendes til Udlændigestyrelsen mhp. refusion","Myndighed","Udlændingestyrelsen","Outlook","Information","Børn og Unge",1,{"$f":"_xlfn.IFS(H146=\"\",\"\",H146=1,'KAN SKJULES Volumen-beregner'!$N$5,H146=2,'KAN SKJULES Volumen-beregner'!$L$5,H146=3,'KAN SKJULES Volumen-beregner'!$J$5,H146=4,'KAN SKJULES Volumen-beregner'!$H$5,H146=5,'KAN SKJULES Volumen-beregner'!$F$5)","v":1},1,0,0,0,0,0,1,null,"Barnets ID nr.",2]
["Anmodning om forkyndelse hos retten ","En afgørelse skal i visse tilfælde forkyndes for en borger. Det er en henvendelse til retten om at sende en stævningsmand ud","Myndighed","Retten","Acadre","Information","Miljø, Teknik og Forsyning",1,{"$f":"_xlfn.IFS(H147=\"\",\"\",H147=1,'KAN SKJULES Volumen-beregner'!$N$5,H147=2,'KAN SKJULES Volumen-beregner'!$L$5,H147=3,'KAN SKJULES Volumen-beregner'!$J$5,H147=4,'KAN SKJULES Volumen-beregner'!$H$5,H147=5,'KAN SKJULES Volumen-beregner'!$F$5)","v":1},1,0,0,0,null,null,null,null,null,1]
["Alm dialog/ koordinering af indsats","Alm dialog/ koordinering af indsats","Borger",null,null,"Information","Social og Sundhed",4,{"$f":"_xlfn.IFS(H148=\"\",\"\",H148=1,'KAN SKJULES Volumen-beregner'!$N$5,H148=2,'KAN SKJULES Volumen-beregner'!$L$5,H148=3,'KAN SKJULES Volumen-beregner'!$J$5,H148=4,'KAN SKJULES Volumen-beregner'!$H$5,H148=5,'KAN SKJULES Volumen-beregner'!$F$5)","v":130},null,null,null,null,null,null,null,null,null,0]
["Anmodning om adresseskift (fx ifm. anbringelse af barn)","Vi sender oplysning om flytning af anbragt barn/ung","Myndighed",null,"Outlook","Information","Børn og Unge",3,{"$f":"_xlfn.IFS(H149=\"\",\"\",H149=1,'KAN SKJULES Volumen-beregner'!$N$5,H149=2,'KAN SKJULES Volumen-beregner'!$L$5,H149=3,'KAN SKJULES Volumen-beregner'!$J$5,H149=4,'KAN SKJULES Volumen-beregner'!$H$5,H149=5,'KAN SKJULES Volumen-beregner'!$F$5)","v":26},0,0,0,0,0,null,null,null,null,0]
["Breve angående institutions-pladser i andre kommuner","Hvis barnet er skrevet op til institution i anden kommune - informeres forældrene om pris, søgning af friplads m.m.","Borger",null,"KMDi2","Information","Børn og Unge",2,{"$f":"_xlfn.IFS(H150=\"\",\"\",H150=1,'KAN SKJULES Volumen-beregner'!$N$5,H150=2,'KAN SKJULES Volumen-beregner'!$L$5,H150=3,'KAN SKJULES Volumen-beregner'!$J$5,H150=4,'KAN SKJULES Volumen-beregner'!$H$5,H150=5,'KAN SKJULES Volumen-beregner'!$F$5)","v":12},0,0,0,0,0,0,null,null,null,0]
["Besvarelse af klage over afgørelse","Besvarelse af borgers klage over afgørelse","Borger",null,null,"Information","Social og Sundhed",4,{"$f":"_xlfn.IFS(H151=\"\",\"\",H151=1,'KAN SKJULES Volumen-beregner'!$N$5,H151=2,'KAN SKJULES Volumen-beregner'!$L$5,H151=3,'KAN SKJULES Volumen-beregner'!$J$5,H151=4,'KAN SKJULES Volumen-beregner'!$H$5,H151=5,'KAN SKJULES Volumen-beregner'!$F$5)","v":130},null,null,null,null,null,null,null,null,null,0]
[null,null,null,null,null,null,null,null,{"$f":"_xlfn.IFS(H152=\"\",\"\",H152=1,'KAN SKJULES Volumen-beregner'!$N$5,H152=2,'KAN SKJULES Volumen-beregner'!$L$5,H152=3,'KAN SKJULES Volumen-beregner'!$J$5,H152=4,'KAN SKJULES Volumen-beregner'!$H$5,H152=5,'KAN SKJULES Volumen-beregner'!$F$5)","v":""},null,null,null,null,null,null,null,null,null,0]
[null,null,null,null,null,null,null,null,{"$f":"_xlfn.IFS(H153=\"\",\"\",H153=1,'KAN SKJULES Volumen-beregner'!$N$5,H153=2,'KAN SKJULES Volumen-beregner'!$L$5,H153=3,'KAN SKJULES Volumen-beregner'!$J$5,H153=4,'KAN SKJULES Volumen-beregner'!$H$5,H153=5,'KAN SKJULES Volumen-beregner'!$F$5)","v":""},null,null,null,null,null,null,null,null,null,0]
[null,null,null,null,null,null,null,null,{"$f":"_xlfn.IFS(H154=\"\",\"\",H154=1,'KAN SKJULES Volumen-beregner'!$N$5,H154=2,'KAN SKJULES Volumen-beregner'!$L$5,H154=3,'KAN SKJULES Volumen-beregner'!$J$5,H154=4,'KAN SKJULES Volumen-beregner'!$H$5,H154=5,'KAN SKJULES Volumen-beregner'!$F$5)","v":""},null,null,null,null,null,null,null,null,null,0]
[null,null,null,null,null,null,null,null,{"$f":"_xlfn.IFS(H155=\"\",\"\",H155=1,'KAN SKJULES Volumen-beregner'!$N$5,H155=2,'KAN SKJULES Volumen-beregner'!$L$5,H155=3,'KAN SKJULES Volumen-beregner'!$J$5,H155=4,'KAN SKJULES Volumen-beregner'!$H$5,H155=5,'KAN SKJULES Volumen-beregner'!$F$5)","v":""},null,null,null,null,null,null,null,null,null,0]
[null,null,null,null,null,null,null,null,{"$f":"_xlfn.IFS(H156=\"\",\"\",H156=1,'KAN SKJULES Volumen-beregner'!$N$5,H156=2,'KAN SKJULES Volumen-beregner'!$L$5,H156=3,'KAN SKJULES Volumen-beregner'!$J$5,H156=4,'KAN SKJULES Volumen-beregner'!$H$5,H156=5,'KAN SKJULES Volumen-beregner'!$F$5)","v":""},null,null,null,null,null,null,null,null,null,0]
[null,null,null,null,null,null,null,null,{"$f":"_xlfn.IFS(H157=\"\",\"\",H157=1,'KAN SKJULES Volumen-beregner'!$N$5,H157=2,'KAN SKJULES Volumen-beregner'!$L$5,H157=3,'KAN SKJULES Volumen-beregner'!$J$5,H157=4,'KAN SKJULES Volumen-beregner'!$H$5,H157=5,'KAN SKJULES Volumen-beregner'!$F$5)","v":""},null,null,null,null,null,null,null,null,null,0]
[null,null,null,null,null,null,null,null,{"$f":"_xlfn.IFS(H158=\"\",\"\",H158=1,'KAN SKJULES Volumen-beregner'!$N$5,H158=2,'KAN SKJULES Volumen-beregner'!$L$5,H158=3,'KAN SKJULES Volumen-beregner'!$J$5,H158=4,'KAN SKJULES Volumen-beregner'!$H$5,H158=5,'KAN SKJULES Volumen-beregner'!$F$5)","v":""},null,null,null,null,null,null,null,null,null,0]
[null,null,null,null,null,null,null,null,{"$f":"_xlfn.IFS(H159=\"\",\"\",H159=1,'KAN SKJULES Volumen-beregner'!$N$5,H159=2,'KAN SKJULES Volumen-beregner'!$L$5,H159=3,'KAN SKJULES Volumen-beregner'!$J$5,H159=4,'KAN SKJULES Volumen-beregner'!$H$5,H159=5,'KAN SKJULES Volumen-beregner'!$F$5)","v":""},null,null,null,null,null,null,null,null,null,0]
[null,null,null,null,null,null,null,null,{"$f":"_xlfn.IFS(H160=\"\",\"\",H160=1,'KAN SKJULES Volumen-beregner'!$N$5,H160=2,'KAN SKJULES Volumen-beregner'!$L$5,H160=3,'KAN SKJULES Volumen-beregner'!$J$5,H160=4,'KAN SKJULES Volumen-beregner'!$H$5,H160=5,'KAN SKJULES Volumen-beregner'!$F$5)","v":""},null,null,null,null,null,null,null,null,null,0]
[null,null,null,null,null,null,null,null,{"$f":"_xlfn.IFS(H161=\"\",\"\",H161=1,'KAN SKJULES Volumen-beregner'!$N$5,H161=2,'KAN SKJULES Volumen-beregner'!$L$5,H161=3,'KAN SKJULES Volumen-beregner'!$J$5,H161=4,'KAN SKJULES Volumen-beregner'!$H$5,H161=5,'KAN SKJULES Volumen-beregner'!$F$5)","v":""},null,null,null,null,null,null,null,null,null,0]
[null,null,null,null,null,null,null,null,{"$f":"_xlfn.IFS(H162=\"\",\"\",H162=1,'KAN SKJULES Volumen-beregner'!$N$5,H162=2,'KAN SKJULES Volumen-beregner'!$L$5,H162=3,'KAN SKJULES Volumen-beregner'!$J$5,H162=4,'KAN SKJULES Volumen-beregner'!$H$5,H162=5,'KAN SKJULES Volumen-beregner'!$F$5)","v":""},null,null,null,null,null,null,null,null,null,0]
[null,null,null,null,null,null,null,null,{"$f":"_xlfn.IFS(H163=\"\",\"\",H163=1,'KAN SKJULES Volumen-beregner'!$N$5,H163=2,'KAN SKJULES Volumen-beregner'!$L$5,H163=3,'KAN SKJULES Volumen-beregner'!$J$5,H163=4,'KAN SKJULES Volumen-beregner'!$H$5,H163=5,'KAN SKJULES Volumen-beregner'!$F$5)","v":""},null,null,null,null,null,null,null,null,null,0]
[null,null,null,null,null,null,null,null,{"$f":"_xlfn.IFS(H164=\"\",\"\",H164=1,'KAN SKJULES Volumen-beregner'!$N$5,H164=2,'KAN SKJULES Volumen-beregner'!$L$5,H164=3,'KAN SKJULES Volumen-beregner'!$J$5,H164=4,'KAN SKJULES Volumen-beregner'!$H$5,H164=5,'KAN SKJULES Volumen-beregner'!$F$5)","v":""},null,null,null,null,null,null,null,null,null,0]
[null,null,null,null,null,null,null,null,{"$f":"_xlfn.IFS(H165=\"\",\"\",H165=1,'KAN SKJULES Volumen-beregner'!$N$5,H165=2,'KAN SKJULES Volumen-beregner'!$L$5,H165=3,'KAN SKJULES Volumen-beregner'!$J$5,H165=4,'KAN SKJULES Volumen-beregner'!$H$5,H165=5,'KAN SKJULES Volumen-beregner'!$F$5)","v":""},null,null,null,null,null,null,null,null,null,0]
[null,null,null,null,null,null,null,null,{"$f":"_xlfn.IFS(H166=\"\",\"\",H166=1,'KAN SKJULES Volumen-beregner'!$N$5,H166=2,'KAN SKJULES Volumen-beregner'!$L$5,H166=3,'KAN SKJULES Volumen-beregner'!$J$5,H166=4,'KAN SKJULES Volumen-beregner'!$H$5,H166=5,'KAN SKJULES Volumen-beregner'!$F$5)","v":""},null,null,null,null,null,null,null,null,null,0]
[null,null,null,null,null,null,null,null,{"$f":"_xlfn.IFS(H167=\"\",\"\",H167=1,'KAN SKJULES Volumen-beregner'!$N$5,H167=2,'KAN SKJULES Volumen-beregner'!$L$5,H167=3,'KAN SKJULES Volumen-beregner'!$J$5,H167=4,'KAN SKJULES Volumen-beregner'!$H$5,H167=5,'KAN SKJULES Volumen-beregner'!$F$5)","v":""},null,null,null,null,null,null,null,null,null,0]
[null,null,null,null,null,null,null,null,{"$f":"_xlfn.IFS(H168=\"\",\"\",H168=1,'KAN SKJULES Volumen-beregner'!$N$5,H168=2,'KAN SKJULES Volumen-beregner'!$L$5,H168=3,'KAN SKJULES Volumen-beregner'!$J$5,H168=4,'KAN SKJULES Volumen-beregner'!$H$5,H168=5,'KAN SKJULES Volumen-beregner'!$F$5)","v":""},null,null,null,null,null,null,null,null,null,0]
[null,null,null,null,null,null,null,null,{"$f":"_xlfn.IFS(H169=\"\",\"\",H169=1,'KAN SKJULES Volumen-beregner'!$N$5,H169=2,'KAN SKJULES Volumen-beregner'!$L$5,H169=3,'KAN SKJULES Volumen-beregner'!$J$5,H169=4,'KAN SKJULES Volumen-beregner'!$H$5,H169=5,'KAN SKJULES Volumen-beregner'!$F$5)","v":""},null,null,null,null,null,null,null,null,null,0]
[null,null,null,null,null,null,null,null,{"$f":"_xlfn.IFS(H170=\"\",\"\",H170=1,'KAN SKJULES Volumen-beregner'!$N$5,H170=2,'KAN SKJULES Volumen-beregner'!$L$5,H170=3,'KAN SKJULES Volumen-beregner'!$J$5,H170=4,'KAN SKJULES Volumen-beregner'!$H$5,H170=5,'KAN SKJULES Volumen-beregner'!$F$5)","v":""},null,null,null,null,null,null,null,null,null,0]
[null,null,null,null,null,null,null,null,{"$f":"_xlfn.IFS(H171=\"\",\"\",H171=1,'KAN SKJULES Volumen-beregner'!$N$5,H171=2,'KAN SKJULES Volumen-beregner'!$L$5,H171=3,'KAN SKJULES Volumen-beregner'!$J$5,H171=4,'KAN SKJULES Volumen-beregner'!$H$5,H171=5,'KAN SKJULES Volumen-beregner'!$F$5)","v":""},null,null,null,null,null,null,null,null,null,0]
[null,null,null,null,null,null,null,null,{"$f":"_xlfn.IFS(H172=\"\",\"\",H172=1,'KAN SKJULES Volumen-beregner'!$N$5,H172=2,'KAN SKJULES Volumen-beregner'!$L$5,H172=3,'KAN SKJULES Volumen-beregner'!$J$5,H172=4,'KAN SKJULES Volumen-beregner'!$H$5,H172=5,'KAN SKJULES Volumen-beregner'!$F$5)","v":""},null,null,null,null,null,null,null,null,null,0]
[null,null,null,null,null,null,null,null,{"$f":"_xlfn.IFS(H173=\"\",\"\",H173=1,'KAN SKJULES Volumen-beregner'!$N$5,H173=2,'KAN SKJULES Volumen-beregner'!$L$5,H173=3,'KAN SKJULES Volumen-beregner'!$J$5,H173=4,'KAN SKJULES Volumen-beregner'!$H$5,H173=5,'KAN SKJULES Volumen-beregner'!$F$5)","v":""},null,null,null,null,null,null,null,null,null,0]
[null,null,null,null,null,null,null,null,{"$f":"_xlfn.IFS(H174=\"\",\"\",H174=1,'KAN SKJULES Volumen-beregner'!$N$5,H174=2,'KAN SKJULES Volumen-beregner'!$L$5,H174=3,'KAN SKJULES Volumen-beregner'!$J$5,H174=4,'KAN SKJULES Volumen-beregner'!$H$5,H174=5,'KAN SKJULES Volumen-beregner'!$F$5)","v":""},null,null,null,null,null,null,null,null,null,0]
[null,null,null,null,null,null,null,null,{"$f":"_xlfn.IFS(H175=\"\",\"\",H175=1,'KAN SKJULES Volumen-beregner'!$N$5,H175=2,'KAN SKJULES Volumen-beregner'!$L$5,H175=3,'KAN SKJULES Volumen-beregner'!$J$5,H175=4,'KAN SKJULES Volumen-beregner'!$H$5,H175=5,'KAN SKJULES Volumen-beregner'!$F$5)","v":""},null,null,null,null,null,null,null,null,null,0]
[null,null,null,null,null,null,null,null,{"$f":"_xlfn.IFS(H176=\"\",\"\",H176=1,'KAN SKJULES Volumen-beregner'!$N$5,H176=2,'KAN SKJULES Volumen-beregner'!$L$5,H176=3,'KAN SKJULES Volumen-beregner'!$J$5,H176=4,'KAN SKJULES Volumen-beregner'!$H$5,H176=5,'KAN SKJULES Volumen-beregner'!$F$5)","v":""},null,null,null,null,null,null,null,null,null,0]
[null,null,null,null,null,null,null,null,{"$f":"_xlfn.IFS(H177=\"\",\"\",H177=1,'KAN SKJULES Volumen-beregner'!$N$5,H177=2,'KAN SKJULES Volumen-beregner'!$L$5,H177=3,'KAN SKJULES Volumen-beregner'!$J$5,H177=4,'KAN SKJULES Volumen-beregner'!$H$5,H177=5,'KAN SKJULES Volumen-beregner'!$F$5)","v":""},null,null,null,null,null,null,null,null,null,0]
[null,null,null,null,null,null,null,null,{"$f":"_xlfn.IFS(H178=\"\",\"\",H178=1,'KAN SKJULES Volumen-beregner'!$N$5,H178=2,'KAN SKJULES Volumen-beregner'!$L$5,H178=3,'KAN SKJULES Volumen-beregner'!$J$5,H178=4,'KAN SKJULES Volumen-beregner'!$H$5,H178=5,'KAN SKJULES Volumen-beregner'!$F$5)","v":""},null,null,null,null,null,null,null,null,null,0]
[null,null,null,null,null,null,null,null,{"$f":"_xlfn.IFS(H179=\"\",\"\",H179=1,'KAN SKJULES Volumen-beregner'!$N$5,H179=2,'KAN SKJULES Volumen-beregner'!$L$5,H179=3,'KAN SKJULES Volumen-beregner'!$J$5,H179=4,'KAN SKJULES Volumen-beregner'!$H$5,H179=5,'KAN SKJULES Volumen-beregner'!$F$5)","v":""},null,null,null,null,null,null,null,null,null,0]
[null,null,null,null,null,null,null,null,{"$f":"_xlfn.IFS(H180=\"\",\"\",H180=1,'KAN SKJULES Volumen-beregner'!$N$5,H180=2,'KAN SKJULES Volumen-beregner'!$L$5,H180=3,'KAN SKJULES Volumen-beregner'!$J$5,H180=4,'KAN SKJULES Volumen-beregner'!$H$5,H180=5,'KAN SKJULES Volumen-beregner'!$F$5)","v":""},null,null,null,null,null,null,null,null,null,0]
[null,null,null,null,null,null,null,null,{"$f":"_xlfn.IFS(H181=\"\",\"\",H181=1,'KAN SKJULES Volumen-beregner'!$N$5,H181=2,'KAN SKJULES Volumen-beregner'!$L$5,H181=3,'KAN SKJULES Volumen-beregner'!$J$5,H181=4,'KAN SKJULES Volumen-beregner'!$H$5,H181=5,'KAN SKJULES Volumen-beregner'!$F$5)","v":""},null,null,null,null,null,null,null,null,null,0]
[null,null,null,null,null,null,null,null,{"$f":"_xlfn.IFS(H182=\"\",\"\",H182=1,'KAN SKJULES Volumen-beregner'!$N$5,H182=2,'KAN SKJULES Volumen-beregner'!$L$5,H182=3,'KAN SKJULES Volumen-beregner'!$J$5,H182=4,'KAN SKJULES Volumen-beregner'!$H$5,H182=5,'KAN SKJULES Volumen-beregner'!$F$5)","v":""},null,null,null,null,null,null,null,null,null,0]
[null,null,null,null,null,null,null,null,{"$f":"_xlfn.IFS(H183=\"\",\"\",H183=1,'KAN SKJULES Volumen-beregner'!$N$5,H183=2,'KAN SKJULES Volumen-beregner'!$L$5,H183=3,'KAN SKJULES Volumen-beregner'!$J$5,H183=4,'KAN SKJULES Volumen-beregner'!$H$5,H183=5,'KAN SKJULES Volumen-beregner'!$F$5)","v":""},null,null,null,null,null,null,null,null,null,0]
[null,null,null,null,null,null,null,null,{"$f":"_xlfn.IFS(H184=\"\",\"\",H184=1,'KAN SKJULES Volumen-beregner'!$N$5,H184=2,'KAN SKJULES Volumen-beregner'!$L$5,H184=3,'KAN SKJULES Volumen-beregner'!$J$5,H184=4,'KAN SKJULES Volumen-beregner'!$H$5,H184=5,'KAN SKJULES Volumen-beregner'!$F$5)","v":""},null,null,null,null,null,null,null,null,null,0]
[null,null,null,null,null,null,null,null,{"$f":"_xlfn.IFS(H185=\"\",\"\",H185=1,'KAN SKJULES Volumen-beregner'!$N$5,H185=2,'KAN SKJULES Volumen-beregner'!$L$5,H185=3,'KAN SKJULES Volumen-beregner'!$J$5,H185=4,'KAN SKJULES Volumen-beregner'!$H$5,H185=5,'KAN SKJULES Volumen-beregner'!$F$5)","v":""},null,null,null,null,null,null,null,null,null,0]
[null,null,null,null,null,null,null,null,{"$f":"_xlfn.IFS(H186=\"\",\"\",H186=1,'KAN SKJULES Volumen-beregner'!$N$5,H186=2,'KAN SKJULES Volumen-beregner'!$L$5,H186=3,'KAN SKJULES Volumen-beregner'!$J$5,H186=4,'KAN SKJULES Volumen-beregner'!$H$5,H186=5,'KAN SKJULES Volumen-beregner'!$F$5)","v":""},null,null,null,null,null,null,null,null,null,0]
[null,null,null,null,null,null,null,null,{"$f":"_xlfn.IFS(H187=\"\",\"\",H187=1,'KAN SKJULES Volumen-beregner'!$N$5,H187=2,'KAN SKJULES Volumen-beregner'!$L$5,H187=3,'KAN SKJULES Volumen-beregner'!$J$5,H187=4,'KAN SKJULES Volumen-beregner'!$H$5,H187=5,'KAN SKJULES Volumen-beregner'!$F$5)","v":""},null,null,null,null,null,null,null,null,null,0]
[null,null,null,null,null,null,null,null,{"$f":"_xlfn.IFS(H188=\"\",\"\",H188=1,'KAN SKJULES Volumen-beregner'!$N$5,H188=2,'KAN SKJULES Volumen-beregner'!$L$5,H188=3,'KAN SKJULES Volumen-beregner'!$J$5,H188=4,'KAN SKJULES Volumen-beregner'!$H$5,H188=5,'KAN SKJULES Volumen-beregner'!$F$5)","v":""},null,null,null,null,null,null,null,null,null,0]
[null,null,null,null,null,null,null,null,{"$f":"_xlfn.IFS(H189=\"\",\"\",H189=1,'KAN SKJULES Volumen-beregner'!$N$5,H189=2,'KAN SKJULES Volumen-beregner'!$L$5,H189=3,'KAN SKJULES Volumen-beregner'!$J$5,H189=4,'KAN SKJULES Volumen-beregner'!$H$5,H189=5,'KAN SKJULES Volumen-beregner'!$F$5)","v":""},null,null,null,null,null,null,null,null,null,0]
[null,null,null,null,null,null,null,null,{"$f":"_xlfn.IFS(H190=\"\",\"\",H190=1,'KAN SKJULES Volumen-beregner'!$N$5,H190=2,'KAN SKJULES Volumen-beregner'!$L$5,H190=3,'KAN SKJULES Volumen-beregner'!$J$5,H190=4,'KAN SKJULES Volumen-beregner'!$H$5,H190=5,'KAN SKJULES Volumen-beregner'!$F$5)","v":""},null,null,null,null,null,null,null,null,null,0]
[null,null,null,null,null,null,null,null,{"$f":"_xlfn.IFS(H191=\"\",\"\",H191=1,'KAN SKJULES Volumen-beregner'!$N$5,H191=2,'KAN SKJULES Volumen-beregner'!$L$5,H191=3,'KAN SKJULES Volumen-beregner'!$J$5,H191=4,'KAN SKJULES Volumen-beregner'!$H$5,H191=5,'KAN SKJULES Volumen-beregner'!$F$5)","v":""},null,null,null,null,null,null,null,null,null,0]
[null,null,null,null,null,null,null,null,{"$f":"_xlfn.IFS(H192=\"\",\"\",H192=1,'KAN SKJULES Volumen-beregner'!$N$5,H192=2,'KAN SKJULES Volumen-beregner'!$L$5,H192=3,'KAN SKJULES Volumen-beregner'!$J$5,H192=4,'KAN SKJULES Volumen-beregner'!$H$5,H192=5,'KAN SKJULES Volumen-beregner'!$F$5)","v":""},null,null,null,null,null,null,null,null,null,0]
[null,null,null,null,null,null,null,null,{"$f":"_xlfn.IFS(H193=\"\",\"\",H193=1,'KAN SKJULES Volumen-beregner'!$N$5,H193=2,'KAN SKJULES Volumen-beregner'!$L$5,H193=3,'KAN SKJULES Volumen-beregner'!$J$5,H193=4,'KAN SKJULES Volumen-beregner'!$H$5,H193=5,'KAN SKJULES Volumen-beregner'!$F$5)","v":""},null,null,null,null,null,null,null,null,null,0]
[null,null,null,null,null,null,null,null,{"$f":"_xlfn.IFS(H194=\"\",\"\",H194=1,'KAN SKJULES Volumen-beregner'!$N$5,H194=2,'KAN SKJULES Volumen-beregner'!$L$5,H194=3,'KAN SKJULES Volumen-beregner'!$J$5,H194=4,'KAN SKJULES Volumen-beregner'!$H$5,H194=5,'KAN SKJULES Volumen-beregner'!$F$5)","v":""},null,null,null,null,null,null,null,null,null,0]
[null,null,null,null,null,null,null,null,{"$f":"_xlfn.IFS(H195=\"\",\"\",H195=1,'KAN SKJULES Volumen-beregner'!$N$5,H195=2,'KAN SKJULES Volumen-beregner'!$L$5,H195=3,'KAN SKJULES Volumen-beregner'!$J$5,H195=4,'KAN SKJULES Volumen-beregner'!$H$5,H195=5,'KAN SKJULES Volumen-beregner'!$F$5)","v":""},null,null,null,null,null,null,null,null,null,0]
[null,null,null,null,null,null,null,null,{"$f":"_xlfn.IFS(H196=\"\",\"\",H196=1,'KAN SKJULES Volumen-beregner'!$N$5,H196=2,'KAN SKJULES Volumen-beregner'!$L$5,H196=3,'KAN SKJULES Volumen-beregner'!$J$5,H196=4,'KAN SKJULES Volumen-beregner'!$H$5,H196=5,'KAN SKJULES Volumen-beregner'!$F$5)","v":""},null,null,null,null,null,null,null,null,null,0]
[null,null,null,null,null,null,null,null,{"$f":"_xlfn.IFS(H197=\"\",\"\",H197=1,'KAN SKJULES Volumen-beregner'!$N$5,H197=2,'KAN SKJULES Volumen-beregner'!$L$5,H197=3,'KAN SKJULES Volumen-beregner'!$J$5,H197=4,'KAN SKJULES Volumen-beregner'!$H$5,H197=5,'KAN SKJULES Volumen-beregner'!$F$5)","v":""},null,null,null,null,null,null,null,null,null,{"$f":"IFERROR((J197+K197+L197+M197+N197+O197+P197)*I197,0)","v":0}]
[null,null,null,null,null,null,null,null,{"$f":"_xlfn.IFS(H198=\"\",\"\",H198=1,'KAN SKJULES Volumen-beregner'!$N$5,H198=2,'KAN SKJULES Volumen-beregner'!$L$5,H198=3,'KAN SKJULES Volumen-beregner'!$J$5,H198=4,'KAN SKJULES Volumen-beregner'!$H$5,H198=5,'KAN SKJULES Volumen-beregner'!$F$5)","v":""},null,null,null,null,null,null,null,null,null,0]
[null,null,null,null,null,null,null,null,{"$f":"_xlfn.IFS(H199=\"\",\"\",H199=1,'KAN SKJULES Volumen-beregner'!$N$5,H199=2,'KAN SKJULES Volumen-beregner'!$L$5,H199=3,'KAN SKJULES Volumen-beregner'!$J$5,H199=4,'KAN SKJULES Volumen-beregner'!$H$5,H199=5,'KAN SKJULES Volumen-beregner'!$F$5)","v":""},null,null,null,null,null,null,null,null,null,0]
[null,null,null,null,null,null,null,null,{"$f":"_xlfn.IFS(H200=\"\",\"\",H200=1,'KAN SKJULES Volumen-beregner'!$N$5,H200=2,'KAN SKJULES Volumen-beregner'!$L$5,H200=3,'KAN SKJULES Volumen-beregner'!$J$5,H200=4,'KAN SKJULES Volumen-beregner'!$H$5,H200=5,'KAN SKJULES Volumen-beregner'!$F$5)","v":""},null,null,null,null,null,null,null,null,null,0]
[null,null,null,null,null,null,null,null,{"$f":"_xlfn.IFS(H201=\"\",\"\",H201=1,'KAN SKJULES Volumen-beregner'!$N$5,H201=2,'KAN SKJULES Volumen-beregner'!$L$5,H201=3,'KAN SKJULES Volumen-beregner'!$J$5,H201=4,'KAN SKJULES Volumen-beregner'!$H$5,H201=5,'KAN SKJULES Volumen-beregner'!$F$5)","v":""},null,null,null,null,null,null,null,null,null,0]
[null,null,null,null,null,null,null,null,{"$f":"_xlfn.IFS(H202=\"\",\"\",H202=1,'KAN SKJULES Volumen-beregner'!$N$5,H202=2,'KAN SKJULES Volumen-beregner'!$L$5,H202=3,'KAN SKJULES Volumen-beregner'!$J$5,H202=4,'KAN SKJULES Volumen-beregner'!$H$5,H202=5,'KAN SKJULES Volumen-beregner'!$F$5)","v":""},null,null,null,null,null,null,null,null,null,0]
[null,null,null,null,null,null,null,null,{"$f":"_xlfn.IFS(H203=\"\",\"\",H203=1,'KAN SKJULES Volumen-beregner'!$N$5,H203=2,'KAN SKJULES Volumen-beregner'!$L$5,H203=3,'KAN SKJULES Volumen-beregner'!$J$5,H203=4,'KAN SKJULES Volumen-beregner'!$H$5,H203=5,'KAN SKJULES Volumen-beregner'!$F$5)","v":""},null,null,null,null,null,null,null,null,null,0]
[null,null,null,null,null,null,null,null,{"$f":"_xlfn.IFS(H204=\"\",\"\",H204=1,'KAN SKJULES Volumen-beregner'!$N$5,H204=2,'KAN SKJULES Volumen-beregner'!$L$5,H204=3,'KAN SKJULES Volumen-beregner'!$J$5,H204=4,'KAN SKJULES Volumen-beregner'!$H$5,H204=5,'KAN SKJULES Volumen-beregner'!$F$5)","v":""},null,null,null,null,null,null,null,null,null,0]
[null,null,null,null,null,null,null,null,{"$f":"_xlfn.IFS(H205=\"\",\"\",H205=1,'KAN SKJULES Volumen-beregner'!$N$5,H205=2,'KAN SKJULES Volumen-beregner'!$L$5,H205=3,'KAN SKJULES Volumen-beregner'!$J$5,H205=4,'KAN SKJULES Volumen-beregner'!$H$5,H205=5,'KAN SKJULES Volumen-beregner'!$F$5)","v":""},null,null,null,null,null,null,null,null,null,0]
[null,null,null,null,null,null,null,null,{"$f":"_xlfn.IFS(H206=\"\",\"\",H206=1,'KAN SKJULES Volumen-beregner'!$N$5,H206=2,'KAN SKJULES Volumen-beregner'!$L$5,H206=3,'KAN SKJULES Volumen-beregner'!$J$5,H206=4,'KAN SKJULES Volumen-beregner'!$H$5,H206=5,'KAN SKJULES Volumen-beregner'!$F$5)","v":""},null,null,null,null,null,null,null,null,null,0]
[null,null,null,null,null,null,null,null,{"$f":"_xlfn.IFS(H207=\"\",\"\",H207=1,'KAN SKJULES Volumen-beregner'!$N$5,H207=2,'KAN SKJULES Volumen-beregner'!$L$5,H207=3,'KAN SKJULES Volumen-beregner'!$J$5,H207=4,'KAN SKJULES Volumen-beregner'!$H$5,H207=5,'KAN SKJULES Volumen-beregner'!$F$5)","v":""},null,null,null,null,null,null,null,null,null,0]
[null,null,null,null,null,null,null,null,{"$f":"_xlfn.IFS(H208=\"\",\"\",H208=1,'KAN SKJULES Volumen-beregner'!$N$5,H208=2,'KAN SKJULES Volumen-beregner'!$L$5,H208=3,'KAN SKJULES Volumen-beregner'!$J$5,H208=4,'KAN SKJULES Volumen-beregner'!$H$5,H208=5,'KAN SKJULES Volumen-beregner'!$F$5)","v":""},null,null,null,null,null,null,null,null,null,0]
[null,null,null,null,null,null,null,null,{"$f":"_xlfn.IFS(H209=\"\",\"\",H209=1,'KAN SKJULES Volumen-beregner'!$N$5,H209=2,'KAN SKJULES Volumen-beregner'!$L$5,H209=3,'KAN SKJULES Volumen-beregner'!$J$5,H209=4,'KAN SKJULES Volumen-beregner'!$H$5,H209=5,'KAN SKJULES Volumen-beregner'!$F$5)","v":""},null,null,null,null,null,null,null,null,null,0]
[null,null,null,null,null,null,null,null,{"$f":"_xlfn.IFS(H210=\"\",\"\",H210=1,'KAN SKJULES Volumen-beregner'!$N$5,H210=2,'KAN SKJULES Volumen-beregner'!$L$5,H210=3,'KAN SKJULES Volumen-beregner'!$J$5,H210=4,'KAN SKJULES Volumen-beregner'!$H$5,H210=5,'KAN SKJULES Volumen-beregner'!$F$5)","v":""},null,null,null,null,null,null,null,null,null,0]
[null,null,null,null,null,null,null,null,{"$f":"_xlfn.IFS(H211=\"\",\"\",H211=1,'KAN SKJULES Volumen-beregner'!$N$5,H211=2,'KAN SKJULES Volumen-beregner'!$L$5,H211=3,'KAN SKJULES Volumen-beregner'!$J$5,H211=4,'KAN SKJULES Volumen-beregner'!$H$5,H211=5,'KAN SKJULES Volumen-beregner'!$F$5)","v":""},null,null,null,null,null,null,null,null,null,0]
[null,null,null,null,null,null,null,null,{"$f":"_xlfn.IFS(H212=\"\",\"\",H212=1,'KAN SKJULES Volumen-beregner'!$N$5,H212=2,'KAN SKJULES Volumen-beregner'!$L$5,H212=3,'KAN SKJULES Volumen-beregner'!$J$5,H212=4,'KAN SKJULES Volumen-beregner'!$H$5,H212=5,'KAN SKJULES Volumen-beregner'!$F$5)","v":""},null,null,null,null,null,null,null,null,null,0]
[null,null,null,null,null,null,null,null,{"$f":"_xlfn.IFS(H213=\"\",\"\",H213=1,'KAN SKJULES Volumen-beregner'!$N$5,H213=2,'KAN SKJULES Volumen-beregner'!$L$5,H213=3,'KAN SKJULES Volumen-beregner'!$J$5,H213=4,'KAN SKJULES Volumen-beregner'!$H$5,H213=5,'KAN SKJULES Volumen-beregner'!$F$5)","v":""},null,null,null,null,null,null,null,null,null,0]
[null,null,null,null,null,null,null,null,{"$f":"_xlfn.IFS(H214=\"\",\"\",H214=1,'KAN SKJULES Volumen-beregner'!$N$5,H214=2,'KAN SKJULES Volumen-beregner'!$L$5,H214=3,'KAN SKJULES Volumen-beregner'!$J$5,H214=4,'KAN SKJULES Volumen-beregner'!$H$5,H214=5,'KAN SKJULES Volumen-beregner'!$F$5)","v":""},null,null,null,null,null,null,null,null,null,0]
[null,null,null,null,null,null,null,null,{"$f":"_xlfn.IFS(H215=\"\",\"\",H215=1,'KAN SKJULES Volumen-beregner'!$N$5,H215=2,'KAN SKJULES Volumen-beregner'!$L$5,H215=3,'KAN SKJULES Volumen-beregner'!$J$5,H215=4,'KAN SKJULES Volumen-beregner'!$H$5,H215=5,'KAN SKJULES Volumen-beregner'!$F$5)","v":""},null,null,null,null,null,null,null,null,null,0]
[null,null,null,null,null,null,null,null,{"$f":"_xlfn.IFS(H216=\"\",\"\",H216=1,'KAN SKJULES Volumen-beregner'!$N$5,H216=2,'KAN SKJULES Volumen-beregner'!$L$5,H216=3,'KAN SKJULES Volumen-beregner'!$J$5,H216=4,'KAN SKJULES Volumen-beregner'!$H$5,H216=5,'KAN SKJULES Volumen-beregner'!$F$5)","v":""},null,null,null,null,null,null,null,null,null,0]
[null,null,null,null,null,null,null,null,{"$f":"_xlfn.IFS(H217=\"\",\"\",H217=1,'KAN SKJULES Volumen-beregner'!$N$5,H217=2,'KAN SKJULES Volumen-beregner'!$L$5,H217=3,'KAN SKJULES Volumen-beregner'!$J$5,H217=4,'KAN SKJULES Volumen-beregner'!$H$5,H217=5,'KAN SKJULES Volumen-beregner'!$F$5)","v":""},null,null,null,null,null,null,null,null,null,0]
[null,null,null,null,null,null,null,null,{"$f":"_xlfn.IFS(H218=\"\",\"\",H218=1,'KAN SKJULES Volumen-beregner'!$N$5,H218=2,'KAN SKJULES Volumen-beregner'!$L$5,H218=3,'KAN SKJULES Volumen-beregner'!$J$5,H218=4,'KAN SKJULES Volumen-beregner'!$H$5,H218=5,'KAN SKJULES Volumen-beregner'!$F$5)","v":""},null,null,null,null,null,null,null,null,null,0]
[null,null,null,null,null,null,null,null,{"$f":"_xlfn.IFS(H219=\"\",\"\",H219=1,'KAN SKJULES Volumen-beregner'!$N$5,H219=2,'KAN SKJULES Volumen-beregner'!$L$5,H219=3,'KAN SKJULES Volumen-beregner'!$J$5,H219=4,'KAN SKJULES Volumen-beregner'!$H$5,H219=5,'KAN SKJULES Volumen-beregner'!$F$5)","v":""},null,null,null,null,null,null,null,null,null,0]
[null,null,null,null,null,null,null,null,{"$f":"_xlfn.IFS(H220=\"\",\"\",H220=1,'KAN SKJULES Volumen-beregner'!$N$5,H220=2,'KAN SKJULES Volumen-beregner'!$L$5,H220=3,'KAN SKJULES Volumen-beregner'!$J$5,H220=4,'KAN SKJULES Volumen-beregner'!$H$5,H220=5,'KAN SKJULES Volumen-beregner'!$F$5)","v":""},null,null,null,null,null,null,null,null,null,0]
[null,null,null,null,null,null,null,null,{"$f":"_xlfn.IFS(H221=\"\",\"\",H221=1,'KAN SKJULES Volumen-beregner'!$N$5,H221=2,'KAN SKJULES Volumen-beregner'!$L$5,H221=3,'KAN SKJULES Volumen-beregner'!$J$5,H221=4,'KAN SKJULES Volumen-beregner'!$H$5,H221=5,'KAN SKJULES Volumen-beregner'!$F$5)","v":""},null,null,null,null,null,null,null,null,null,0]
[null,null,null,null,null,null,null,null,{"$f":"_xlfn.IFS(H222=\"\",\"\",H222=1,'KAN SKJULES Volumen-beregner'!$N$5,H222=2,'KAN SKJULES Volumen-beregner'!$L$5,H222=3,'KAN SKJULES Volumen-beregner'!$J$5,H222=4,'KAN SKJULES Volumen-beregner'!$H$5,H222=5,'KAN SKJULES Volumen-beregner'!$F$5)","v":""},null,null,null,null,null,null,null,null,null,0]
[null,null,null,null,null,null,null,null,{"$f":"_xlfn.IFS(H223=\"\",\"\",H223=1,'KAN SKJULES Volumen-beregner'!$N$5,H223=2,'KAN SKJULES Volumen-beregner'!$L$5,H223=3,'KAN SKJULES Volumen-beregner'!$J$5,H223=4,'KAN SKJULES Volumen-beregner'!$H$5,H223=5,'KAN SKJULES Volumen-beregner'!$F$5)","v":""},null,null,null,null,null,null,null,null,null,0]
[null,null,null,null,null,null,null,null,{"$f":"_xlfn.IFS(H224=\"\",\"\",H224=1,'KAN SKJULES Volumen-beregner'!$N$5,H224=2,'KAN SKJULES Volumen-beregner'!$L$5,H224=3,'KAN SKJULES Volumen-beregner'!$J$5,H224=4,'KAN SKJULES Volumen-beregner'!$H$5,H224=5,'KAN SKJULES Volumen-beregner'!$F$5)","v":""},null,null,null,null,null,null,null,null,null,0]
[null,null,null,null,null,null,null,null,{"$f":"_xlfn.IFS(H225=\"\",\"\",H225=1,'KAN SKJULES Volumen-beregner'!$N$5,H225=2,'KAN SKJULES Volumen-beregner'!$L$5,H225=3,'KAN SKJULES Volumen-beregner'!$J$5,H225=4,'KAN SKJULES Volumen-beregner'!$H$5,H225=5,'KAN SKJULES Volumen-beregner'!$F$5)","v":""},null,null,null,null,null,null,null,null,null,0]
[null,null,null,null,null,null,null,null,{"$f":"_xlfn.IFS(H226=\"\",\"\",H226=1,'KAN SKJULES Volumen-beregner'!$N$5,H226=2,'KAN SKJULES Volumen-beregner'!$L$5,H226=3,'KAN SKJULES Volumen-beregner'!$J$5,H226=4,'KAN SKJULES Volumen-beregner'!$H$5,H226=5,'KAN SKJULES Volumen-beregner'!$F$5)","v":""},null,null,null,null,null,null,null,null,null,0]
[null,null,null,null,null,null,null,null,{"$f":"_xlfn.IFS(H227=\"\",\"\",H227=1,'KAN SKJULES Volumen-beregner'!$N$5,H227=2,'KAN SKJULES Volumen-beregner'!$L$5,H227=3,'KAN SKJULES Volumen-beregner'!$J$5,H227=4,'KAN SKJULES Volumen-beregner'!$H$5,H227=5,'KAN SKJULES Volumen-beregner'!$F$5)","v":""},null,null,null,null,null,null,null,null,null,0]
[null,null,null,null,null,null,null,null,{"$f":"_xlfn.IFS(H228=\"\",\"\",H228=1,'KAN SKJULES Volumen-beregner'!$N$5,H228=2,'KAN SKJULES Volumen-beregner'!$L$5,H228=3,'KAN SKJULES Volumen-beregner'!$J$5,H228=4,'KAN SKJULES Volumen-beregner'!$H$5,H228=5,'KAN SKJULES Volumen-beregner'!$F$5)","v":""},null,null,null,null,null,null,null,null,null,0]
[null,null,null,null,null,null,null,null,{"$f":"_xlfn.IFS(H229=\"\",\"\",H229=1,'KAN SKJULES Volumen-beregner'!$N$5,H229=2,'KAN SKJULES Volumen-beregner'!$L$5,H229=3,'KAN SKJULES Volumen-beregner'!$J$5,H229=4,'KAN SKJULES Volumen-beregner'!$H$5,H229=5,'KAN SKJULES Volumen-beregner'!$F$5)","v":""},null,null,null,null,null,null,null,null,null,0]
[null,null,null,null,null,null,null,null,{"$f":"_xlfn.IFS(H230=\"\",\"\",H230=1,'KAN SKJULES Volumen-beregner'!$N$5,H230=2,'KAN SKJULES Volumen-beregner'!$L$5,H230=3,'KAN SKJULES Volumen-beregner'!$J$5,H230=4,'KAN SKJULES Volumen-beregner'!$H$5,H230=5,'KAN SKJULES Volumen-beregner'!$F$5)","v":""},null,null,null,null,null,null,null,null,null,0]
[null,null,null,null,null,null,null,null,{"$f":"_xlfn.IFS(H231=\"\",\"\",H231=1,'KAN SKJULES Volumen-beregner'!$N$5,H231=2,'KAN SKJULES Volumen-beregner'!$L$5,H231=3,'KAN SKJULES Volumen-beregner'!$J$5,H231=4,'KAN SKJULES Volumen-beregner'!$H$5,H231=5,'KAN SKJULES Volumen-beregner'!$F$5)","v":""},null,null,null,null,null,null,null,null,null,0]
[null,null,null,null,null,null,null,null,{"$f":"_xlfn.IFS(H232=\"\",\"\",H232=1,'KAN SKJULES Volumen-beregner'!$N$5,H232=2,'KAN SKJULES Volumen-beregner'!$L$5,H232=3,'KAN SKJULES Volumen-beregner'!$J$5,H232=4,'KAN SKJULES Volumen-beregner'!$H$5,H232=5,'KAN SKJULES Volumen-beregner'!$F$5)","v":""},null,null,null,null,null,null,null,null,null,0]
[null,null,null,null,null,null,null,null,{"$f":"_xlfn.IFS(H233=\"\",\"\",H233=1,'KAN SKJULES Volumen-beregner'!$N$5,H233=2,'KAN SKJULES Volumen-beregner'!$L$5,H233=3,'KAN SKJULES Volumen-beregner'!$J$5,H233=4,'KAN SKJULES Volumen-beregner'!$H$5,H233=5,'KAN SKJULES Volumen-beregner'!$F$5)","v":""},null,null,null,null,null,null,null,null,null,0]
[null,null,null,null,null,null,null,null,{"$f":"_xlfn.IFS(H234=\"\",\"\",H234=1,'KAN SKJULES Volumen-beregner'!$N$5,H234=2,'KAN SKJULES Volumen-beregner'!$L$5,H234=3,'KAN SKJULES Volumen-beregner'!$J$5,H234=4,'KAN SKJULES Volumen-beregner'!$H$5,H234=5,'KAN SKJULES Volumen-beregner'!$F$5)","v":""},null,null,null,null,null,null,null,null,null,0]
[null,null,null,null,null,null,null,null,{"$f":"_xlfn.IFS(H235=\"\",\"\",H235=1,'KAN SKJULES Volumen-beregner'!$N$5,H235=2,'KAN SKJULES Volumen-beregner'!$L$5,H235=3,'KAN SKJULES Volumen-beregner'!$J$5,H235=4,'KAN SKJULES Volumen-beregner'!$H$5,H235=5,'KAN SKJULES Volumen-beregner'!$F$5)","v":""},null,null,null,null,null,null,null,null,null,0]
[null,null,null,null,null,null,null,null,{"$f":"_xlfn.IFS(H236=\"\",\"\",H236=1,'KAN SKJULES Volumen-beregner'!$N$5,H236=2,'KAN SKJULES Volumen-beregner'!$L$5,H236=3,'KAN SKJULES Volumen-beregner'!$J$5,H236=4,'KAN SKJULES Volumen-beregner'!$H$5,H236=5,'KAN SKJULES Volumen-beregner'!$F$5)","v":""},null,null,null,null,null,null,null,null,null,0]
[null,null,null,null,null,null,null,null,{"$f":"_xlfn.IFS(H237=\"\",\"\",H237=1,'KAN SKJULES Volumen-beregner'!$N$5,H237=2,'KAN SKJULES Volumen-beregner'!$L$5,H237=3,'KAN SKJULES Volumen-beregner'!$J$5,H237=4,'KAN SKJULES Volumen-beregner'!$H$5,H237=5,'KAN SKJULES Volumen-beregner'!$F$5)","v":""},null,null,null,null,null,null,null,null,null,0]
[null,null,null,null,null,null,null,null,{"$f":"_xlfn.IFS(H238=\"\",\"\",H238=1,'KAN SKJULES Volumen-beregner'!$N$5,H238=2,'KAN SKJULES Volumen-beregner'!$L$5,H238=3,'KAN SKJULES Volumen-beregner'!$J$5,H238=4,'KAN SKJULES Volumen-beregner'!$H$5,H238=5,'KAN SKJULES Volumen-beregner'!$F$5)","v":""},null,null,null,null,null,null,null,null,null,0]
[null,null,null,null,null,null,null,null,{"$f":"_xlfn.IFS(H239=\"\",\"\",H239=1,'KAN SKJULES Volumen-beregner'!$N$5,H239=2,'KAN SKJULES Volumen-beregner'!$L$5,H239=3,'KAN SKJULES Volumen-beregner'!$J$5,H239=4,'KAN SKJULES Volumen-beregner'!$H$5,H239=5,'KAN SKJULES Volumen-beregner'!$F$5)","v":""},null,null,null,null,null,null,null,null,null,0]
[null,null,null,null,null,null,null,null,{"$f":"_xlfn.IFS(H240=\"\",\"\",H240=1,'KAN SKJULES Volumen-beregner'!$N$5,H240=2,'KAN SKJULES Volumen-beregner'!$L$5,H240=3,'KAN SKJULES Volumen-beregner'!$J$5,H240=4,'KAN SKJULES Volumen-beregner'!$H$5,H240=5,'KAN SKJULES Volumen-beregner'!$F$5)","v":""},null,null,null,null,null,null,null,null,null,0]
[null,null,null,null,null,null,null,null,{"$f":"_xlfn.IFS(H241=\"\",\"\",H241=1,'KAN SKJULES Volumen-beregner'!$N$5,H241=2,'KAN SKJULES Volumen-beregner'!$L$5,H241=3,'KAN SKJULES Volumen-beregner'!$J$5,H241=4,'KAN SKJULES Volumen-beregner'!$H$5,H241=5,'KAN SKJULES Volumen-beregner'!$F$5)","v":""},null,null,null,null,null,null,null,null,null,0]
[null,null,null,null,null,null,null,null,{"$f":"_xlfn.IFS(H242=\"\",\"\",H242=1,'KAN SKJULES Volumen-beregner'!$N$5,H242=2,'KAN SKJULES Volumen-beregner'!$L$5,H242=3,'KAN SKJULES Volumen-beregner'!$J$5,H242=4,'KAN SKJULES Volumen-beregner'!$H$5,H242=5,'KAN SKJULES Volumen-beregner'!$F$5)","v":""},null,null,null,null,null,null,null,null,null,0]
[null,null,null,null,null,null,null,null,{"$f":"_xlfn.IFS(H243=\"\",\"\",H243=1,'KAN SKJULES Volumen-beregner'!$N$5,H243=2,'KAN SKJULES Volumen-beregner'!$L$5,H243=3,'KAN SKJULES Volumen-beregner'!$J$5,H243=4,'KAN SKJULES Volumen-beregner'!$H$5,H243=5,'KAN SKJULES Volumen-beregner'!$F$5)","v":""},null,null,null,null,null,null,null,null,null,0]
[null,null,null,null,null,null,null,null,{"$f":"_xlfn.IFS(H244=\"\",\"\",H244=1,'KAN SKJULES Volumen-beregner'!$N$5,H244=2,'KAN SKJULES Volumen-beregner'!$L$5,H244=3,'KAN SKJULES Volumen-beregner'!$J$5,H244=4,'KAN SKJULES Volumen-beregner'!$H$5,H244=5,'KAN SKJULES Volumen-beregner'!$F$5)","v":""},null,null,null,null,null,null,null,null,null,0]
[null,null,null,null,null,null,null,null,{"$f":"_xlfn.IFS(H245=\"\",\"\",H245=1,'KAN SKJULES Volumen-beregner'!$N$5,H245=2,'KAN SKJULES Volumen-beregner'!$L$5,H245=3,'KAN SKJULES Volumen-beregner'!$J$5,H245=4,'KAN SKJULES Volumen-beregner'!$H$5,H245=5,'KAN SKJULES Volumen-beregner'!$F$5)","v":""},null,null,null,null,null,null,null,null,null,0]
[null,null,null,null,null,null,null,null,{"$f":"_xlfn.IFS(H246=\"\",\"\",H246=1,'KAN SKJULES Volumen-beregner'!$N$5,H246=2,'KAN SKJULES Volumen-beregner'!$L$5,H246=3,'KAN SKJULES Volumen-beregner'!$J$5,H246=4,'KAN SKJULES Volumen-beregner'!$H$5,H246=5,'KAN SKJULES Volumen-beregner'!$F$5)","v":""},null,null,null,null,null,null,null,null,null,0]
[null,null,null,null,null,null,null,null,{"$f":"_xlfn.IFS(H247=\"\",\"\",H247=1,'KAN SKJULES Volumen-beregner'!$N$5,H247=2,'KAN SKJULES Volumen-beregner'!$L$5,H247=3,'KAN SKJULES Volumen-beregner'!$J$5,H247=4,'KAN SKJULES Volumen-beregner'!$H$5,H247=5,'KAN SKJULES Volumen-beregner'!$F$5)","v":""},null,null,null,null,null,null,null,null,null,0]
[null,null,null,null,null,null,null,null,{"$f":"_xlfn.IFS(H248=\"\",\"\",H248=1,'KAN SKJULES Volumen-beregner'!$N$5,H248=2,'KAN SKJULES Volumen-beregner'!$L$5,H248=3,'KAN SKJULES Volumen-beregner'!$J$5,H248=4,'KAN SKJULES Volumen-beregner'!$H$5,H248=5,'KAN SKJULES Volumen-beregner'!$F$5)","v":""},null,null,null,null,null,null,null,null,null,0]
[null,null,null,null,null,null,null,null,{"$f":"_xlfn.IFS(H249=\"\",\"\",H249=1,'KAN SKJULES Volumen-beregner'!$N$5,H249=2,'KAN SKJULES Volumen-beregner'!$L$5,H249=3,'KAN SKJULES Volumen-beregner'!$J$5,H249=4,'KAN SKJULES Volumen-beregner'!$H$5,H249=5,'KAN SKJULES Volumen-beregner'!$F$5)","v":""},null,null,null,null,null,null,null,null,null,0]
[null,null,null,null,null,null,null,null,{"$f":"_xlfn.IFS(H250=\"\",\"\",H250=1,'KAN SKJULES Volumen-beregner'!$N$5,H250=2,'KAN SKJULES Volumen-beregner'!$L$5,H250=3,'KAN SKJULES Volumen-beregner'!$J$5,H250=4,'KAN SKJULES Volumen-beregner'!$H$5,H250=5,'KAN SKJULES Volumen-beregner'!$F$5)","v":""},null,null,null,null,null,null,null,null,null,0]
[null,null,null,null,null,null,null,null,{"$f":"_xlfn.IFS(H251=\"\",\"\",H251=1,'KAN SKJULES Volumen-beregner'!$N$5,H251=2,'KAN SKJULES Volumen-beregner'!$L$5,H251=3,'KAN SKJULES Volumen-beregner'!$J$5,H251=4,'KAN SKJULES Volumen-beregner'!$H$5,H251=5,'KAN SKJULES Volumen-beregner'!$F$5)","v":""},null,null,null,null,null,null,null,null,null,0]
[null,null,null,null,null,null,null,null,{"$f":"_xlfn.IFS(H252=\"\",\"\",H252=1,'KAN SKJULES Volumen-beregner'!$N$5,H252=2,'KAN SKJULES Volumen-beregner'!$L$5,H252=3,'KAN SKJULES Volumen-beregner'!$J$5,H252=4,'KAN SKJULES Volumen-beregner'!$H$5,H252=5,'KAN SKJULES Volumen-beregner'!$F$5)","v":""},null,null,null,null,null,null,null,null,null,0]
[null,null,null,null,null,null,null,null,{"$f":"_xlfn.IFS(H253=\"\",\"\",H253=1,'KAN SKJULES Volumen-beregner'!$N$5,H253=2,'KAN SKJULES Volumen-beregner'!$L$5,H253=3,'KAN SKJULES Volumen-beregner'!$J$5,H253=4,'KAN SKJULES Volumen-beregner'!$H$5,H253=5,'KAN SKJULES Volumen-beregner'!$F$5)","v":""},null,null,null,null,null,null,null,null,null,0]
[null,null,null,null,null,null,null,null,{"$f":"_xlfn.IFS(H254=\"\",\"\",H254=1,'KAN SKJULES Volumen-beregner'!$N$5,H254=2,'KAN SKJULES Volumen-beregner'!$L$5,H254=3,'KAN SKJULES Volumen-beregner'!$J$5,H254=4,'KAN SKJULES Volumen-beregner'!$H$5,H254=5,'KAN SKJULES Volumen-beregner'!$F$5)","v":""},null,null,null,null,null,null,null,null,null,0]

{"sheet":"Modtaget","index":2,"n_rows":198,"n_cols":24,"rows_kept":198,"cut":false,"hidden":false,"merged":[[1,7,1,14],[1,0,2,6],[0,0,0,2]]}
["Modtaget post - data fra workshops"]
["Generelt om meddelelsen",null,null,null,null,null,null,"Potentialevurdering"]
[null,null,null,null,null,null,null,"VOLUMEN","VOLUMENINDEKS","GDPR","FRIST","KLE-OPMÆRKNING","OPMÆRKNINGSDATA","ØVRIGE UDFORDRINGER","POTENTIALE"]
["Brevtitel","Kort scenariebeskrivelse","Afsender\n(borger, virksomhed, myndighed, intern)","Specifik myndighed \n(Hvis Afsender = Myndighed)","Modtagersystem\n(OBS: rådata fra workshop - skal valideres lokalt)","Arketype","Fagområde","Hvor ofte modtager vi dette brev?\n\n1= Sjældnent\n2= Månedligt\n3= Ugentligt\n4= Dagligt","Indeks baseret på volumen","Indeholder posten personfølsomme oplysninger?\n\n0=nej\n1=ja","Er brevet underlagt frist for besvarelse?\n\n0=nej\n1=ja","Vil opmærkning med KLE-nummer udover CPR/CVR-nummer være en fordel ift. at omfordele den modtagede post?\n\n0=nej\n1=ja","Kan andre data - eksempelvis ægtefælles CPR-nummer bidrage til at posten havner det rigtige sted? Hvilke?","Beskriv øvrige udfordringer ved sagsgangen","MeMo-potentiale (volumen * potentiale)"]
["Anmodning vedr. udtalelse til andre myndigheder i forhold til konkret sag,","Anmodning vedr. udtalelse til andre myndigheder i forhold til konkret sag,","Udtalelse til andre myndigeder i forbindelse med oplysning af deres sag","Anden myndighed","Outlook","Anmodning om oplysninger","Social og Sundhed",4,{"$f":"_xlfn.IFS(H5=\"\",\"\",H5=1,'KAN SKJULES Volumen-beregner'!$N$10,H5=2,'KAN SKJULES Volumen-beregner'!$L$10,H5=3,'KAN SKJULES Volumen-beregner'!$J$10,H5=4,'KAN SKJULES Volumen-beregner'!$H$10,H5=5,'KAN SKJULES Volumen-beregner'!$F$10)","v":130},1,1,1,"Ja","Henvendelsen kan blive fremsendt til hovedpostkassen, hvorfor det kan tage tid før den kommer frem til rette sted",{"$f":"IFERROR((J5+K5+L5)*I5,0)","v":390}]
["Underretning","Underretning","Anden myndighed","Anden myndighed","Outlook","Information","Social og Sundhed",4,{"$f":"_xlfn.IFS(H6=\"\",\"\",H6=1,'KAN SKJULES Volumen-beregner'!$N$10,H6=2,'KAN SKJULES Volumen-beregner'!$L$10,H6=3,'KAN SKJULES Volumen-beregner'!$J$10,H6=4,'KAN SKJULES Volumen-beregner'!$H$10,H6=5,'KAN SKJULES Volumen-beregner'!$F$10)","v":130},1,1,1,"Ja","Underretninger skal screenes indenfor 24 timer på børneområdet.Underretning om voksne skal ske snarest",390]
["Klage fra borger om egen sag,",null,"Borger",null,"Eboks, mail, dybt link","Information","Social og Sundhed",4,{"$f":"_xlfn.IFS(H7=\"\",\"\",H7=1,'KAN SKJULES Volumen-beregner'!$N$10,H7=2,'KAN SKJULES Volumen-beregner'!$L$10,H7=3,'KAN SKJULES Volumen-beregner'!$J$10,H7=4,'KAN SKJULES Volumen-beregner'!$H$10,H7=5,'KAN SKJULES Volumen-beregner'!$F$10)","v":130},1,1,1,"Ja","Flere indgange og kan omhandle flere dele af kommunen",390]
["Koordinering af konkret borgersag","Koordinering af konkret borgersag","Anden myndighed","Anden myndighed","Outlook","Information","Social og Sundhed",4,{"$f":"_xlfn.IFS(H8=\"\",\"\",H8=1,'KAN SKJULES Volumen-beregner'!$N$10,H8=2,'KAN SKJULES Volumen-beregner'!$L$10,H8=3,'KAN SKJULES Volumen-beregner'!$J$10,H8=4,'KAN SKJULES Volumen-beregner'!$H$10,H8=5,'KAN SKJULES Volumen-beregner'!$F$10)","v":130},1,1,1,"Ja","Det er ikke altid muligt, at skrive til andre myndigheder fra fagsystem, hvorfor dialog sker i outlook og skal efterfølgende journaliseres",390]
["Anmodning fra politiet vedr. ungdomskriminalitetsnævnet","Anmodning om oplysninger","Politi","Politi","Outlook","Anmodning om oplysninger","Børn og Unge",4,{"$f":"_xlfn.IFS(H9=\"\",\"\",H9=1,'KAN SKJULES Volumen-beregner'!$N$10,H9=2,'KAN SKJULES Volumen-beregner'!$L$10,H9=3,'KAN SKJULES Volumen-beregner'!$J$10,H9=4,'KAN SKJULES Volumen-beregner'!$H$10,H9=5,'KAN SKJULES Volumen-beregner'!$F$10)","v":130},1,1,1,null,"Kræver manuel journalisering",390]
["Aktindsigt","Andre myndigheder søger om aktindsigt","Anden myndighed","Anden myndighed","N/A","Anmodning om oplysninger","Arbejdsmarked og Erhverv",4,{"$f":"_xlfn.IFS(H10=\"\",\"\",H10=1,'KAN SKJULES Volumen-beregner'!$N$10,H10=2,'KAN SKJULES Volumen-beregner'!$L$10,H10=3,'KAN SKJULES Volumen-beregner'!$J$10,H10=4,'KAN SKJULES Volumen-beregner'!$H$10,H10=5,'KAN SKJULES Volumen-beregner'!$F$10)","v":130},1,1,1,null,"N/A",390]
["ansøgning,","Ansøgning kan ske på mange måder fx ved brug af blanketløsning, fremsendelse fra eboks, usikker mail",null,null,"Outlook, DItmer","Information","Social og Sundhed",4,{"$f":"_xlfn.IFS(H11=\"\",\"\",H11=1,'KAN SKJULES Volumen-beregner'!$N$10,H11=2,'KAN SKJULES Volumen-beregner'!$L$10,H11=3,'KAN SKJULES Volumen-beregner'!$J$10,H11=4,'KAN SKJULES Volumen-beregner'!$H$10,H11=5,'KAN SKJULES Volumen-beregner'!$F$10)","v":130},1,1,1,"Ja","Ansøgning kan blive fremsendt af borger selv på egen vegne, men kan også blive fremsendt af pårørende/privat, som bistår borger med ansøgning",390]
["Underretning","Underretning","Mange forskellige (familie, nabo, skole, anden myndighed, ...)","Anden myndighed","N/A","Information","Administration og Organisation",4,{"$f":"_xlfn.IFS(H12=\"\",\"\",H12=1,'KAN SKJULES Volumen-beregner'!$N$10,H12=2,'KAN SKJULES Volumen-beregner'!$L$10,H12=3,'KAN SKJULES Volumen-beregner'!$J$10,H12=4,'KAN SKJULES Volumen-beregner'!$H$10,H12=5,'KAN SKJULES Volumen-beregner'!$F$10)","v":130},1,1,1,"Ja","Konkretisering af forhold, der underrettes om",390]
["Underretning","Underretning vedr. bekymring om barn/voksen","privat aktør/leverandør",null,"Outlook, dybt link","Information","Social og Sundhed",4,{"$f":"_xlfn.IFS(H13=\"\",\"\",H13=1,'KAN SKJULES Volumen-beregner'!$N$10,H13=2,'KAN SKJULES Volumen-beregner'!$L$10,H13=3,'KAN SKJULES Volumen-beregner'!$J$10,H13=4,'KAN SKJULES Volumen-beregner'!$H$10,H13=5,'KAN SKJULES Volumen-beregner'!$F$10)","v":130},1,1,1,"Ja","Underretninger skal screenes indenfor 24 timer på børneområdet.Underretning om voksne skal ske snarest",390]
["Underretning","Underretning vedr. bekymring om barn/voksen","Borger",null,"Outlook, dybt link","Information","Social og Sundhed",4,{"$f":"_xlfn.IFS(H14=\"\",\"\",H14=1,'KAN SKJULES Volumen-beregner'!$N$10,H14=2,'KAN SKJULES Volumen-beregner'!$L$10,H14=3,'KAN SKJULES Volumen-beregner'!$J$10,H14=4,'KAN SKJULES Volumen-beregner'!$H$10,H14=5,'KAN SKJULES Volumen-beregner'!$F$10)","v":130},1,1,1,"Ja","Underretninger skal screenes indenfor 24 timer på børneområdet.Underretning om voksne skal ske snarest",390]
["Underretning","Underretning vedr. barns udvikling/trivsel","Borger / Anden myndighed","Anden myndighed","Outlook","Information","Børn og Unge",4,{"$f":"_xlfn.IFS(H15=\"\",\"\",H15=1,'KAN SKJULES Volumen-beregner'!$N$10,H15=2,'KAN SKJULES Volumen-beregner'!$L$10,H15=3,'KAN SKJULES Volumen-beregner'!$J$10,H15=4,'KAN SKJULES Volumen-beregner'!$H$10,H15=5,'KAN SKJULES Volumen-beregner'!$F$10)","v":130},1,1,1,"Ja","Kræver manuel journalisering",390]
["Anmodning om udtalelser fra Familieretshuset","Anmodning om oplysninger","Familieretshuset","Familieretshuset","Outlook","Anmodning om oplysninger","Børn og Unge",4,{"$f":"_xlfn.IFS(H16=\"\",\"\",H16=1,'KAN SKJULES Volumen-beregner'!$N$10,H16=2,'KAN SKJULES Volumen-beregner'!$L$10,H16=3,'KAN SKJULES Volumen-beregner'!$J$10,H16=4,'KAN SKJULES Volumen-beregner'!$H$10,H16=5,'KAN SKJULES Volumen-beregner'!$F$10)","v":130},1,1,1,null,"Kræver manuel journalisering",390]
["Bygge-ansøgninger",null,"Husejere, alle typer virksomheder",null,"edoc","Information","Miljø, Teknik og Forsyning",4,{"$f":"_xlfn.IFS(H17=\"\",\"\",H17=1,'KAN SKJULES Volumen-beregner'!$N$10,H17=2,'KAN SKJULES Volumen-beregner'!$L$10,H17=3,'KAN SKJULES Volumen-beregner'!$J$10,H17=4,'KAN SKJULES Volumen-beregner'!$H$10,H17=5,'KAN SKJULES Volumen-beregner'!$F$10)","v":130},1,1,1,null,"Landzone ansøgninger komme ofte uden om Bom",390]
["Ansøgning om aktindsigt,",null,"Borger",null,"Mail eller pr. tlf.","Anmodning om oplysninger","Social og Sundhed",4,{"$f":"_xlfn.IFS(H18=\"\",\"\",H18=1,'KAN SKJULES Volumen-beregner'!$N$10,H18=2,'KAN SKJULES Volumen-beregner'!$L$10,H18=3,'KAN SKJULES Volumen-beregner'!$J$10,H18=4,'KAN SKJULES Volumen-beregner'!$H$10,H18=5,'KAN SKJULES Volumen-beregner'!$F$10)","v":130},1,1,0,"Ja","At der kan være personfølsomme data",260]
["Klager (over forhold)","Klager over forhold","Borger / Anden myndighed","Anden myndighed","N/A","Information","Administration og Organisation",4,{"$f":"_xlfn.IFS(H19=\"\",\"\",H19=1,'KAN SKJULES Volumen-beregner'!$N$10,H19=2,'KAN SKJULES Volumen-beregner'!$L$10,H19=3,'KAN SKJULES Volumen-beregner'!$J$10,H19=4,'KAN SKJULES Volumen-beregner'!$H$10,H19=5,'KAN SKJULES Volumen-beregner'!$F$10)","v":130},1,0,1,"Adresse","Konkretisering af, hvad der klages over, hvornår/hvor ofte det er oplevet",260]
["Refusionsanmodning",null,"Anden kommune","Anden kommune","N/A","Anmodning om oplysninger","Administration og Organisation",4,{"$f":"_xlfn.IFS(H20=\"\",\"\",H20=1,'KAN SKJULES Volumen-beregner'!$N$10,H20=2,'KAN SKJULES Volumen-beregner'!$L$10,H20=3,'KAN SKJULES Volumen-beregner'!$J$10,H20=4,'KAN SKJULES Volumen-beregner'!$H$10,H20=5,'KAN SKJULES Volumen-beregner'!$F$10)","v":130},1,0,1,"Nej","N/A",260]
["Forespørgsel vedr. lægeskift","Forespørgsmler pr. mail vedr. lægeskift","Borger / Anden myndighed","Regionen","Outlook","Anmodning om oplysninger","Demokrati og Involvering",4,{"$f":"_xlfn.IFS(H21=\"\",\"\",H21=1,'KAN SKJULES Volumen-beregner'!$N$10,H21=2,'KAN SKJULES Volumen-beregner'!$L$10,H21=3,'KAN SKJULES Volumen-beregner'!$J$10,H21=4,'KAN SKJULES Volumen-beregner'!$H$10,H21=5,'KAN SKJULES Volumen-beregner'!$F$10)","v":130},1,0,1,"Nej","N/A",260]
["meddelee om mulig politianmeldee ",null,"Grundejernes Investeringsfond",null,"Outlook","Information","Miljø, Teknik og Forsyning",4,{"$f":"_xlfn.IFS(H22=\"\",\"\",H22=1,'KAN SKJULES Volumen-beregner'!$N$10,H22=2,'KAN SKJULES Volumen-beregner'!$L$10,H22=3,'KAN SKJULES Volumen-beregner'!$J$10,H22=4,'KAN SKJULES Volumen-beregner'!$H$10,H22=5,'KAN SKJULES Volumen-beregner'!$F$10)","v":130},1,0,1,null,null,260]
["Flytteanmeldelse gennem digital post",null,"Borger",null,"NOVA/Outlook","Information","Demokrati og Involvering",4,{"$f":"_xlfn.IFS(H23=\"\",\"\",H23=1,'KAN SKJULES Volumen-beregner'!$N$10,H23=2,'KAN SKJULES Volumen-beregner'!$L$10,H23=3,'KAN SKJULES Volumen-beregner'!$J$10,H23=4,'KAN SKJULES Volumen-beregner'!$H$10,H23=5,'KAN SKJULES Volumen-beregner'!$F$10)","v":130},1,0,1,"NEJ",null,260]
["Henvendelse om Pension",null,"Borger",null,"Nova / Outlook","Anmodning om oplysninger","Demokrati og Involvering",4,{"$f":"_xlfn.IFS(H24=\"\",\"\",H24=1,'KAN SKJULES Volumen-beregner'!$N$10,H24=2,'KAN SKJULES Volumen-beregner'!$L$10,H24=3,'KAN SKJULES Volumen-beregner'!$J$10,H24=4,'KAN SKJULES Volumen-beregner'!$H$10,H24=5,'KAN SKJULES Volumen-beregner'!$F$10)","v":130},1,0,1,"Cpr.nr. /Overskrift",null,260]
["Henvendelse om boligstøtte",null,"Borger",null,"Nova/Outlook","Anmodning om oplysninger","Demokrati og Involvering",4,{"$f":"_xlfn.IFS(H25=\"\",\"\",H25=1,'KAN SKJULES Volumen-beregner'!$N$10,H25=2,'KAN SKJULES Volumen-beregner'!$L$10,H25=3,'KAN SKJULES Volumen-beregner'!$J$10,H25=4,'KAN SKJULES Volumen-beregner'!$H$10,H25=5,'KAN SKJULES Volumen-beregner'!$F$10)","v":130},1,0,1,"Cpr.nr. /Overskrift",null,260]
["Henvendelse om kørekort",null,"Borger / Anden myndighed",null,"Outlook","Anmodning om oplysninger","Demokrati og Involvering",4,{"$f":"_xlfn.IFS(H26=\"\",\"\",H26=1,'KAN SKJULES Volumen-beregner'!$N$10,H26=2,'KAN SKJULES Volumen-beregner'!$L$10,H26=3,'KAN SKJULES Volumen-beregner'!$J$10,H26=4,'KAN SKJULES Volumen-beregner'!$H$10,H26=5,'KAN SKJULES Volumen-beregner'!$F$10)","v":130},1,0,1,"Nej",null,260]
["Rykker for betaling af leverandørfakturaer",null,"Leverandører",null,null,"Betaling","Administration og Organisation",4,{"$f":"_xlfn.IFS(H27=\"\",\"\",H27=1,'KAN SKJULES Volumen-beregner'!$N$10,H27=2,'KAN SKJULES Volumen-beregner'!$L$10,H27=3,'KAN SKJULES Volumen-beregner'!$J$10,H27=4,'KAN SKJULES Volumen-beregner'!$H$10,H27=5,'KAN SKJULES Volumen-beregner'!$F$10)","v":130},1,1,0,"Nej",null,260]
["Diverse spørgsmål omkring sygdom, symptomer osv.,",null,"Borger",null,"Mailboks som det er i dag","Anmodning om oplysninger","Social og Sundhed",4,{"$f":"_xlfn.IFS(H28=\"\",\"\",H28=1,'KAN SKJULES Volumen-beregner'!$N$10,H28=2,'KAN SKJULES Volumen-beregner'!$L$10,H28=3,'KAN SKJULES Volumen-beregner'!$J$10,H28=4,'KAN SKJULES Volumen-beregner'!$H$10,H28=5,'KAN SKJULES Volumen-beregner'!$F$10)","v":130},1,0,0,"Nej",null,130]
["Afbud/ændring til aftale,",null,"Borger",null,"Mail","Information","Social og Sundhed",4,{"$f":"_xlfn.IFS(H29=\"\",\"\",H29=1,'KAN SKJULES Volumen-beregner'!$N$10,H29=2,'KAN SKJULES Volumen-beregner'!$L$10,H29=3,'KAN SKJULES Volumen-beregner'!$J$10,H29=4,'KAN SKJULES Volumen-beregner'!$H$10,H29=5,'KAN SKJULES Volumen-beregner'!$F$10)","v":130},1,0,0,"Nej",null,130]
["Registreringsattest og afgift","Registreringsattest og afgift","Motorstyrelsen","Motorstyrelsen","N/A","Information","Administration og Organisation",4,{"$f":"_xlfn.IFS(H30=\"\",\"\",H30=1,'KAN SKJULES Volumen-beregner'!$N$10,H30=2,'KAN SKJULES Volumen-beregner'!$L$10,H30=3,'KAN SKJULES Volumen-beregner'!$J$10,H30=4,'KAN SKJULES Volumen-beregner'!$H$10,H30=5,'KAN SKJULES Volumen-beregner'!$F$10)","v":130},0,0,1,"Ja - P-nummer","Som regel kun oplysninger om registreringsnummer, da det sendes til Kommunen centralt. Registrering af ejeren/institutionen i Motorkøretøjsregistret (Mener det var her) ville hjælpe",130]
["Fogedretten - udsættelse af lejemål","Underretning til kommunen vedr. udsættelse af lejemål - mhp. opfølgning ift. implicerede børn og unge","Fogedretten","Retten","Outlook","Information","Børn og Unge",4,{"$f":"_xlfn.IFS(H31=\"\",\"\",H31=1,'KAN SKJULES Volumen-beregner'!$N$10,H31=2,'KAN SKJULES Volumen-beregner'!$L$10,H31=3,'KAN SKJULES Volumen-beregner'!$J$10,H31=4,'KAN SKJULES Volumen-beregner'!$H$10,H31=5,'KAN SKJULES Volumen-beregner'!$F$10)","v":130},1,0,0,1,"Kræver manuel journalisering",130]
["Vejdrift ",null,"Borger",null,"Hovedpostkasse (Outlook) eller borgertip","Information","Miljø, Teknik og Forsyning",4,{"$f":"_xlfn.IFS(H32=\"\",\"\",H32=1,'KAN SKJULES Volumen-beregner'!$N$10,H32=2,'KAN SKJULES Volumen-beregner'!$L$10,H32=3,'KAN SKJULES Volumen-beregner'!$J$10,H32=4,'KAN SKJULES Volumen-beregner'!$H$10,H32=5,'KAN SKJULES Volumen-beregner'!$F$10)","v":130},0,1,0,null,"Manglende information vedr. borgeren så de kan kontaktes",130]
["Forespørgsel inden sagsindbringee ",null,"Lejer, udlejer (borger/virksomhed/boligforening)",null,"Outlook/tlf.","Anmodning om oplysninger","Miljø, Teknik og Forsyning",4,{"$f":"_xlfn.IFS(H33=\"\",\"\",H33=1,'KAN SKJULES Volumen-beregner'!$N$10,H33=2,'KAN SKJULES Volumen-beregner'!$L$10,H33=3,'KAN SKJULES Volumen-beregner'!$J$10,H33=4,'KAN SKJULES Volumen-beregner'!$H$10,H33=5,'KAN SKJULES Volumen-beregner'!$F$10)","v":130},1,0,0,"ja",null,130]
["Svar på partshøring",null,"Borger",null,"NOVA/outlook","Information","Demokrati og Involvering",4,{"$f":"_xlfn.IFS(H34=\"\",\"\",H34=1,'KAN SKJULES Volumen-beregner'!$N$10,H34=2,'KAN SKJULES Volumen-beregner'!$L$10,H34=3,'KAN SKJULES Volumen-beregner'!$J$10,H34=4,'KAN SKJULES Volumen-beregner'!$H$10,H34=5,'KAN SKJULES Volumen-beregner'!$F$10)","v":130},1,0,null,"Ja evt. anden parts cpr nr eller oplysninger",null,130]
["Høring/anmodning om udtalelse","Høring/anmodning om udtalelse fra andre myndigheder herunder tilsynsmydnigheder,","Anden myndighed","Anden myndighed","Outlook","Anmodning om oplysninger","Social og Sundhed",3,{"$f":"_xlfn.IFS(H35=\"\",\"\",H35=1,'KAN SKJULES Volumen-beregner'!$N$10,H35=2,'KAN SKJULES Volumen-beregner'!$L$10,H35=3,'KAN SKJULES Volumen-beregner'!$J$10,H35=4,'KAN SKJULES Volumen-beregner'!$H$10,H35=5,'KAN SKJULES Volumen-beregner'!$F$10)","v":26},1,1,1,"Ja","N/A",78]
["Anmodning om aktindsigt","Anmodning om aktindsigt","Borger","Anden myndighed","N/A","Anmodning om oplysninger","Administration og Organisation",3,{"$f":"_xlfn.IFS(H36=\"\",\"\",H36=1,'KAN SKJULES Volumen-beregner'!$N$10,H36=2,'KAN SKJULES Volumen-beregner'!$L$10,H36=3,'KAN SKJULES Volumen-beregner'!$J$10,H36=4,'KAN SKJULES Volumen-beregner'!$H$10,H36=5,'KAN SKJULES Volumen-beregner'!$F$10)","v":26},1,1,1,"Om det er tværgående eller konkret\nOm der er sendt til flere afdelinger","Præcisering af, hvad der søges indsigt i\nPræcisering af hvilken slags anmodning (indsigt / aktindsigt)",78]
["Afgørelser fra Ankestyrelsen/Retten","Afgørelser","Ankestyrelsen/ retten","Ankestyrelsen","Outlook","Afgørelse","Børn og Unge",3,{"$f":"_xlfn.IFS(H37=\"\",\"\",H37=1,'KAN SKJULES Volumen-beregner'!$N$10,H37=2,'KAN SKJULES Volumen-beregner'!$L$10,H37=3,'KAN SKJULES Volumen-beregner'!$J$10,H37=4,'KAN SKJULES Volumen-beregner'!$H$10,H37=5,'KAN SKJULES Volumen-beregner'!$F$10)","v":26},1,1,1,null,"Kræver manuel journalisering",{"$f":"IFERROR((J37+K37+L37)*I37,0)","v":78}]
["Underskrevet købsaftale på boliggrund",null,"Borger",null,"Digitalpost i afdelings-postkassen","Information","Miljø, Teknik og Forsyning",3,{"$f":"_xlfn.IFS(H38=\"\",\"\",H38=1,'KAN SKJULES Volumen-beregner'!$N$10,H38=2,'KAN SKJULES Volumen-beregner'!$L$10,H38=3,'KAN SKJULES Volumen-beregner'!$J$10,H38=4,'KAN SKJULES Volumen-beregner'!$H$10,H38=5,'KAN SKJULES Volumen-beregner'!$F$10)","v":26},1,1,1,null,null,78]
["Indbringee af sag ",null,"lejer, udlejer (borger/virksomhed/boligforening)",null,"Outlook","Information","Miljø, Teknik og Forsyning",3,{"$f":"_xlfn.IFS(H39=\"\",\"\",H39=1,'KAN SKJULES Volumen-beregner'!$N$10,H39=2,'KAN SKJULES Volumen-beregner'!$L$10,H39=3,'KAN SKJULES Volumen-beregner'!$J$10,H39=4,'KAN SKJULES Volumen-beregner'!$H$10,H39=5,'KAN SKJULES Volumen-beregner'!$F$10)","v":26},1,1,1,"ejendomsnr., cpr/cvr","Ville være rart med stikord (standardiserede) om hvad sagen drejer sig om",78]
["Spørgsmål fra UDK om borgeren","Spørgsmål fra UDK om borgeren","Udbetaling Danmark","Udbetaling Danmark","Outlook","Anmodning om oplysninger","Social og Sundhed",3,{"$f":"_xlfn.IFS(H40=\"\",\"\",H40=1,'KAN SKJULES Volumen-beregner'!$N$10,H40=2,'KAN SKJULES Volumen-beregner'!$L$10,H40=3,'KAN SKJULES Volumen-beregner'!$J$10,H40=4,'KAN SKJULES Volumen-beregner'!$H$10,H40=5,'KAN SKJULES Volumen-beregner'!$F$10)","v":26},1,1,1,"Nej","N/A",78]
["Klager",null,"Borger eller virksomhed",null,"Acadre","Information","Miljø, Teknik og Forsyning",3,{"$f":"_xlfn.IFS(H41=\"\",\"\",H41=1,'KAN SKJULES Volumen-beregner'!$N$10,H41=2,'KAN SKJULES Volumen-beregner'!$L$10,H41=3,'KAN SKJULES Volumen-beregner'!$J$10,H41=4,'KAN SKJULES Volumen-beregner'!$H$10,H41=5,'KAN SKJULES Volumen-beregner'!$F$10)","v":26},1,1,1,"Matr.nr.",null,78]
["Aktindsigt (eks. fra fagforening i rolle som partesrepræsentant)","Partsrepræsentant anmoder om aktindsigt i en borgers sag, som kommunen skal besvare indenfor en frist.","Virksomhed",null,null,"Anmodning om oplysninger","Arbejdsmarked og Erhverv",3,{"$f":"_xlfn.IFS(H42=\"\",\"\",H42=1,'KAN SKJULES Volumen-beregner'!$N$10,H42=2,'KAN SKJULES Volumen-beregner'!$L$10,H42=3,'KAN SKJULES Volumen-beregner'!$J$10,H42=4,'KAN SKJULES Volumen-beregner'!$H$10,H42=5,'KAN SKJULES Volumen-beregner'!$F$10)","v":26},1,1,null,"Sagsområde",null,52]
["Ansøgninger","Borgere eller bisidere ønsker at ansøge om hjælp eller ydelser","Borger",null,null,"Ansøgning","Arbejdsmarked og Erhverv",3,{"$f":"_xlfn.IFS(H43=\"\",\"\",H43=1,'KAN SKJULES Volumen-beregner'!$N$10,H43=2,'KAN SKJULES Volumen-beregner'!$L$10,H43=3,'KAN SKJULES Volumen-beregner'!$J$10,H43=4,'KAN SKJULES Volumen-beregner'!$H$10,H43=5,'KAN SKJULES Volumen-beregner'!$F$10)","v":26},1,1,null,null,null,52]
["Høringssvar",null,"Borger / Virksomhed",null,"Outlook eller digital post (kan også være en høringsportal)","Information","Miljø, Teknik og Forsyning",3,{"$f":"_xlfn.IFS(H44=\"\",\"\",H44=1,'KAN SKJULES Volumen-beregner'!$N$10,H44=2,'KAN SKJULES Volumen-beregner'!$L$10,H44=3,'KAN SKJULES Volumen-beregner'!$J$10,H44=4,'KAN SKJULES Volumen-beregner'!$H$10,H44=5,'KAN SKJULES Volumen-beregner'!$F$10)","v":26},0,1,1,"Kommunens sagsnr.","den afdeling/person, der har sendt høring ud er vigtig info, så svaret kan lande det rigtige sted",52]
["Svar på ansøgninger","Svar på ansøgninger","Anden kommune","Anden kommune","Outlook/Nexus/ SBSYS","Information","Social og Sundhed",3,{"$f":"_xlfn.IFS(H45=\"\",\"\",H45=1,'KAN SKJULES Volumen-beregner'!$N$10,H45=2,'KAN SKJULES Volumen-beregner'!$L$10,H45=3,'KAN SKJULES Volumen-beregner'!$J$10,H45=4,'KAN SKJULES Volumen-beregner'!$H$10,H45=5,'KAN SKJULES Volumen-beregner'!$F$10)","v":26},1,0,1,"nej","N/A",52]
["Orienteringsbreve om partshøring om bortfald af  sygedagpenge","Orienteringsbreve om partshøring om bortfald af  sygedagpenge","Anden kommune","Anden kommune","Outlook","Information","Administration og Organisation",3,{"$f":"_xlfn.IFS(H46=\"\",\"\",H46=1,'KAN SKJULES Volumen-beregner'!$N$10,H46=2,'KAN SKJULES Volumen-beregner'!$L$10,H46=3,'KAN SKJULES Volumen-beregner'!$J$10,H46=4,'KAN SKJULES Volumen-beregner'!$H$10,H46=5,'KAN SKJULES Volumen-beregner'!$F$10)","v":26},1,1,0,"Ja, tidsfrist for svar  afdeling/team nummer","Modtages i kommunens digitale postkasse, hvor en central postenhed fordeler videre pr. mail til rette afdeling ",52]
["Høringssvar indsigelser","Høringssvar indsigelser","Borger / Virksomhed","Anden myndighed","N/A","Information","Administration og Organisation",3,{"$f":"_xlfn.IFS(H47=\"\",\"\",H47=1,'KAN SKJULES Volumen-beregner'!$N$10,H47=2,'KAN SKJULES Volumen-beregner'!$L$10,H47=3,'KAN SKJULES Volumen-beregner'!$J$10,H47=4,'KAN SKJULES Volumen-beregner'!$H$10,H47=5,'KAN SKJULES Volumen-beregner'!$F$10)","v":26},1,0,1,"nej","N/A",52]
["Fejlsending af post ","Fejlsending af post ","Intern fejlsending af post","Egen Kommune","Outlook","Information","Miljø, Teknik og Forsyning",3,{"$f":"_xlfn.IFS(H48=\"\",\"\",H48=1,'KAN SKJULES Volumen-beregner'!$N$10,H48=2,'KAN SKJULES Volumen-beregner'!$L$10,H48=3,'KAN SKJULES Volumen-beregner'!$J$10,H48=4,'KAN SKJULES Volumen-beregner'!$H$10,H48=5,'KAN SKJULES Volumen-beregner'!$F$10)","v":26},0,1,1,null,"N/A",52]
["Anmodning om udtalelser fra Familieretshuset","Anmodning om oplysninger","Familieretshuset","Familieretshuset","N/A","Anmodning om oplysninger","Administration og Organisation",3,{"$f":"_xlfn.IFS(H49=\"\",\"\",H49=1,'KAN SKJULES Volumen-beregner'!$N$10,H49=2,'KAN SKJULES Volumen-beregner'!$L$10,H49=3,'KAN SKJULES Volumen-beregner'!$J$10,H49=4,'KAN SKJULES Volumen-beregner'!$H$10,H49=5,'KAN SKJULES Volumen-beregner'!$F$10)","v":26},1,0,1,"Ja - Institutionen/P-Nummer","N/A",52]
["Kriminalforsorgen - meddelse om indsættelse/ løsladelse",null,"Kriminalforsorgen","Kriminalforsorgen","Outlook","Information","Demokrati og Involvering",3,{"$f":"_xlfn.IFS(H50=\"\",\"\",H50=1,'KAN SKJULES Volumen-beregner'!$N$10,H50=2,'KAN SKJULES Volumen-beregner'!$L$10,H50=3,'KAN SKJULES Volumen-beregner'!$J$10,H50=4,'KAN SKJULES Volumen-beregner'!$H$10,H50=5,'KAN SKJULES Volumen-beregner'!$F$10)","v":26},1,0,1,"Nej","N/A",52]
["Adresseforespørgsler fra borgere",null,"Borger",null,"Notus","Anmodning om oplysninger","Demokrati og Involvering",3,{"$f":"_xlfn.IFS(H51=\"\",\"\",H51=1,'KAN SKJULES Volumen-beregner'!$N$10,H51=2,'KAN SKJULES Volumen-beregner'!$L$10,H51=3,'KAN SKJULES Volumen-beregner'!$J$10,H51=4,'KAN SKJULES Volumen-beregner'!$H$10,H51=5,'KAN SKJULES Volumen-beregner'!$F$10)","v":26},1,0,1,"Nej",null,52]
["Straffe- og børneattester","Straffe- og børneattester på ","Politi","Politi","Outlook","Information","Børn og Unge",3,{"$f":"_xlfn.IFS(H52=\"\",\"\",H52=1,'KAN SKJULES Volumen-beregner'!$N$10,H52=2,'KAN SKJULES Volumen-beregner'!$L$10,H52=3,'KAN SKJULES Volumen-beregner'!$J$10,H52=4,'KAN SKJULES Volumen-beregner'!$H$10,H52=5,'KAN SKJULES Volumen-beregner'!$F$10)","v":26},1,0,1,"Rekvirent","Går gennem mange hænder",52]
["Henvendelse fra Retten vedr. indberetninger på vegne af dem",null,"Retten","Retten","Outlook","Information","Demokrati og Involvering",3,{"$f":"_xlfn.IFS(H53=\"\",\"\",H53=1,'KAN SKJULES Volumen-beregner'!$N$10,H53=2,'KAN SKJULES Volumen-beregner'!$L$10,H53=3,'KAN SKJULES Volumen-beregner'!$J$10,H53=4,'KAN SKJULES Volumen-beregner'!$H$10,H53=5,'KAN SKJULES Volumen-beregner'!$F$10)","v":26},1,0,1,"Nej","N/A",52]
["Svar fra skattestyrelsen","Svar fra skattestyrelsen","Skattestyrelsen","Skattestyrelsen","Outlook","Information","Demokrati og Involvering",3,{"$f":"_xlfn.IFS(H54=\"\",\"\",H54=1,'KAN SKJULES Volumen-beregner'!$N$10,H54=2,'KAN SKJULES Volumen-beregner'!$L$10,H54=3,'KAN SKJULES Volumen-beregner'!$J$10,H54=4,'KAN SKJULES Volumen-beregner'!$H$10,H54=5,'KAN SKJULES Volumen-beregner'!$F$10)","v":26},1,0,1,"nej","N/A",52]
["Henvendelse fra Udlændingestyrelsen vedr ændringer i personplysninger","Henvendelse fra Udlændingestyrelsen vedr ændringer i personplysninger","Udlændingestyrelsen","Udlændingestyrelsen","NOVA/outlook","Information","Demokrati og Involvering",3,{"$f":"_xlfn.IFS(H55=\"\",\"\",H55=1,'KAN SKJULES Volumen-beregner'!$N$10,H55=2,'KAN SKJULES Volumen-beregner'!$L$10,H55=3,'KAN SKJULES Volumen-beregner'!$J$10,H55=4,'KAN SKJULES Volumen-beregner'!$H$10,H55=5,'KAN SKJULES Volumen-beregner'!$F$10)","v":26},1,0,1,"Sigende overskrift","N/A",52]
["Brev til borgmester og rådmænd",null,"Kan handle om hvad som helst fra borgere",null,null,"Information","Administration og Organisation",3,{"$f":"_xlfn.IFS(H56=\"\",\"\",H56=1,'KAN SKJULES Volumen-beregner'!$N$10,H56=2,'KAN SKJULES Volumen-beregner'!$L$10,H56=3,'KAN SKJULES Volumen-beregner'!$J$10,H56=4,'KAN SKJULES Volumen-beregner'!$H$10,H56=5,'KAN SKJULES Volumen-beregner'!$F$10)","v":26},1,0,1,"Nej",null,52]
["Klager over afgørelser\nF.eks. klager over afgørelser fra beboerklagenævn og huslejenævn",null,"Borger / Virksomhed",null,null,"Information","Administration og Organisation",3,{"$f":"_xlfn.IFS(H57=\"\",\"\",H57=1,'KAN SKJULES Volumen-beregner'!$N$10,H57=2,'KAN SKJULES Volumen-beregner'!$L$10,H57=3,'KAN SKJULES Volumen-beregner'!$J$10,H57=4,'KAN SKJULES Volumen-beregner'!$H$10,H57=5,'KAN SKJULES Volumen-beregner'!$F$10)","v":26},1,null,1,"BBR",null,52]
["Klager","Forældres eller unges klager overafgørelser","Forældre / Ung",null,"Outlook/Dubu el. andet fagsystem","Information","Børn og Unge",2,{"$f":"_xlfn.IFS(H58=\"\",\"\",H58=1,'KAN SKJULES Volumen-beregner'!$N$10,H58=2,'KAN SKJULES Volumen-beregner'!$L$10,H58=3,'KAN SKJULES Volumen-beregner'!$J$10,H58=4,'KAN SKJULES Volumen-beregner'!$H$10,H58=5,'KAN SKJULES Volumen-beregner'!$F$10)","v":12},1,1,1,null,"Kræver manuel journalisering",36]
["Jeg/vi vil afholde et arrangement på kommunalt areal privat og virksomhed",null,"Borger / Virksomhed",null,"Outlook (fra virk.dk)   (kan også modtages via dedikerede selvbetjenings-løsning - fx Netforvaltning)","Anmodning om oplysninger","Miljø, Teknik og Forsyning",2,{"$f":"_xlfn.IFS(H59=\"\",\"\",H59=1,'KAN SKJULES Volumen-beregner'!$N$10,H59=2,'KAN SKJULES Volumen-beregner'!$L$10,H59=3,'KAN SKJULES Volumen-beregner'!$J$10,H59=4,'KAN SKJULES Volumen-beregner'!$H$10,H59=5,'KAN SKJULES Volumen-beregner'!$F$10)","v":12},1,1,1,null,null,36]
["Opsigelse af p-plads garage eller lejlighed ",null,"Borger",null,"Hovedpostkasse Outlook","Information","Miljø, Teknik og Forsyning",2,{"$f":"_xlfn.IFS(H60=\"\",\"\",H60=1,'KAN SKJULES Volumen-beregner'!$N$10,H60=2,'KAN SKJULES Volumen-beregner'!$L$10,H60=3,'KAN SKJULES Volumen-beregner'!$J$10,H60=4,'KAN SKJULES Volumen-beregner'!$H$10,H60=5,'KAN SKJULES Volumen-beregner'!$F$10)","v":12},1,1,1,"Ja","Hvis man ikke har adgang til CPR. web kan du ikke se cpr. nummeret på borgeren",36]
["Post  som er sendt til vores hoved-postkassen ",null,"Post som er modtaget i vores hovedpostkassen",null,"Postkassen i SBSYS","Information","Social og Sundhed",3,{"$f":"_xlfn.IFS(H61=\"\",\"\",H61=1,'KAN SKJULES Volumen-beregner'!$N$10,H61=2,'KAN SKJULES Volumen-beregner'!$L$10,H61=3,'KAN SKJULES Volumen-beregner'!$J$10,H61=4,'KAN SKJULES Volumen-beregner'!$H$10,H61=5,'KAN SKJULES Volumen-beregner'!$F$10)","v":26},1,0,0,"nej","Det drejer sig ofte om post som er sendt til vores hovedpostkasse og som skal videresendes til den rette afdeling",26]
["Forespørgsel fra ejendomsmægler",null,"Virksomhed",null,"Hovedpostkasse Outlook","Anmodning om oplysninger","Miljø, Teknik og Forsyning",3,{"$f":"_xlfn.IFS(H62=\"\",\"\",H62=1,'KAN SKJULES Volumen-beregner'!$N$10,H62=2,'KAN SKJULES Volumen-beregner'!$L$10,H62=3,'KAN SKJULES Volumen-beregner'!$J$10,H62=4,'KAN SKJULES Volumen-beregner'!$H$10,H62=5,'KAN SKJULES Volumen-beregner'!$F$10)","v":26},0,1,0,"Nej",null,26]
["Hegnssyn og vejsager",null,"Borger eller virksomhed",null,"Acadre","Anmodning om oplysninger","Miljø, Teknik og Forsyning",3,{"$f":"_xlfn.IFS(H63=\"\",\"\",H63=1,'KAN SKJULES Volumen-beregner'!$N$10,H63=2,'KAN SKJULES Volumen-beregner'!$L$10,H63=3,'KAN SKJULES Volumen-beregner'!$J$10,H63=4,'KAN SKJULES Volumen-beregner'!$H$10,H63=5,'KAN SKJULES Volumen-beregner'!$F$10)","v":26},1,0,0,"Matr.nr.","Hegnsyn er ikke en kommunal instans, vi er 'kun' sekretariat",26]
["Forespørgsler",null,"Borger / Virksomhed",null,"Hovedpostkasse, Outlook","Anmodning om oplysninger","Miljø, Teknik og Forsyning",3,{"$f":"_xlfn.IFS(H64=\"\",\"\",H64=1,'KAN SKJULES Volumen-beregner'!$N$10,H64=2,'KAN SKJULES Volumen-beregner'!$L$10,H64=3,'KAN SKJULES Volumen-beregner'!$J$10,H64=4,'KAN SKJULES Volumen-beregner'!$H$10,H64=5,'KAN SKJULES Volumen-beregner'!$F$10)","v":26},0,0,1,"Matr. nr. geografisk info","Borgere ved typisk ikke hvem de skal spørge - er det et spørgsmål til Byg eller Plan eller kommunen som grundejer, så det bliver svært at få dem til at opmærke med KLE...?",26]
["Indskudslån kautionslån",null,"Borger",null,"Nova/evt. opus debitor","Information","Demokrati og Involvering",3,{"$f":"_xlfn.IFS(H65=\"\",\"\",H65=1,'KAN SKJULES Volumen-beregner'!$N$10,H65=2,'KAN SKJULES Volumen-beregner'!$L$10,H65=3,'KAN SKJULES Volumen-beregner'!$J$10,H65=4,'KAN SKJULES Volumen-beregner'!$H$10,H65=5,'KAN SKJULES Volumen-beregner'!$F$10)","v":26},1,0,null,"Cpr.nr. /sagsnr.",null,26]
["Adresseforespørgsler f.eks fra advokat",null,"Advokat eller andre private",null,"Notus/NOVA","Anmodning om oplysninger","Demokrati og Involvering",3,{"$f":"_xlfn.IFS(H66=\"\",\"\",H66=1,'KAN SKJULES Volumen-beregner'!$N$10,H66=2,'KAN SKJULES Volumen-beregner'!$L$10,H66=3,'KAN SKJULES Volumen-beregner'!$J$10,H66=4,'KAN SKJULES Volumen-beregner'!$H$10,H66=5,'KAN SKJULES Volumen-beregner'!$F$10)","v":26},1,0,null,"nej",null,26]
["Forespørgsel om vielse",null,"Borger",null,"Nova / evt. vielsessystemerne","Information","Demokrati og Involvering",3,{"$f":"_xlfn.IFS(H67=\"\",\"\",H67=1,'KAN SKJULES Volumen-beregner'!$N$10,H67=2,'KAN SKJULES Volumen-beregner'!$L$10,H67=3,'KAN SKJULES Volumen-beregner'!$J$10,H67=4,'KAN SKJULES Volumen-beregner'!$H$10,H67=5,'KAN SKJULES Volumen-beregner'!$F$10)","v":26},1,0,0,"Ja",null,26]
["Registerindsigt/aktindsigt",null,"Borger",null,"Nova/Outlook","Anmodning om oplysninger","Demokrati og Involvering",3,{"$f":"_xlfn.IFS(H68=\"\",\"\",H68=1,'KAN SKJULES Volumen-beregner'!$N$10,H68=2,'KAN SKJULES Volumen-beregner'!$L$10,H68=3,'KAN SKJULES Volumen-beregner'!$J$10,H68=4,'KAN SKJULES Volumen-beregner'!$H$10,H68=5,'KAN SKJULES Volumen-beregner'!$F$10)","v":26},0,1,0,"nej","Anmodningen splittes op og fordeles ud i magistratsafdelingerne.",26]
["Afslag på refusion af   sygedagpenge","Afslag på refusion af   sygedagpenge","Anden kommune","Anden kommune","Outlook","Afgørelse","Administration og Organisation",3,{"$f":"_xlfn.IFS(H69=\"\",\"\",H69=1,'KAN SKJULES Volumen-beregner'!$N$10,H69=2,'KAN SKJULES Volumen-beregner'!$L$10,H69=3,'KAN SKJULES Volumen-beregner'!$J$10,H69=4,'KAN SKJULES Volumen-beregner'!$H$10,H69=5,'KAN SKJULES Volumen-beregner'!$F$10)","v":26},1,0,0,"Ja, afdeling/team nr.","Modtages i kommunens digitale postkasse, hvor en central postenhed fordeler videre pr. mail til rette afdeling ",{"$f":"IFERROR((J69+K69+L69)*I69,0)","v":26}]
["Manglende APV (arbejdspladsvurdering)","Manglende APV (arbejdspladsvurdering)","Arbejdstilsynet","Arbejdstilsynet","N/A","Information","Administration og Organisation",3,{"$f":"_xlfn.IFS(H70=\"\",\"\",H70=1,'KAN SKJULES Volumen-beregner'!$N$10,H70=2,'KAN SKJULES Volumen-beregner'!$L$10,H70=3,'KAN SKJULES Volumen-beregner'!$J$10,H70=4,'KAN SKJULES Volumen-beregner'!$H$10,H70=5,'KAN SKJULES Volumen-beregner'!$F$10)","v":26},0,0,1,"Ja - P-nummer","Flere modtagere (Arbejdsmiljøorganisationen og institutionen)",26]
["Manglende syn af køretøj","Manglende syn af kommunalt køretøj","Færdselsstyrelsen","Færdselsstyrelsen","N/A","Information","Administration og Organisation",3,{"$f":"_xlfn.IFS(H71=\"\",\"\",H71=1,'KAN SKJULES Volumen-beregner'!$N$10,H71=2,'KAN SKJULES Volumen-beregner'!$L$10,H71=3,'KAN SKJULES Volumen-beregner'!$J$10,H71=4,'KAN SKJULES Volumen-beregner'!$H$10,H71=5,'KAN SKJULES Volumen-beregner'!$F$10)","v":26},0,0,1,"Ja - P-nummer","Som regel kun oplysninger om registreringsnummer, da det sendes til Kommunen centralt. Registrering af ejeren/institutionen i Motorkøretøjsregistret (Mener det var her) ville hjælpe",26]
["Modtagelse af parkeringsbøder","Modtagelse af parkeringsbøder","Politi","Politi","Outlook","Betaling","Social og Sundhed",3,{"$f":"_xlfn.IFS(H72=\"\",\"\",H72=1,'KAN SKJULES Volumen-beregner'!$N$10,H72=2,'KAN SKJULES Volumen-beregner'!$L$10,H72=3,'KAN SKJULES Volumen-beregner'!$J$10,H72=4,'KAN SKJULES Volumen-beregner'!$H$10,H72=5,'KAN SKJULES Volumen-beregner'!$F$10)","v":26},0,1,0,"Nej","Det kan være forskelligt hvordan kommunerne har registrereret deres biler",26]
["Anmodning om aktindsigt ",null,"sagens parter, journalist, advokat, ejendomsmægler",null,"Outlook","Anmodning om oplysninger","Miljø, Teknik og Forsyning",2,{"$f":"_xlfn.IFS(H73=\"\",\"\",H73=1,'KAN SKJULES Volumen-beregner'!$N$10,H73=2,'KAN SKJULES Volumen-beregner'!$L$10,H73=3,'KAN SKJULES Volumen-beregner'!$J$10,H73=4,'KAN SKJULES Volumen-beregner'!$H$10,H73=5,'KAN SKJULES Volumen-beregner'!$F$10)","v":12},1,1,0,"kommunens sagsnr., ejendomsnr.",null,24]
["Borgerforslag ",null,"Borger",null,"Hovedpostkasse Outlook","Information","Miljø, Teknik og Forsyning",2,{"$f":"_xlfn.IFS(H74=\"\",\"\",H74=1,'KAN SKJULES Volumen-beregner'!$N$10,H74=2,'KAN SKJULES Volumen-beregner'!$L$10,H74=3,'KAN SKJULES Volumen-beregner'!$J$10,H74=4,'KAN SKJULES Volumen-beregner'!$H$10,H74=5,'KAN SKJULES Volumen-beregner'!$F$10)","v":12},0,1,1,"Nej",null,24]
["Anmodning om aktindsigt",null,"Borger / Virksomhed",null,"KMD Nova","Anmodning om oplysninger","Demokrati og Involvering",2,{"$f":"_xlfn.IFS(H75=\"\",\"\",H75=1,'KAN SKJULES Volumen-beregner'!$N$10,H75=2,'KAN SKJULES Volumen-beregner'!$L$10,H75=3,'KAN SKJULES Volumen-beregner'!$J$10,H75=4,'KAN SKJULES Volumen-beregner'!$H$10,H75=5,'KAN SKJULES Volumen-beregner'!$F$10)","v":12},1,0,1,"Cpr.nr. / sagsnummer",null,24]
["Arbejdsmiljøtilsyn","Brev vedr. arbejdsmiljøtilsyn","Arbejdstilsynet","Arbejdstilsynet","N/A","Aftale","Administration og Organisation",2,{"$f":"_xlfn.IFS(H76=\"\",\"\",H76=1,'KAN SKJULES Volumen-beregner'!$N$10,H76=2,'KAN SKJULES Volumen-beregner'!$L$10,H76=3,'KAN SKJULES Volumen-beregner'!$J$10,H76=4,'KAN SKJULES Volumen-beregner'!$H$10,H76=5,'KAN SKJULES Volumen-beregner'!$F$10)","v":12},1,0,1,"Ja - P-nummer","Flere modtagere (Arbejdsmiljøorganisationen og institutionen)",24]
["Afgørelse om  udenlandsk kørekort","Afgørelse om  udenlandsk kørekort","Politiets Administrative Center","Politi","Outlook","Afgørelse","Demokrati og Involvering",2,{"$f":"_xlfn.IFS(H77=\"\",\"\",H77=1,'KAN SKJULES Volumen-beregner'!$N$10,H77=2,'KAN SKJULES Volumen-beregner'!$L$10,H77=3,'KAN SKJULES Volumen-beregner'!$J$10,H77=4,'KAN SKJULES Volumen-beregner'!$H$10,H77=5,'KAN SKJULES Volumen-beregner'!$F$10)","v":12},1,0,1,"nej","N/A",24]
["Ansøgninger","Diverse ansøgninger fra forældre","Forældre",null,"Outlook/Dubu","Information","Børn og Unge",2,{"$f":"_xlfn.IFS(H78=\"\",\"\",H78=1,'KAN SKJULES Volumen-beregner'!$N$10,H78=2,'KAN SKJULES Volumen-beregner'!$L$10,H78=3,'KAN SKJULES Volumen-beregner'!$J$10,H78=4,'KAN SKJULES Volumen-beregner'!$H$10,H78=5,'KAN SKJULES Volumen-beregner'!$F$10)","v":12},1,null,null,"barnets cpr/journalnr","Kræver manuel journalisering",12]
["Anmodning om Aktindsigt ",null,"Borger / Virksomhed",null,"Outlook / mailsystem   eller via e-boks","Anmodning om oplysninger","Miljø, Teknik og Forsyning",2,{"$f":"_xlfn.IFS(H79=\"\",\"\",H79=1,'KAN SKJULES Volumen-beregner'!$N$10,H79=2,'KAN SKJULES Volumen-beregner'!$L$10,H79=3,'KAN SKJULES Volumen-beregner'!$J$10,H79=4,'KAN SKJULES Volumen-beregner'!$H$10,H79=5,'KAN SKJULES Volumen-beregner'!$F$10)","v":12},0,1,0,null,"Hvis henvendelse modtages i kommunens hovedpostkasse, kan der gå et par dage af svarfristen med, at henvendelsen når frem til vedkommende, der skal svare.",{"$f":"IFERROR((J79+K79+L79)*I79,0)","v":12}]
["Anmodning om lokalplan","Anmodning om lokalplan","Kan komme fra investorer/developpere, kommunens interne myndigheder","Egen Kommune","Outlook","Anmodning om oplysninger","Miljø, Teknik og Forsyning",2,{"$f":"_xlfn.IFS(H80=\"\",\"\",H80=1,'KAN SKJULES Volumen-beregner'!$N$10,H80=2,'KAN SKJULES Volumen-beregner'!$L$10,H80=3,'KAN SKJULES Volumen-beregner'!$J$10,H80=4,'KAN SKJULES Volumen-beregner'!$H$10,H80=5,'KAN SKJULES Volumen-beregner'!$F$10)","v":12},0,0,1,"Data, som altid er relevant at få oplyst: Geografisk areal, matrikel nr., er du ejer af grunden? mm.","N/A",12]
["Div. spørgsmål vedr. barnets tandpleje aftaler mv.","Korrespondance","Forældre",null,"Outlook / TM Tand","Information","Børn og Unge",1,{"$f":"_xlfn.IFS(H81=\"\",\"\",H81=1,'KAN SKJULES Volumen-beregner'!$N$10,H81=2,'KAN SKJULES Volumen-beregner'!$L$10,H81=3,'KAN SKJULES Volumen-beregner'!$J$10,H81=4,'KAN SKJULES Volumen-beregner'!$H$10,H81=5,'KAN SKJULES Volumen-beregner'!$F$10)","v":1},1,1,null,null,"Kræver manuel journalisering",2]
["Brev fra regioner ang. godkendelse til fertilitet","Indhentning af oplysninger vedr. forældreegnethed","Regionen","Regionen","Outlook","Anmodning om oplysninger","Børn og Unge",1,{"$f":"_xlfn.IFS(H82=\"\",\"\",H82=1,'KAN SKJULES Volumen-beregner'!$N$10,H82=2,'KAN SKJULES Volumen-beregner'!$L$10,H82=3,'KAN SKJULES Volumen-beregner'!$J$10,H82=4,'KAN SKJULES Volumen-beregner'!$H$10,H82=5,'KAN SKJULES Volumen-beregner'!$F$10)","v":1},1,null,0,1,"Kræver manuel journalisering",1]
["Anvisning af anmeldelser til jordflytning",null,"Primært virksomheder og lidt borgere",null,"Flytjord.dk","Anvisning af anmeldeer til oplysninger","Miljø, Teknik og Forsyning",3,{"$f":"_xlfn.IFS(H83=\"\",\"\",H83=1,'KAN SKJULES Volumen-beregner'!$N$10,H83=2,'KAN SKJULES Volumen-beregner'!$L$10,H83=3,'KAN SKJULES Volumen-beregner'!$J$10,H83=4,'KAN SKJULES Volumen-beregner'!$H$10,H83=5,'KAN SKJULES Volumen-beregner'!$F$10)","v":26},0,0,0,"Bør undersøges",null,0]
["Skadeanmeldee - Ansvarsforsikring",null,"Borger",null,"Hovedpostkasse, Outlook","Information","Miljø, Teknik og Forsyning",null,{"$f":"_xlfn.IFS(H84=\"\",\"\",H84=1,'KAN SKJULES Volumen-beregner'!$N$10,H84=2,'KAN SKJULES Volumen-beregner'!$L$10,H84=3,'KAN SKJULES Volumen-beregner'!$J$10,H84=4,'KAN SKJULES Volumen-beregner'!$H$10,H84=5,'KAN SKJULES Volumen-beregner'!$F$10)","v":""},0,1,1,"Nej","Skema kunne udfyldes på forhånd.",0]
["Ansøgning om Erhvervs kørekort",null,"Borger",null,"Nova","Information","Demokrati og Involvering",null,{"$f":"_xlfn.IFS(H85=\"\",\"\",H85=1,'KAN SKJULES Volumen-beregner'!$N$10,H85=2,'KAN SKJULES Volumen-beregner'!$L$10,H85=3,'KAN SKJULES Volumen-beregner'!$J$10,H85=4,'KAN SKJULES Volumen-beregner'!$H$10,H85=5,'KAN SKJULES Volumen-beregner'!$F$10)","v":""},1,0,1,"nej ","Sendes videre til Politiest PAC - Vandelsafdelingen",0]
["Fejl vedrørende  affald (via renoweb)","Fejl vedrørende  affald (via renoweb)","Borger / Virksomhed","Anden myndighed","Renoweb","Information","Miljø, Teknik og Forsyning",3,{"$f":"_xlfn.IFS(H86=\"\",\"\",H86=1,'KAN SKJULES Volumen-beregner'!$N$10,H86=2,'KAN SKJULES Volumen-beregner'!$L$10,H86=3,'KAN SKJULES Volumen-beregner'!$J$10,H86=4,'KAN SKJULES Volumen-beregner'!$H$10,H86=5,'KAN SKJULES Volumen-beregner'!$F$10)","v":26},0,0,0,"Alle relevante data knyttet til det fællesoffentlige adresseregister: Valid adresse samt registerets geokodning af punkt heraf  mv. Kode for om det fx er en kommunal institution, en borger eller en virksomhed.","Kan være en henvendelse til foryningsselskaberne (modsat kommuner hvor denne opgave er hjemtaget)",0]
[null,null,null,null,null,null,null,null,{"$f":"_xlfn.IFS(H87=\"\",\"\",H87=1,'KAN SKJULES Volumen-beregner'!$N$10,H87=2,'KAN SKJULES Volumen-beregner'!$L$10,H87=3,'KAN SKJULES Volumen-beregner'!$J$10,H87=4,'KAN SKJULES Volumen-beregner'!$H$10,H87=5,'KAN SKJULES Volumen-beregner'!$F$10)","v":""},null,null,null,null,null,0]
[null,null,null,null,null,null,null,null,{"$f":"_xlfn.IFS(H88=\"\",\"\",H88=1,'KAN SKJULES Volumen-beregner'!$N$10,H88=2,'KAN SKJULES Volumen-beregner'!$L$10,H88=3,'KAN SKJULES Volumen-beregner'!$J$10,H88=4,'KAN SKJULES Volumen-beregner'!$H$10,H88=5,'KAN SKJULES Volumen-beregner'!$F$10)","v":""},null,null,null,null,null,0]
[null,null,null,null,null,null,null,null,{"$f":"_xlfn.IFS(H89=\"\",\"\",H89=1,'KAN SKJULES Volumen-beregner'!$N$10,H89=2,'KAN SKJULES Volumen-beregner'!$L$10,H89=3,'KAN SKJULES Volumen-beregner'!$J$10,H89=4,'KAN SKJULES Volumen-beregner'!$H$10,H89=5,'KAN SKJULES Volumen-beregner'!$F$10)","v":""},null,null,null,null,null,0]
[null,null,null,null,null,null,null,null,{"$f":"_xlfn.IFS(H90=\"\",\"\",H90=1,'KAN SKJULES Volumen-beregner'!$N$10,H90=2,'KAN SKJULES Volumen-beregner'!$L$10,H90=3,'KAN SKJULES Volumen-beregner'!$J$10,H90=4,'KAN SKJULES Volumen-beregner'!$H$10,H90=5,'KAN SKJULES Volumen-beregner'!$F$10)","v":""},null,null,null,null,null,0]
[null,null,null,null,null,null,null,null,{"$f":"_xlfn.IFS(H91=\"\",\"\",H91=1,'KAN SKJULES Volumen-beregner'!$N$10,H91=2,'KAN SKJULES Volumen-beregner'!$L$10,H91=3,'KAN SKJULES Volumen-beregner'!$J$10,H91=4,'KAN SKJULES Volumen-beregner'!$H$10,H91=5,'KAN SKJULES Volumen-beregner'!$F$10)","v":""},null,null,null,null,null,0]
[null,null,null,null,null,null,null,null,{"$f":"_xlfn.IFS(H92=\"\",\"\",H92=1,'KAN SKJULES Volumen-beregner'!$N$10,H92=2,'KAN SKJULES Volumen-beregner'!$L$10,H92=3,'KAN SKJULES Volumen-beregner'!$J$10,H92=4,'KAN SKJULES Volumen-beregner'!$H$10,H92=5,'KAN SKJULES Volumen-beregner'!$F$10)","v":""},null,null,null,null,null,0]
[null,null,null,null,null,null,null,null,{"$f":"_xlfn.IFS(H93=\"\",\"\",H93=1,'KAN SKJULES Volumen-beregner'!$N$10,H93=2,'KAN SKJULES Volumen-beregner'!$L$10,H93=3,'KAN SKJULES Volumen-beregner'!$J$10,H93=4,'KAN SKJULES Volumen-beregner'!$H$10,H93=5,'KAN SKJULES Volumen-beregner'!$F$10)","v":""},null,null,null,null,null,0]
[null,null,null,null,null,null,null,null,{"$f":"_xlfn.IFS(H94=\"\",\"\",H94=1,'KAN SKJULES Volumen-beregner'!$N$10,H94=2,'KAN SKJULES Volumen-beregner'!$L$10,H94=3,'KAN SKJULES Volumen-beregner'!$J$10,H94=4,'KAN SKJULES Volumen-beregner'!$H$10,H94=5,'KAN SKJULES Volumen-beregner'!$F$10)","v":""},null,null,null,null,null,0]
[null,null,null,null,null,null,null,null,{"$f":"_xlfn.IFS(H95=\"\",\"\",H95=1,'KAN SKJULES Volumen-beregner'!$N$10,H95=2,'KAN SKJULES Volumen-beregner'!$L$10,H95=3,'KAN SKJULES Volumen-beregner'!$J$10,H95=4,'KAN SKJULES Volumen-beregner'!$H$10,H95=5,'KAN SKJULES Volumen-beregner'!$F$10)","v":""},null,null,null,null,null,0]
[null,null,null,null,null,null,null,null,{"$f":"_xlfn.IFS(H96=\"\",\"\",H96=1,'KAN SKJULES Volumen-beregner'!$N$10,H96=2,'KAN SKJULES Volumen-beregner'!$L$10,H96=3,'KAN SKJULES Volumen-beregner'!$J$10,H96=4,'KAN SKJULES Volumen-beregner'!$H$10,H96=5,'KAN SKJULES Volumen-beregner'!$F$10)","v":""},null,null,null,null,null,0]
[null,null,null,null,null,null,null,null,{"$f":"_xlfn.IFS(H97=\"\",\"\",H97=1,'KAN SKJULES Volumen-beregner'!$N$10,H97=2,'KAN SKJULES Volumen-beregner'!$L$10,H97=3,'KAN SKJULES Volumen-beregner'!$J$10,H97=4,'KAN SKJULES Volumen-beregner'!$H$10,H97=5,'KAN SKJULES Volumen-beregner'!$F$10)","v":""},null,null,null,null,null,0]
[null,null,null,null,null,null,null,null,{"$f":"_xlfn.IFS(H98=\"\",\"\",H98=1,'KAN SKJULES Volumen-beregner'!$N$10,H98=2,'KAN SKJULES Volumen-beregner'!$L$10,H98=3,'KAN SKJULES Volumen-beregner'!$J$10,H98=4,'KAN SKJULES Volumen-beregner'!$H$10,H98=5,'KAN SKJULES Volumen-beregner'!$F$10)","v":""},null,null,null,null,null,0]
[null,null,null,null,null,null,null,null,{"$f":"_xlfn.IFS(H99=\"\",\"\",H99=1,'KAN SKJULES Volumen-beregner'!$N$10,H99=2,'KAN SKJULES Volumen-beregner'!$L$10,H99=3,'KAN SKJULES Volumen-beregner'!$J$10,H99=4,'KAN SKJULES Volumen-beregner'!$H$10,H99=5,'KAN SKJULES Volumen-beregner'!$F$10)","v":""},null,null,null,null,null,0]
[null,null,null,null,null,null,null,null,{"$f":"_xlfn.IFS(H100=\"\",\"\",H100=1,'KAN SKJULES Volumen-beregner'!$N$10,H100=2,'KAN SKJULES Volumen-beregner'!$L$10,H100=3,'KAN SKJULES Volumen-beregner'!$J$10,H100=4,'KAN SKJULES Volumen-beregner'!$H$10,H100=5,'KAN SKJULES Volumen-beregner'!$F$10)","v":""},null,null,null,null,null,0]
[null,null,null,null,null,null,null,null,{"$f":"_xlfn.IFS(H101=\"\",\"\",H101=1,'KAN SKJULES Volumen-beregner'!$N$10,H101=2,'KAN SKJULES Volumen-beregner'!$L$10,H101=3,'KAN SKJULES Volumen-beregner'!$J$10,H101=4,'KAN SKJULES Volumen-beregner'!$H$10,H101=5,'KAN SKJULES Volumen-beregner'!$F$10)","v":""},null,null,null,null,null,{"$f":"IFERROR((J101+K101+L101)*I101,0)","v":0}]
[null,null,null,null,null,null,null,null,{"$f":"_xlfn.IFS(H102=\"\",\"\",H102=1,'KAN SKJULES Volumen-beregner'!$N$10,H102=2,'KAN SKJULES Volumen-beregner'!$L$10,H102=3,'KAN SKJULES Volumen-beregner'!$J$10,H102=4,'KAN SKJULES Volumen-beregner'!$H$10,H102=5,'KAN SKJULES Volumen-beregner'!$F$10)","v":""},null,null,null,null,null,0]
[null,null,null,null,null,null,null,null,{"$f":"_xlfn.IFS(H103=\"\",\"\",H103=1,'KAN SKJULES Volumen-beregner'!$N$10,H103=2,'KAN SKJULES Volumen-beregner'!$L$10,H103=3,'KAN SKJULES Volumen-beregner'!$J$10,H103=4,'KAN SKJULES Volumen-beregner'!$H$10,H103=5,'KAN SKJULES Volumen-beregner'!$F$10)","v":""},null,null,null,null,null,0]
[null,null,null,null,null,null,null,null,{"$f":"_xlfn.IFS(H104=\"\",\"\",H104=1,'KAN SKJULES Volumen-beregner'!$N$10,H104=2,'KAN SKJULES Volumen-beregner'!$L$10,H104=3,'KAN SKJULES Volumen-beregner'!$J$10,H104=4,'KAN SKJULES Volumen-beregner'!$H$10,H104=5,'KAN SKJULES Volumen-beregner'!$F$10)","v":""},null,null,null,null,null,0]
[null,null,null,null,null,null,null,null,{"$f":"_xlfn.IFS(H105=\"\",\"\",H105=1,'KAN SKJULES Volumen-beregner'!$N$10,H105=2,'KAN SKJULES Volumen-beregner'!$L$10,H105=3,'KAN SKJULES Volumen-beregner'!$J$10,H105=4,'KAN SKJULES Volumen-beregner'!$H$10,H105=5,'KAN SKJULES Volumen-beregner'!$F$10)","v":""},null,null,null,null,null,0]
[null,null,null,null,null,null,null,null,{"$f":"_xlfn.IFS(H106=\"\",\"\",H106=1,'KAN SKJULES Volumen-beregner'!$N$10,H106=2,'KAN SKJULES Volumen-beregner'!$L$10,H106=3,'KAN SKJULES Volumen-beregner'!$J$10,H106=4,'KAN SKJULES Volumen-beregner'!$H$10,H106=5,'KAN SKJULES Volumen-beregner'!$F$10)","v":""},null,null,null,null,null,0]
[null,null,null,null,null,null,null,null,{"$f":"_xlfn.IFS(H107=\"\",\"\",H107=1,'KAN SKJULES Volumen-beregner'!$N$10,H107=2,'KAN SKJULES Volumen-beregner'!$L$10,H107=3,'KAN SKJULES Volumen-beregner'!$J$10,H107=4,'KAN SKJULES Volumen-beregner'!$H$10,H107=5,'KAN SKJULES Volumen-beregner'!$F$10)","v":""},null,null,null,null,null,0]
[null,null,null,null,null,null,null,null,{"$f":"_xlfn.IFS(H108=\"\",\"\",H108=1,'KAN SKJULES Volumen-beregner'!$N$10,H108=2,'KAN SKJULES Volumen-beregner'!$L$10,H108=3,'KAN SKJULES Volumen-beregner'!$J$10,H108=4,'KAN SKJULES Volumen-beregner'!$H$10,H108=5,'KAN SKJULES Volumen-beregner'!$F$10)","v":""},null,null,null,null,null,0]
[null,null,null,null,null,null,null,null,{"$f":"_xlfn.IFS(H109=\"\",\"\",H109=1,'KAN SKJULES Volumen-beregner'!$N$10,H109=2,'KAN SKJULES Volumen-beregner'!$L$10,H109=3,'KAN SKJULES Volumen-beregner'!$J$10,H109=4,'KAN SKJULES Volumen-beregner'!$H$10,H109=5,'KAN SKJULES Volumen-beregner'!$F$10)","v":""},null,null,null,null,null,0]
[]
[]
[]
[]
[]
[]
[]
[]
[]
[]
[]
[]
[]
[]
[]
[]
[]
[]
[]
[]
[]
[]
[]
[]
[]
[]
[]
[]
[]
[]
[]
[]
[]
[]
[]
[]
[]
[]
[]
[]
[]
[]
[]
[]
[]
[]
[]
[]
[]
[]
[]
[]
[]
[]
[]
[]
[]
[]
[]
[]
[]
[]
[]
[]
[]
[]
[]
[]
[]
[]
[]
[]
[]
[]
[]
[]
[]
[]
[]
[]
[]
[]
[]
[]
[]
[null,null,null,null,null,null,null,null,null,null,null,null,null,null,null,null,null,null,null,null,null,null,null,"Primær"]
[null,null,null,null,null,null,null,null,null,null,null,null,null,null,null,null,null,null,null,null,null,null,null,"Beslutningstager"]
[null,null,null,null,null,null,null,null,null,null,null,null,null,null,null,null,null,null,null,null,null,null,null,"Sekundær"]
[null,null,null,null,null,null,null,null,null,null,null,null,null,null,null,null,null,null,null,null,null,null,null,"Tertiær"]

{"sheet":"KAN SKJULES Volumen-beregner","index":3,"n_rows":10,"n_cols":15,"rows_kept":10,"cut":false,"hidden":false,"merged":[[6,4,6,5],[6,6,6,7],[6,8,6,9],[6,10,6,11],[6,12,6,13],[1,4,1,5],[1,6,1,7],[1,8,1,9],[1,10,1,11],[1,12,1,13]]}
["Volumen-beregner - afsendelse"]
[null,null,null,null,"Meget høj (anvendes ikke)",null,"Høj",null,"Middel",null,"Lav",null,"Meget lav"]
["År","Måneder","Uger","Antal arbejdsdage","Hvad betyder flere gange om dagen?","I alt","Hvad betyder Dagligt?","I alt","Hvad betyder Ugentligt?","I alt","Hvad betyder månedligt?","I alt","Hvad betyder Sjældent","I alt"]
[1,12,52,250,5,{"$f":"E4*D4","v":1250},5,{"$f":"G4*C4","v":260},1,{"$f":"I4*C4","v":52},2,{"$f":"B4*K4","v":24},2,{"$f":"M4*A4","v":2}]
[null,null,null,null,null,{"$f":"(F4/$N$9*1)","v":625},null,{"$f":"(H4/$N$9*1)","v":130},null,{"$f":"(J4/$N$9*1)","v":26},null,{"$f":"(L4/$N$9*1)","v":12},null,{"$f":"(N4/$N$9*1)","v":1},"INDEKSTAL"]
["Volumen-beregner - modtagelse"]
[null,null,null,null,"Meget høj (anvendes ikke)",null,"Høj",null,"Middel",null,"Lav",null,"Meget lav"]
["År","Måneder","Uger","Antal arbejdsdage","Hvad betyder flere gange om dagen?","I alt","Hvad betyder Dagligt?","I alt","Hvad betyder Ugentligt?","I alt","Hvad betyder månedligt?","I alt","Hvad betyder Sjældent","I alt"]
[1,12,52,250,5,{"$f":"E9*D9","v":1250},5,{"$f":"G9*C9","v":260},1,{"$f":"I9*C9","v":52},2,{"$f":"B9*K9","v":24},2,{"$f":"M9*A9","v":2}]
[null,null,null,null,null,{"$f":"(F9/$N$9*1)","v":625},null,{"$f":"(H9/$N$9*1)","v":130},null,{"$f":"(J9/$N$9*1)","v":26},null,{"$f":"(L9/$N$9*1)","v":12},null,{"$f":"(N9/$N$9*1)","v":1},"INDEKSTAL"]

{"sheet":"KAN SKJULES Input til afsendt","index":4,"n_rows":6,"n_cols":2,"rows_kept":6,"cut":false,"hidden":false,"merged":[]}
["Gevinstvurdering"]
["Hvor ofte sender en sagsbehandler dette brev?\n\n1= Sjældent\n2= Månedligt\n3= Ugentligt\n4= Dagligt","JA/NEJ"]
[1,0]
[2,1]
[3]
[4]

{"sheet":"KAN SKJULES Input til modtaget","index":5,"n_rows":171,"n_cols":11,"rows_kept":171,"cut":false,"hidden":false,"merged":[]}
["Gevinstvurdering"]
["Hvor ofte sender en sagsbehandler dette brev?\n\n1= Sjældent\n2= Månedligt\n3= Ugentligt\n4= Dagligt","JA/NEJ"]
[1,0]
[2,1]
[3]
[4]
[]
[]
[]
[]
[]
[]
[]
[]
[]
[]
[]
[]
[]
[]
[]
[]
[]
[]
[]
[]
[]
[]
[]
[]
[]
[]
[]
[]
[]
[]
[]
[]
[]
[]
[]
[]
[]
[]
[]
[]
[]
[]
[]
[]
[]
[]
[]
[]
[]
[]
[]
[]
[]
[]
[]
[]
[]
[]
[]
[]
[]
[]
[]
[]
[]
[]
[]
[]
[]
[]
[]
[]
[]
[]
[]
[]
[]
[]
[]
[]
[]
[]
[]
[]
[]
[]
[]
[]
[]
[]
[]
[]
[]
[]
[]
[]
[]
[]
[]
[]
[]
[]
[]
[]
[]
[]
[]
[]
[]
[]
[]
[]
[]
[]
[]
[]
[]
[]
[]
[]
[]
[]
[]
[]
[]
[]
[]
[]
[]
[]
[]
[]
[]
[]
[]
[]
[]
[]
[]
[]
[]
[]
[]
[]
[]
[]
[]
[]
[]
[]
[]
[]
[]
[]
[]
[]
[]
[]
[]
[]
[]
[null,null,null,null,null,null,null,null,null,null,"Primær"]
[null,null,null,null,null,null,null,null,null,null,"Beslutningstager"]
[null,null,null,null,null,null,null,null,null,null,"Sekundær"]
[null,null,null,null,null,null,null,null,null,null,"Tertiær"]